Directorate,Department,Expenditure Type,Ref.Doc.1,Vendor Name,Expenditure Amount (exc VAT),Payment Date
Delivery Units,Assurance,Professional Services,1031366201,One Eighty Advisory Limited,"6,600.00",23/11/2023
Delivery Units,Assurance,Other Services,1030995201,Speedstitch Clothing & Embroidery,"2,991.90",10/11/2023
Delivery Units,Strategy and Resources,Other Establishments - Third P,0080071582,TRANSPORT TRADING LIMITED,"2,125,011.00",16/11/2023
Delivery Units,Strategy and Resources,Other Establishments - Third P,0080071627,GLA LEVIES,"50,633.80",15/11/2023
Delivery Units,Strategy and Resources,Other Establishments - Third P,0080071626,LEE VALLEY REGIONAL PARK AUTH.,"32,407.20",15/11/2023
Delivery Units,Strategy and Resources,Other Services,0080072119,North London Waste Authority ,"897,742.00",30/11/2023
Delivery Units,Strategy and Resources,Consultants Fees,1031118302,Link Treasury Services Ltd,485.00,17/11/2023
Delivery Units,Customer and Place,Legal and Court Fees,1031359902,THE BARNETGROUP LIMITED,"103,830.30",23/11/2023
Delivery Units,Customer and Place,Professional Services,1031405101,THE BARNETGROUP LIMITED,"19,477.01",24/11/2023
Delivery Units,Customer and Place,Professional Services,1029310503,WSP UK LIMITED,200.42,02/11/2023
Delivery Units,Customer and Place,Professional Services,1030705602,PeopleScout Limited,495.54,22/11/2023
Delivery Units,Customer and Place,Professional Services,1030792901,WSP UK LIMITED,593.00,03/11/2023
Delivery Units,Customer and Place,Professional Services,1030909701,PeopleScout Limited,533.51,07/11/2023
Delivery Units,Customer and Place,Professional Services,1030913202,Capita Property & Infrastructure Ltd,"2,804.40",08/11/2023
Delivery Units,Customer and Place,Professional Services,1031114101,PeopleScout Limited,571.47,14/11/2023
Delivery Units,Customer and Place,Catering Recharge,1031385702,ISS Mediclean,375.00,28/11/2023
Delivery Units,Customer and Place,Professional Services,1031492201,Capita Property & Infrastructure Ltd,"3,931.37",27/11/2023
Delivery Units,Customer and Place,Professional Services,1031575801,PeopleScout Limited,571.47,29/11/2023
Delivery Units,Customer and Place,Software Licences & Support,1031579101,IDOX SOFTWARE LIMITED,"5,550.00",30/11/2023
Delivery Units,Customer and Place,Professional Services,1031580101,PeopleScout Limited,552.49,29/11/2023
Delivery Units,Customer and Place,Professional Services,1031358601,CAPITA BUSINESS SERVICES LTD,"6,254.63",28/11/2023
Delivery Units,Childrens Service DSG,Other Establishments - Third P,0080071431,Brecknock Primary School,"1,725.00",09/11/2023
DELIVERY UNITS,CUSTOMER AND PLACE,Equipment and Materials Purcha,1030787802,CHILDS HILL SCHOOL,930.00,02/11/2023
Delivery Units,Childrens Service DSG,Other Establishments - Third P,0050074658,Alma Primary,"27,972.00",22/11/2023
Delivery Units,Childrens Service DSG,Other Establishments - Third P,0050074660,Ashmole Primary School,"40,239.72",22/11/2023
Delivery Units,Childrens Service DSG,Other Establishments - Third P,0050074666,BROADFIELDS ACADEMY,"43,063.56",22/11/2023
Delivery Units,Childrens Service DSG,Other Establishments - Third P,0050074673,Claremont Primary School Academy,"14,119.20",22/11/2023
Delivery Units,Childrens Service DSG,Other Establishments - Third P,0050074682,ETZ CHAIM JEWISH PRIMARY SCHOO,"22,792.00",22/11/2023
Delivery Units,Childrens Service DSG,Other Establishments - Third P,0050074701,Millbrook Park Primary School,"29,297.34",22/11/2023
Delivery Units,Childrens Service DSG,Other Establishments - Third P,0050074711,PARKFIELD ACADEMY,"24,179.13",22/11/2023
Delivery Units,Childrens Service DSG,Other Establishments - Third P,0050074713,Rimon Jewish Primary School,"28,231.00",22/11/2023
Delivery Units,Childrens Service DSG,Other Establishments - Third P,0050074715,Sacks Morasha Jewish Primary,"30,303.00",22/11/2023
Delivery Units,Childrens Service DSG,Other Establishments - Third P,0050074731,Summerside Primary Academy,"26,473.50",22/11/2023
Delivery Units,Childrens Service DSG,Other Establishments - Third P,0050074733,THE HYDE EF ACADEMY,"31,238.73",22/11/2023
Delivery Units,Childrens Service DSG,Other Establishments - Third P,0050074738,Watling Park School,"16,943.04",22/11/2023
Delivery Units,Childrens Service DSG,Other Establishments - Third P,0050074693,KISHARON DAY SCHOOL,"3,885.00",22/11/2023
Delivery Units,Customer and Place,Building Repairs & Maintenance,1027685802,PRECISION LIFT SERVICES LTD,56.88,16/11/2023
Delivery Units,Customer and Place,Building Repairs & Maintenance,1030182102,LEE SECURITY LONDON LIMITED,325.00,21/11/2023
Delivery Units,Customer and Place,Building Repairs & Maintenance,1030831303,Integrated Water Services Ltd,"6,998.62",28/11/2023
Delivery Units,Customer and Place,Building Repairs & Maintenance,1030831702,Orion Building Engineering Services Ltd,"1,190.00",21/11/2023
Delivery Units,Customer and Place,Building Repairs & Maintenance,1031069901,Riverside Environmental Services LTD,"5,325.49",13/11/2023
Delivery Units,Customer and Place,Building Repairs & Maintenance,1031078601,Riverside Environmental Services LTD,"7,900.00",13/11/2023
Delivery Units,Childrens Service DSG,Other Establishments - Third P,1031249001,DOTS for children Ltd,755.06,20/11/2023
Delivery Units,Childrens Family Services,Employee Expenses,1031320802,ATLANTIS OFFICE LIMITED,177.99,22/11/2023
Delivery Units,Childrens Family Services,Software Licences & Support,1031318002,Access UK Ltd,854.60,22/11/2023
Delivery Units,Childrens Service DSG,Other Services,0050073782,Learn & Play Childcare Ltd,"2,390.00",02/11/2023
Delivery Units,Childrens Service DSG,Other Services,0050073786,Learn & Play Childcare Ltd,"1,195.00",02/11/2023
Delivery Units,Childrens Service DSG,Other Services,0050073794,KIDZ CHOICE LIMITED,478.00,02/11/2023
Delivery Units,Childrens Service DSG,Other Services,0050073813,Smart Learning Nursery,"1,195.00",02/11/2023
Delivery Units,Childrens Service DSG,Other Services,0050073815,GREENWICH LEISURE LTD,"1,195.00",02/11/2023
Delivery Units,Childrens Service DSG,Other Services,0080071435,GREENWICH LEISURE LTD,"1,255.00",10/11/2023
Delivery Units,Childrens Service DSG,Other Services,0050073789,Stay and Play Childcare Ltd,"1,793.00",02/11/2023
Delivery Units,Childrens Service DSG,Other Services,0050073799,Stay and Play Childcare Ltd,"1,195.00",02/11/2023
Delivery Units,Childrens Service DSG,Other Services,0050073805,Stay and Play Childcare Ltd,"1,195.00",02/11/2023
Delivery Units,Childrens Service DSG,Other Services,0050073779,Tinky's Day Nursery,"2,330.25",02/11/2023
Delivery Units,Childrens Service DSG,Other Services,0050073780,PLAY AND LEARN,"1,195.00",02/11/2023
Delivery Units,Childrens Service DSG,Other Services,0050073783,KIDZ KABIN PEMBROKE STUDIOS LTD,"1,195.00",02/11/2023
Delivery Units,Childrens Service DSG,Other Services,0050073784,THE LITTLE LEARNERS MONTESSORI LTD,"1,195.00",02/11/2023
Delivery Units,Childrens Service DSG,Other Services,0050073785,THE LITTLE LEARNERS MONTESSORI LTD,"1,434.00",02/11/2023
Delivery Units,Childrens Service DSG,Other Services,0050073787,OAKHILL COMMUNITY NURSERY,"1,793.00",02/11/2023
Delivery Units,Childrens Service DSG,Other Services,0050073788,PLAY AND LEARN,"1,434.00",02/11/2023
Delivery Units,Childrens Service DSG,Other Services,0050073790,Abracadabra Preschool Nursery,633.00,02/11/2023
Delivery Units,Childrens Service DSG,Other Services,0050073791,ABI'S Childcare Ltd,"1,793.00",02/11/2023
Delivery Units,Childrens Service DSG,Other Services,0050073792,Kana Nurseries Ltd,"1,195.00",02/11/2023
Delivery Units,Childrens Service DSG,Other Services,0050073793,Happy Journeys Day Nursery,"2,390.00",02/11/2023
Delivery Units,Childrens Service DSG,Other Services,0050073795,STEP BY STEP MONTESSORI,"1,195.00",02/11/2023
Delivery Units,Childrens Service DSG,Other Services,0050073796,The Playhouse Nursery,"1,195.00",02/11/2023
Delivery Units,Childrens Service DSG,Other Services,0050073797,Aplomb Day Nursery,"1,076.00",02/11/2023
Delivery Units,Childrens Service DSG,Other Services,0050073798,Happy Journeys Day Nursery,"1,195.00",02/11/2023
Delivery Units,Childrens Service DSG,Other Services,0050073800,The Finchley Day Nursery,"2,390.00",02/11/2023
Delivery Units,Childrens Service DSG,Other Services,0050073801,Little Lamps Nursery Ltd,"1,195.00",02/11/2023
Delivery Units,Childrens Service DSG,Other Services,0050073802,Tiddleytots Nursery,"1,793.00",02/11/2023
Delivery Units,Childrens Service DSG,Other Services,0050073803,Unity Montessori Nursery,"1,195.00",02/11/2023
Delivery Units,Childrens Service DSG,Other Services,0050073804,Claremont Community Pre-School,"1,195.00",02/11/2023
Delivery Units,Childrens Service DSG,Other Services,0050073806,PLAY AND LEARN,956.00,02/11/2023
Delivery Units,Childrens Service DSG,Other Services,0050073807,OAKHILL COMMUNITY NURSERY,"1,434.00",02/11/2023
Delivery Units,Childrens Service DSG,Other Services,0050073808,PLAYFIELD NURSERY,"1,195.00",02/11/2023
Delivery Units,Childrens Service DSG,Other Services,0050073809,Aplomb Day Nursery,"1,195.00",02/11/2023
Delivery Units,Childrens Service DSG,Other Services,0050073810,PLAY AND LEARN,"1,195.00",02/11/2023
Delivery Units,Childrens Service DSG,Other Services,0050073812,Belmont Farm Nursery School,"1,195.00",02/11/2023
Delivery Units,Childrens Service DSG,Other Services,0050073814,WEST HENDON PRE-SCHOOL,"1,195.00",02/11/2023
Delivery Units,Childrens Service DSG,Other Services,0050073816,PARDES HOUSE KINDERGARTEN,"1,673.00",02/11/2023
Delivery Units,Childrens Service DSG,Other Establishments - Third P,0050074512,PARKFIELD ACADEMY,"1,972.26",22/11/2023
Delivery Units,Childrens Service DSG,Other Establishments - Third P,0050074518,THE HYDE EF ACADEMY,"1,824.69",22/11/2023
Delivery Units,Childrens Service DSG,Other Establishments - Third P,0050074578,BROADFIELDS ACADEMY,"4,205.57",22/11/2023
Delivery Units,Childrens Service DSG,Other Establishments - Third P,0050074643,Summerside Primary Academy,487.60,22/11/2023
Delivery Units,Childrens Service DSG,Other Services,0050073811,Shofar Daycare Nursery,"1,195.00",02/11/2023
Delivery Units,Childrens Service DSG,Other Services,0050073817,Kidz Choice Nursery,538.00,02/11/2023
Delivery Units,Childrens Service DSG,Education CFR Funding Advances,0020067763,BEIS SOROH SCHNEIRER,"34,844.68",22/11/2023
Delivery Units,Childrens Service DSG,Education CFR Funding Advances,0020067767,BROADFIELDS ACADEMY,"13,567.84",22/11/2023
Delivery Units,Childrens Service DSG,Education CFR Funding Advances,0020067774,BEIS CHINUCH PRIMARY SCHOOL,"39,517.52",22/11/2023
Delivery Units,Childrens Service DSG,Education CFR Funding Advances,0020067777,Finchley Yochien,"2,514.32",22/11/2023
Delivery Units,Childrens Service DSG,Education CFR Funding Advances,0020067780,HENDON PREPARATORY SCHOOL,"4,250.62",22/11/2023
Delivery Units,Childrens Service DSG,Education CFR Funding Advances,0020067786,The Mill Hill Foundation,"4,933.76",22/11/2023
Delivery Units,Childrens Service DSG,Education CFR Funding Advances,0020067792,Millbrook Park Primary School,"16,651.44",22/11/2023
Delivery Units,Childrens Service DSG,Education CFR Funding Advances,0020067794,NANCY REUBEN PRIMARY SCHOOL,"19,118.32",22/11/2023
Delivery Units,Childrens Service DSG,Education CFR Funding Advances,0020067798,PARKFIELD ACADEMY,"18,501.60",22/11/2023
Delivery Units,Childrens Service DSG,Education CFR Funding Advances,0020067799,Peninim Primary School,"5,858.84",22/11/2023
Delivery Units,Childrens Service DSG,Education CFR Funding Advances,0020067802,St Anthony's School for Girls,434.86,22/11/2023
Delivery Units,Childrens Service DSG,Education CFR Funding Advances,0020067806,ST MARTIN'S SCHOOL,"4,957.48",22/11/2023
Delivery Units,Childrens Service DSG,Education CFR Funding Advances,0020067809,Summerside Primary Academy,"8,396.88",22/11/2023
Delivery Units,Childrens Service DSG,Education CFR Funding Advances,0020067810,THE HYDE EF ACADEMY,"13,971.08",22/11/2023
Delivery Units,Childrens Family Services,Other Services,1030908601,LEE SECURITY LONDON LIMITED,77.00,07/11/2023
Delivery Units,Childrens Family Services,Other Agencies - Third Party P,1031247101,GLS Education Services Ltd,61.25,20/11/2023
Delivery Units,Childrens Family Services,Equipment and Materials Purcha,1030920602,Norse Commercial Services Ltd,64.25,08/11/2023
Delivery Units,Childrens Family Services,Cleaning and domestic material,1030921001,Norse Commercial Services Ltd,704.36,07/11/2023
Delivery Units,Childrens Family Services,Equipment and Materials Purcha,1031078501,LEE SECURITY LONDON LIMITED,174.10,13/11/2023
Delivery Units,Childrens Family Services,Gas,1031608502,KENT COUNTY COUNCIL (KCS),467.15,30/11/2023
Delivery Units,Childrens Family Services,Electricity,1031608601,KENT COUNTY COUNCIL (KCS),"1,323.38",30/11/2023
Delivery Units,Childrens Family Services,Cleaning and domestic material,1030919702,Norse Commercial Services Ltd,528.42,07/11/2023
Delivery Units,Childrens Family Services,Equipment and Materials Purcha,1030919801,Norse Commercial Services Ltd,61.58,07/11/2023
Delivery Units,Childrens Family Services,Contract Cleaning,0080071201,Norse Commercial Services Ltd,876.27,01/11/2023
Delivery Units,Childrens Family Services,Contract Cleaning,0080071202,Norse Commercial Services Ltd,876.27,01/11/2023
Delivery Units,Childrens Family Services,Contract Cleaning,0080071497,Norse Commercial Services Ltd,876.27,10/11/2023
Delivery Units,Childrens Family Services,Gas,0080071193,KENT COUNTY COUNCIL (KCS),37.22,01/11/2023
Delivery Units,Childrens Family Services,Gas,0080071964,KENT COUNTY COUNCIL (KCS),88.80,27/11/2023
Delivery Units,Childrens Family Services,Electricity,0080071970,EDF ENERGY CUSTOMERS PLC,356.87,27/11/2023
Delivery Units,Childrens Family Services,Building Repairs & Maintenance,1030746702,Riello Property & Construction Ltd,460.00,02/11/2023
Delivery Units,Childrens Family Services,Advertising,1030959802,GOOD IMPRESSIONS (LONDON) LIMITED,200.00,08/11/2023
Delivery Units,Childrens Family Services,Other Services,1030963101,BLUE 9 SECURITY LIMITED,"2,851.02",08/11/2023
Delivery Units,Childrens Family Services,Other Services,1030963201,BLUE 9 SECURITY LIMITED,"2,123.10",08/11/2023
Delivery Units,Childrens Family Services,Other Services,1030963301,BLUE 9 SECURITY LIMITED,202.20,08/11/2023
Delivery Units,Childrens Family Services,Other Services,1030963601,BLUE 9 SECURITY LIMITED,121.32,09/11/2023
Delivery Units,Childrens Family Services,Other Services,1030964601,BLUE 9 SECURITY LIMITED,404.40,08/11/2023
Delivery Units,Childrens Family Services,Other Services,1030965001,BLUE 9 SECURITY LIMITED,323.52,08/11/2023
Delivery Units,Childrens Family Services,Other Services,1030966801,BLUE 9 SECURITY LIMITED,"2,527.50",08/11/2023
Delivery Units,Childrens Family Services,Advertising,1031172102,GOOD IMPRESSIONS (LONDON) LIMITED,60.00,16/11/2023
Delivery Units,Childrens Family Services,Other Services,1031278001,1ST CONTAINERS UK LIMITED,31.00,20/11/2023
Delivery Units,Childrens Family Services,Other Services,1031278701,Enigma CCTV Ltd,"5,746.10",20/11/2023
Delivery Units,Childrens Family Services,Other Services,1031280001,BLUE 9 SECURITY LIMITED,"2,266.98",20/11/2023
Delivery Units,Childrens Family Services,Operational Leases - Equipment,1031280301,Canon (UK) limited,90.85,20/11/2023
Delivery Units,Childrens Family Services,Operational Leases - Equipment,1031280701,Canon (UK) limited,90.85,20/11/2023
Delivery Units,Childrens Family Services,Operational Leases - Equipment,1031281101,Canon (UK) limited,7.27,20/11/2023
Delivery Units,Childrens Family Services,Operational Leases - Equipment,1031281201,Canon (UK) limited,90.85,20/11/2023
Delivery Units,Childrens Family Services,Operational Leases - Equipment,1031281301,Canon (UK) limited,90.85,20/11/2023
Delivery Units,Childrens Family Services,Operational Leases - Equipment,1031281501,Canon (UK) limited,90.85,20/11/2023
Delivery Units,Childrens Family Services,Operational Leases - Equipment,1031281601,Canon (UK) limited,7.22,20/11/2023
Delivery Units,Childrens Family Services,Operational Leases - Equipment,1031281901,Canon (UK) limited,35.68,20/11/2023
Delivery Units,Childrens Family Services,Operational Leases - Equipment,1031282201,Canon (UK) limited,46.23,20/11/2023
Delivery Units,Childrens Family Services,Operational Leases - Equipment,1031282501,Canon (UK) limited,90.85,20/11/2023
Delivery Units,Childrens Family Services,Operational Leases - Equipment,1031354201,Canon (UK) limited,90.85,23/11/2023
Delivery Units,Childrens Family Services,Operational Leases - Equipment,1031354501,Canon (UK) limited,24.88,23/11/2023
Delivery Units,Childrens Family Services,Operational Leases - Equipment,1031354901,Canon (UK) limited,90.85,28/11/2023
Delivery Units,Childrens Family Services,Operational Leases - Equipment,1031356001,Canon (UK) limited,90.85,28/11/2023
Delivery Units,Childrens Family Services,Operational Leases - Equipment,1031356101,Canon (UK) limited,90.85,23/11/2023
Delivery Units,Childrens Family Services,Operational Leases - Equipment,1031356301,Canon (UK) limited,4.25,23/11/2023
Delivery Units,Childrens Family Services,Operational Leases - Equipment,1031356601,Canon (UK) limited,90.85,28/11/2023
Delivery Units,Childrens Family Services,Operational Leases - Equipment,1031357101,Canon (UK) limited,13.90,23/11/2023
Delivery Units,Childrens Family Services,Operational Leases - Equipment,1031358801,Canon (UK) limited,0.88,23/11/2023
Delivery Units,Childrens Family Services,Operational Leases - Equipment,1031359001,Canon (UK) limited,6.06,23/11/2023
Delivery Units,Childrens Family Services,Operational Leases - Equipment,1031359301,Canon (UK) limited,7.53,23/11/2023
Delivery Units,Childrens Family Services,Operational Leases - Equipment,1031359501,Canon (UK) limited,0.22,23/11/2023
Delivery Units,Childrens Family Services,Equipment and Materials Purcha,1031451302,WF Education Group Ltd,430.00,28/11/2023
Delivery Units,Childrens Family Services,Training,1031580402,SKILLS TRAINING CENTRE LTD,750.00,30/11/2023
Delivery Units,Childrens Family Services,Books-CDs-Audio-Video,0021007346,STAR BOOKS,55.80,03/11/2023
Delivery Units,Childrens Family Services,Books-CDs-Audio-Video,0021007349,STAR BOOKS,30.00,03/11/2023
Delivery Units,Childrens Family Services,Books-CDs-Audio-Video,0021007350,STAR BOOKS,19.35,03/11/2023
Delivery Units,Childrens Family Services,Books-CDs-Audio-Video,0021007362,ASKEWS & HOLTS LIBRARY SERVICES LTD,10.02,03/11/2023
Delivery Units,Childrens Family Services,Books-CDs-Audio-Video,0021007370,ASKEWS & HOLTS LIBRARY SERVICES LTD,9.24,03/11/2023
Delivery Units,Childrens Family Services,Books-CDs-Audio-Video,0021007392,Singh Convenience Store Ltd,338.80,13/11/2023
Delivery Units,Childrens Family Services,Books-CDs-Audio-Video,0021007394,Digital Library Ltd,"5,928.00",16/11/2023
Delivery Units,Childrens Family Services,Books-CDs-Audio-Video,0021007434,PROQUEST INFORMATION AND,"9,147.08",20/11/2023
Delivery Units,Childrens Family Services,Books-CDs-Audio-Video,0021007437,Mill Hill Newsagents Ltd,136.80,20/11/2023
Delivery Units,Childrens Family Services,Books-CDs-Audio-Video,0021007442,ASKEWS & HOLTS LIBRARY SERVICES LTD,5.46,20/11/2023
Delivery Units,Childrens Family Services,Books-CDs-Audio-Video,0021007457,ASKEWS & HOLTS LIBRARY SERVICES LTD,4.24,20/11/2023
Delivery Units,Childrens Family Services,Books-CDs-Audio-Video,0021007464,ASKEWS & HOLTS LIBRARY SERVICES LTD,14.64,20/11/2023
Delivery Units,Childrens Family Services,Books-CDs-Audio-Video,0021007467,ASKEWS & HOLTS LIBRARY SERVICES LTD,4.73,20/11/2023
Delivery Units,Childrens Family Services,Books-CDs-Audio-Video,0021007470,Malhotra News Agent Ltd,274.30,24/11/2023
Delivery Units,Childrens Family Services,Books-CDs-Audio-Video,0021007471,DX NETWORK SERVICES LTD,15.08,28/11/2023
Delivery Units,Childrens Family Services,Books-CDs-Audio-Video,0021007472,NewsTeam Group LTD,200.00,28/11/2023
Delivery Units,Childrens Family Services,Books-CDs-Audio-Video,0021007519,ASKEWS & HOLTS LIBRARY SERVICES LTD,6.03,29/11/2023
Delivery Units,Childrens Family Services,Books-CDs-Audio-Video,0021007393,CONFAGS,265.30,13/11/2023
Delivery Units,Childrens Family Services,Books-CDs-Audio-Video,0021007436,THE BOOK CENTRE,305.07,20/11/2023
Delivery Units,Childrens Family Services,Cleaning and domestic material,1030991602,BIRKIN CLEANING SERVICES LTD,84.50,10/11/2023
Delivery Units,Childrens Family Services,Cleaning and domestic material,1031279501,Norse Commercial Services Ltd,"1,184.40",20/11/2023
Delivery Units,Childrens Family Services,Other Services,1031365901,Norse Commercial Services Ltd,34.83,23/11/2023
Delivery Units,Childrens Family Services,Cleaning and domestic material,1030993002,BIRKIN CLEANING SERVICES LTD,91.70,10/11/2023
Delivery Units,Childrens Family Services,Other Services,1031279901,Norse Commercial Services Ltd,67.33,20/11/2023
Delivery Units,Childrens Family Services,Cleaning and domestic material,1031405001,Norse Commercial Services Ltd,"2,648.54",24/11/2023
Delivery Units,Childrens Family Services,Cleaning and domestic material,1031276101,Norse Commercial Services Ltd,528.42,20/11/2023
Delivery Units,Childrens Family Services,Other Services,1031276901,Norse Commercial Services Ltd,17.00,20/11/2023
Delivery Units,Childrens Family Services,Cleaning and domestic material,1031278901,Norse Commercial Services Ltd,192.00,20/11/2023
Delivery Units,Childrens Family Services,Cleaning and domestic material,1031275501,Norse Commercial Services Ltd,"1,165.84",20/11/2023
Delivery Units,Childrens Family Services,Other Services,1031277301,Norse Commercial Services Ltd,29.58,20/11/2023
Delivery Units,Childrens Family Services,Other Services,1031277901,Norse Commercial Services Ltd,-17.41,21/11/2023
Delivery Units,Childrens Family Services,Cleaning and domestic material,1031033701,Herts FullStop,34.30,10/11/2023
Delivery Units,Childrens Family Services,Laundry and Dry Cleaning,1030747601,PHS GROUP LTD,130.59,01/11/2023
Delivery Units,Childrens Family Services,Other Services,1030961301,Norse Commercial Services Ltd,17.00,10/11/2023
Delivery Units,Childrens Family Services,Cleaning and domestic material,1031032701,Norse Commercial Services Ltd,527.87,10/11/2023
Delivery Units,Childrens Family Services,Cleaning and domestic material,1030965101,Norse Commercial Services Ltd,705.28,10/11/2023
Delivery Units,Childrens Family Services,Other Services,1030965901,Norse Commercial Services Ltd,30.42,10/11/2023
Delivery Units,Childrens Family Services,Cleaning and domestic material,1031280202,Norse Commercial Services Ltd,598.00,20/11/2023
Delivery Units,Childrens Family Services,Laundry and Dry Cleaning,1030747101,PHS GROUP LTD,130.59,01/11/2023
Delivery Units,Childrens Family Services,Other Services,1030966201,Norse Commercial Services Ltd,21.25,10/11/2023
Delivery Units,Childrens Family Services,Cleaning and domestic material,1030966901,Norse Commercial Services Ltd,528.42,08/11/2023
Delivery Units,Childrens Family Services,Cleaning and domestic material,1031278101,Norse Commercial Services Ltd,216.00,20/11/2023
Delivery Units,Childrens Family Services,Other Services,1030964901,Norse Commercial Services Ltd,25.92,10/11/2023
Delivery Units,Childrens Family Services,Cleaning and domestic material,1030965701,Norse Commercial Services Ltd,703.90,10/11/2023
Delivery Units,Childrens Family Services,Gas,1031278502,KENT COUNTY COUNCIL (KCS),72.35,20/11/2023
Delivery Units,Childrens Family Services,Books-CDs-Audio-Video,1030993803,ASKEWS & HOLTS LIBRARY SERVICES LTD,975.57,20/11/2023
Delivery Units,Childrens Family Services,Books-CDs-Audio-Video,1030994003,ASKEWS & HOLTS LIBRARY SERVICES LTD,364.20,20/11/2023
Delivery Units,Childrens Family Services,Books-CDs-Audio-Video,1030994803,ASKEWS & HOLTS LIBRARY SERVICES LTD,493.41,20/11/2023
Delivery Units,Childrens Family Services,Books-CDs-Audio-Video,1030995303,ASKEWS & HOLTS LIBRARY SERVICES LTD,453.05,20/11/2023
Delivery Units,Childrens Family Services,Books-CDs-Audio-Video,1030995403,ASKEWS & HOLTS LIBRARY SERVICES LTD,393.98,20/11/2023
Delivery Units,Childrens Family Services,Books-CDs-Audio-Video,1030996103,ASKEWS & HOLTS LIBRARY SERVICES LTD,9.46,20/11/2023
Delivery Units,Childrens Family Services,Books-CDs-Audio-Video,1031358401,ASKEWS & HOLTS LIBRARY SERVICES LTD,249.19,28/11/2023
Delivery Units,Childrens Family Services,Books-CDs-Audio-Video,1031537701,ASKEWS & HOLTS LIBRARY SERVICES LTD,131.93,28/11/2023
Delivery Units,Strategy and Resources,Advertising,1030794002,GOOD IMPRESSIONS (LONDON) LIMITED,120.00,03/11/2023
Delivery Units,Strategy and Resources,Advertising,1030795202,GOOD IMPRESSIONS (LONDON) LIMITED,90.00,03/11/2023
Delivery Units,Assurance,Other Services,1031576901,Democracy Counts Limited,"1,014.26",30/11/2023
Delivery Units,Customer and Place,Professional Services,1030231802,STOPFORD INFORMATIONSYSTEMSLTD,"9,900.00",06/11/2023
Delivery Units,Customer and Place,Professional Services,1030232102,STOPFORD INFORMATIONSYSTEMSLTD,260.00,06/11/2023
Delivery Units,Assurance,Training,1031166201,PUBLIC POLICY EXCHANGE LTD,99.00,15/11/2023
Delivery Units,Assurance,Professional Services,1031170302,GOOD IMPRESSIONS (LONDON) LIMITED,90.00,16/11/2023
Delivery Units,Assurance,Training,1031074901,Government Events,359.20,13/11/2023
Delivery Units,Childrens Family Services,Other Transfer Payments to Soc,0070199387,ASEND,"2,170.00",13/11/2023
Delivery Units,Childrens Family Services,Legal and Court Fees,0070200152,Bourne Medicolegal Limited,370.50,22/11/2023
Delivery Units,Childrens Family Services,Legal and Court Fees,0070200252,Opus 2 International Limited,158.12,23/11/2023
Delivery Units,Childrens Family Services,Legal and Court Fees,0070200254,Bourne Medicolegal Limited,155.25,23/11/2023
Delivery Units,Childrens Family Services,Legal and Court Fees,0070200255,Bourne Medicolegal Limited,"2,340.00",23/11/2023
Delivery Units,Childrens Family Services,Legal and Court Fees,0070200256,Bourne Medicolegal Limited,390.00,23/11/2023
Delivery Units,Childrens Family Services,Legal and Court Fees,0070200257,Bourne Medicolegal Limited,390.00,23/11/2023
Delivery Units,Childrens Family Services,Legal and Court Fees,0070200114,Luqmani Thompson & Partners,"3,500.00",22/11/2023
Delivery Units,Childrens Family Services,Legal and Court Fees,0070200251,OSBORNES SOLICITORS,500.00,23/11/2023
Delivery Units,Customer and Place,Equipment and Materials Purcha,1030179802,CROMWELL POLYTHENE LTD,"1,740.00",08/11/2023
Delivery Units,Customer and Place,Equipment and Materials Purcha,1030787901,Leafield Environmental Ltd,"4,100.00",02/11/2023
Delivery Units,Customer and Place,Weedspray,1031035101,Weedfree Ltd,"37,383.00",10/11/2023
Delivery Units,Customer and Place,Professional Services,1030962602,Keep Britain Tidy,"4,500.00",09/11/2023
Delivery Units,Customer and Place,Clothing - Protective Clothing,1031457201,SMI INT Group Ltd,150.15,24/11/2023
Delivery Units,Customer and Place,Equipment and Materials Purcha,1030918401,Straight Manufacturing,"1,001.00",07/11/2023
Delivery Units,Adults and Health,Other Agencies - Third Party P,1031121602,THE BARNETGROUP LIMITED,306.12,14/11/2023
Delivery Units,Adults and Health,Other Services,1031408802,ROYAL FREE HAMPSTEAD NHS TRUST,"10,107.73",28/11/2023
Delivery Units,Adults and Health,Other Services,1031035702,Vivantio Limited,"3,678.00",13/11/2023
Delivery Units,Adults and Health,Other Services,1030698102,BARNET EDUCATION AND LEARNING,29.00,01/11/2023
Delivery Units,Adults and Health,Consultants Fees,1031069701,PPL (Private Public Ltd),"32,214.06",13/11/2023
Delivery Units,Adults and Health,Consultants Fees,1031112301,PPL (Private Public Ltd),"14,615.00",14/11/2023
Delivery Units,Adults and Health,Other Services,1031358002,Ariana Banqueting Hall,"2,400.00",23/11/2023
Delivery Units,Public Health,Health authorities - Third Par,1031031402,Central & North West London NHS FT,"11,500.00",10/11/2023
Delivery Units,Public Health,Health authorities - Third Par,1031034802,LEEDS CITY COUNCIL,134.00,13/11/2023
Delivery Units,Public Health,Health authorities - Third Par,1020671703,University Hospitals Birmingham,145.53,09/11/2023
Delivery Units,Public Health,Health authorities - Third Par,1029162501,Chelsea & Westminster Hospital,-381.10,02/11/2023
Delivery Units,Public Health,Health authorities - Third Par,1029648102,Chelsea & Westminster Hospital,"39,866.70",08/11/2023
Delivery Units,Public Health,Health authorities - Third Par,1030793902,East Sussex Healthcare NHS Trust,131.00,02/11/2023
Delivery Units,Public Health,Health authorities - Third Par,1030795502,Chelsea & Westminster Hospital,"39,866.70",02/11/2023
Delivery Units,Public Health,Health authorities - Third Par,1030826902,Central & North West London NHS FT,183.30,03/11/2023
Delivery Units,Public Health,Health authorities - Third Par,1030830902,University Hosp Sussex NHS FT,61.83,03/11/2023
Delivery Units,Public Health,Health authorities - Third Par,1030831102,University Hosp Sussex NHS FT,70.30,03/11/2023
Delivery Units,Public Health,Health authorities - Third Par,1030921202,Guy's and St Thomas' NHS FT,"5,100.44",07/11/2023
Delivery Units,Public Health,Health authorities - Third Par,1030962802,Buckinghamshire Healthcare NHS Trust,365.00,09/11/2023
Delivery Units,Public Health,Health authorities - Third Par,1031034202,University Hospitals Birmingham,129.00,10/11/2023
Delivery Units,Public Health,Health authorities - Third Par,1031541102,King's College Hospital NHS Foundation T,336.38,28/11/2023
Delivery Units,Public Health,Health authorities - Third Par,1031541602,North Middlesex University Hos,"12,209.36",28/11/2023
Delivery Units,Public Health,Health authorities - Third Par,1031541702,Royal Devon University Healthcare NHSFT,172.36,28/11/2023
Delivery Units,Public Health,Health authorities - Third Par,1031542202,Homerton University Hospital,"1,399.84",29/11/2023
Delivery Units,Public Health,Health authorities - Third Par,1031543102,London North West Healthcare NHS Trust,"8,761.57",28/11/2023
Delivery Units,Public Health,Health authorities - Third Par,1031609902,Barnet Federated GP's CIC,"8,100.00",30/11/2023
Delivery Units,Public Health,Other Services,1020468802,GOOD IMPRESSIONS (LONDON) LIMITED,90.00,08/11/2023
Delivery Units,Public Health,Other Transfer Payments to Soc,1031031601,BDLD CIC,"12,581.80",10/11/2023
Delivery Units,Public Health,Other Services,1031033802,BARNET EDUCATION AND LEARNING,600.00,27/11/2023
Delivery Units,Adults and Health,Other Transfer Payments to Soc,1025242302,Pelle LTD,250.00,09/11/2023
Delivery Units,Adults and Health,Professional Services,1030871201,Kabe Limited,875.00,06/11/2023
Delivery Units,Adults and Health,Professional Services,1030962301,ID Medical Group Limited,639.80,10/11/2023
Delivery Units,Adults and Health,Professional Services,1031072801,Action First Assessment Ltd,"4,689.00",13/11/2023
Delivery Units,Adults and Health,Professional Services,1031541502,AMIN ENTERPRISE LTD,175.00,28/11/2023
Delivery Units,Adults and Health,Professional Services,1031543402,AMIN ENTERPRISE LTD,175.00,28/11/2023
Delivery Units,Adults and Health,Other Services,1030710402,BACK CARE SOLUTIONS LIMITED,181.05,13/11/2023
Delivery Units,Adults and Health,Ttl IT & Comms,1031536001,MEDEQUIP ASSISTIVE TECHNOLOGY,"189,852.68",28/11/2023
Delivery Units,Adults and Health,Other Agencies - Third Party P,0090654704,AUTUMN GARDENS,"4,800.00",13/11/2023
Delivery Units,Adults and Health,Other Agencies - Third Party P,0090654708,AUTUMN GARDENS,"3,656.00",13/11/2023
Delivery Units,Adults and Health,Other Agencies - Third Party P,0090655238,CARLTON COURT (TLC GROUP),"4,363.24",14/11/2023
Delivery Units,Adults and Health,Other Agencies - Third Party P,0090655250,CARLTON COURT (TLC GROUP),"7,000.00",14/11/2023
Delivery Units,Adults and Health,Other Agencies - Third Party P,0090655251,CARLTON COURT (TLC GROUP),"7,000.00",14/11/2023
Delivery Units,Adults and Health,Other Agencies - Third Party P,0090655501,CARLTON COURT (TLC GROUP),"4,363.24",14/11/2023
Delivery Units,Adults and Health,Other Agencies - Third Party P,0090655524,CARLTON COURT (TLC GROUP),"6,600.00",14/11/2023
Delivery Units,Adults and Health,Other Agencies - Third Party P,0090655534,CARLTON COURT (TLC GROUP),"20,142.86",14/11/2023
Delivery Units,Adults and Health,Other Agencies - Third Party P,0090657375,BENSLOW MANAGEMENT COMPANY LIMITED,"4,124.57",22/11/2023
Delivery Units,Adults and Health,Fees and Charges,0080069250,LB Barnet - Cop Deputy,"4,170.97",10/11/2023
Delivery Units,Adults and Health,Fees and Charges,0080069330,LB Barnet - Cop Deputy,"1,028.57",10/11/2023
Delivery Units,Adults and Health,Other Agencies - Third Party P,0090649606,AGUDAS ISRAEL HOUSING ASSCTN LTD,"5,544.00",02/11/2023
Delivery Units,Adults and Health,Other Agencies - Third Party P,0090650760,AGUDAS ISRAEL HOUSING ASSCTN LTD,"2,736.86",03/11/2023
Delivery Units,Adults and Health,Other Agencies - Third Party P,0090644992,Candlewood House Care Home,"-2,100.00",20/11/2023
Delivery Units,Adults and Health,Other Agencies - Third Party P,0090650903,Stamford Nursing Centre,"4,317.86",03/11/2023
Delivery Units,Adults and Health,Other Agencies - Third Party P,0090651118,DMP Healthcare (Ogilvy) Ltd,"4,446.29",07/11/2023
Delivery Units,Adults and Health,Other Agencies - Third Party P,0090651119,DMP Healthcare (Ogilvy) Ltd,"4,302.86",07/11/2023
Delivery Units,Adults and Health,Other Agencies - Third Party P,0090651121,NIGHTINGALE HOUSE,"4,084.29",07/11/2023
Delivery Units,Adults and Health,Other Agencies - Third Party P,0090651122,NIGHTINGALE HOUSE,"4,220.43",07/11/2023
Delivery Units,Adults and Health,Other Agencies - Third Party P,0090654740,WESTMINSTER HEALTH CARE LTD,"5,273.59",13/11/2023
Delivery Units,Adults and Health,Other Agencies - Third Party P,0090654741,WESTMINSTER HEALTH CARE LTD,"2,878.57",13/11/2023
Delivery Units,Adults and Health,Other Agencies - Third Party P,0090654742,WESTMINSTER HEALTH CARE LTD,"8,857.14",13/11/2023
Delivery Units,Adults and Health,Other Agencies - Third Party P,0090654743,WESTMINSTER HEALTH CARE LTD,"4,865.45",13/11/2023
Delivery Units,Adults and Health,Other Agencies - Third Party P,0090654744,WESTMINSTER HEALTH CARE LTD,"7,392.22",13/11/2023
Delivery Units,Adults and Health,Other Agencies - Third Party P,0090654745,WESTMINSTER HEALTH CARE LTD,"2,370.92",13/11/2023
Delivery Units,Adults and Health,Other Agencies - Third Party P,0090654746,WESTMINSTER HEALTH CARE LTD,"36,484.16",13/11/2023
Delivery Units,Adults and Health,Other Agencies - Third Party P,0090654758,WESTMINSTER HEALTH CARE LTD,476.74,13/11/2023
Delivery Units,Adults and Health,Other Agencies - Third Party P,0090655012,LIFESTYLE CARE PLC,"3,055.32",14/11/2023
Delivery Units,Adults and Health,Other Agencies - Third Party P,0090655015,FOUR SEASONS HEALTH CARE,"2,944.96",14/11/2023
Delivery Units,Adults and Health,Other Agencies - Third Party P,0090655016,JEWISH CARE,"3,212.00",14/11/2023
Delivery Units,Adults and Health,Other Agencies - Third Party P,0090655018,SONESTA NURSING HOME LTD.,"2,716.68",14/11/2023
Delivery Units,Adults and Health,Other Agencies - Third Party P,0090655020,SAGE NURSING HOME,"4,400.00",14/11/2023
Delivery Units,Adults and Health,Other Agencies - Third Party P,0090655024,ELEANOR PALMER TRUST NO 2 A/C.,"4,400.00",14/11/2023
Delivery Units,Adults and Health,Other Agencies - Third Party P,0090655026,ABBEY RAVENSCROFT PARK NURSING HOME,"3,968.00",14/11/2023
Delivery Units,Adults and Health,Other Agencies - Third Party P,0090655029,JEWISH CARE,"9,938.48",14/11/2023
Delivery Units,Adults and Health,Other Agencies - Third Party P,0090655033,CEDARS NURSING HOME,"3,756.00",14/11/2023
Delivery Units,Adults and Health,Other Agencies - Third Party P,0090655035,BUPA NURSING HOMES LTD - ARKLEY,"9,171.43",14/11/2023
Delivery Units,Adults and Health,Other Agencies - Third Party P,0090655036,APPLE TREE COURT CARE HOME,"21,552.40",14/11/2023
Delivery Units,Adults and Health,Other Agencies - Third Party P,0090655037,APPLE TREE COURT CARE HOME,0.04,14/11/2023
Delivery Units,Adults and Health,Other Agencies - Third Party P,0090655038,FOUR SEASONS HEALTH CARE,905.92,14/11/2023
Delivery Units,Adults and Health,Other Agencies - Third Party P,0090655039,BUPA CARE HOMES,"3,098.28",14/11/2023
Delivery Units,Adults and Health,Other Agencies - Third Party P,0090655044,SONESTA NURSING HOME LTD.,"2,716.68",14/11/2023
Delivery Units,Adults and Health,Other Agencies - Third Party P,0090655045,JEWISH CARE,"2,911.32",14/11/2023
Delivery Units,Adults and Health,Other Agencies - Third Party P,0090655049,APPLE TREE COURT CARE HOME,"4,097.76",14/11/2023
Delivery Units,Adults and Health,Other Agencies - Third Party P,0090655054,ELEANOR PALMER TRUST NO 2 A/C.,"6,578.86",14/11/2023
Delivery Units,Adults and Health,Other Agencies - Third Party P,0090655055,FOUR SEASONS HEALTH CARE,"2,944.96",14/11/2023
Delivery Units,Adults and Health,Other Agencies - Third Party P,0090655056,LIFESTYLE CARE PLC,"3,055.32",14/11/2023
Delivery Units,Adults and Health,Other Agencies - Third Party P,0090655057,JEWISH CARE,"3,140.00",14/11/2023
Delivery Units,Adults and Health,Other Agencies - Third Party P,0090655058,LIFESTYLE CARE PLC,"3,055.32",14/11/2023
Delivery Units,Adults and Health,Other Agencies - Third Party P,0090655062,APPLE TREE COURT CARE HOME,"4,200.00",14/11/2023
Delivery Units,Adults and Health,Other Agencies - Third Party P,0090655066,JEWISH CARE,"3,212.00",14/11/2023
Delivery Units,Adults and Health,Other Agencies - Third Party P,0090655070,BUPA CARE HOMES,"3,098.28",14/11/2023
Delivery Units,Adults and Health,Other Agencies - Third Party P,0090655073,SONESTA NURSING HOME LTD.,"2,716.68",14/11/2023
Delivery Units,Adults and Health,Other Agencies - Third Party P,0090655074,APPLE TREE COURT CARE HOME,"4,701.72",14/11/2023
Delivery Units,Adults and Health,Other Agencies - Third Party P,0090655075,Aarandale Manor Care Home,"4,200.00",14/11/2023
Delivery Units,Adults and Health,Other Agencies - Third Party P,0090655082,APPLE TREE COURT CARE HOME,"4,400.00",14/11/2023
Delivery Units,Adults and Health,Other Agencies - Third Party P,0090655083,BUPA CARE HOMES,"3,098.28",14/11/2023
Delivery Units,Adults and Health,Other Agencies - Third Party P,0090655084,BUPA NURSING HOMES LTD - ARKLEY,"4,016.00",14/11/2023
Delivery Units,Adults and Health,Other Agencies - Third Party P,0090655091,SONESTA NURSING HOME LTD.,"2,716.68",14/11/2023
Delivery Units,Adults and Health,Other Agencies - Third Party P,0090655093,APPLE TREE COURT CARE HOME,"5,400.00",14/11/2023
Delivery Units,Adults and Health,Other Agencies - Third Party P,0090655094,New Century Care (Finchley),"5,208.00",14/11/2023
Delivery Units,Adults and Health,Other Agencies - Third Party P,0090655095,CEDARS NURSING HOME,"5,200.00",14/11/2023
Delivery Units,Adults and Health,Other Agencies - Third Party P,0090655098,FOUR SEASONS HEALTH CARE,"3,684.00",14/11/2023
Delivery Units,Adults and Health,Other Agencies - Third Party P,0090655099,FOUR SEASONS HEALTH CARE,"2,944.96",14/11/2023
Delivery Units,Adults and Health,Other Agencies - Third Party P,0090655100,BUPA CARE HOMES,"3,098.28",14/11/2023
Delivery Units,Adults and Health,Other Agencies - Third Party P,0090655101,APPLE TREE COURT CARE HOME,"4,097.76",14/11/2023
Delivery Units,Adults and Health,Other Agencies - Third Party P,0090655105,ABBEY RAVENSCROFT PARK NURSING HOME,"4,200.00",14/11/2023
Delivery Units,Adults and Health,Other Agencies - Third Party P,0090655107,New Century Care (Finchley),"5,208.00",14/11/2023
Delivery Units,Adults and Health,Other Agencies - Third Party P,0090655108,CEDARS NURSING HOME,"5,200.00",14/11/2023
Delivery Units,Adults and Health,Other Agencies - Third Party P,0090655109,CARE UK COMMUNITY PARTNERSHIPS,"4,363.24",14/11/2023
Delivery Units,Adults and Health,Other Agencies - Third Party P,0090655110,APPLE TREE COURT CARE HOME,"3,969.20",14/11/2023
Delivery Units,Adults and Health,Other Agencies - Third Party P,0090655111,ABBEY RAVENSCROFT PARK NURSING HOME,"4,800.00",14/11/2023
Delivery Units,Adults and Health,Other Agencies - Third Party P,0090655112,Aarandale Manor Care Home,"3,963.24",14/11/2023
Delivery Units,Adults and Health,Other Agencies - Third Party P,0090655113,ABBEY RAVENSCROFT PARK NURSING HOME,"4,800.00",14/11/2023
Delivery Units,Adults and Health,Other Agencies - Third Party P,0090655114,APPLE TREE COURT CARE HOME,"1,000.00",14/11/2023
Delivery Units,Adults and Health,Other Agencies - Third Party P,0090655118,JEWISH CARE,"3,212.00",14/11/2023
Delivery Units,Adults and Health,Other Agencies - Third Party P,0090655122,ABBEY RAVENSCROFT PARK NURSING HOME,"4,800.00",14/11/2023
Delivery Units,Adults and Health,Other Agencies - Third Party P,0090655125,SONESTA NURSING HOME LTD.,"3,642.86",14/11/2023
Delivery Units,Adults and Health,Other Agencies - Third Party P,0090655130,ABBEY RAVENSCROFT PARK NURSING HOME,"5,100.00",14/11/2023
Delivery Units,Adults and Health,Other Agencies - Third Party P,0090655137,CEDARS NURSING HOME,"4,016.00",14/11/2023
Delivery Units,Adults and Health,Other Agencies - Third Party P,0090655157,ABBEY RAVENSCROFT PARK NURSING HOME,"3,752.00",14/11/2023
Delivery Units,Adults and Health,Other Agencies - Third Party P,0090655158,JEWISH CARE,"3,140.00",14/11/2023
Delivery Units,Adults and Health,Other Agencies - Third Party P,0090655160,BUPA CARE HOMES,"1,433.17",14/11/2023
Delivery Units,Adults and Health,Other Agencies - Third Party P,0090655161,LIFESTYLE CARE PLC,"2,237.37",14/11/2023
Delivery Units,Adults and Health,Other Agencies - Third Party P,0090655163,FOUR SEASONS HEALTH CARE,"2,944.96",14/11/2023
Delivery Units,Adults and Health,Other Agencies - Third Party P,0090655168,LIFESTYLE CARE PLC,"3,055.32",14/11/2023
Delivery Units,Adults and Health,Other Agencies - Third Party P,0090655171,SONESTA NURSING HOME LTD.,"2,716.68",14/11/2023
Delivery Units,Adults and Health,Other Agencies - Third Party P,0090655181,ABBEY RAVENSCROFT PARK NURSING HOME,"3,968.00",14/11/2023
Delivery Units,Adults and Health,Other Agencies - Third Party P,0090655182,LIFESTYLE CARE PLC,"3,055.32",14/11/2023
Delivery Units,Adults and Health,Other Agencies - Third Party P,0090655187,APPLE TREE COURT CARE HOME,"4,016.00",14/11/2023
Delivery Units,Adults and Health,Other Agencies - Third Party P,0090655194,JEWISH CARE,"3,140.00",14/11/2023
Delivery Units,Adults and Health,Other Agencies - Third Party P,0090655196,Aarandale Manor Care Home,"4,200.00",14/11/2023
Delivery Units,Adults and Health,Other Agencies - Third Party P,0090655203,CEDARS NURSING HOME,"4,800.00",14/11/2023
Delivery Units,Adults and Health,Other Agencies - Third Party P,0090655206,Lancam Care Services Limited,"4,116.00",14/11/2023
Delivery Units,Adults and Health,Other Agencies - Third Party P,0090655208,SAGE NURSING HOME,"4,952.00",14/11/2023
Delivery Units,Adults and Health,Other Agencies - Third Party P,0090655210,ELEANOR PALMER TRUST NO 2 A/C.,"4,400.00",14/11/2023
Delivery Units,Adults and Health,Other Agencies - Third Party P,0090655212,JEWISH CARE,"3,212.00",14/11/2023
Delivery Units,Adults and Health,Other Agencies - Third Party P,0090655213,CEDARS NURSING HOME,"4,800.00",14/11/2023
Delivery Units,Adults and Health,Other Agencies - Third Party P,0090655219,LIFESTYLE CARE PLC,"3,055.32",14/11/2023
Delivery Units,Adults and Health,Other Agencies - Third Party P,0090655220,SONESTA NURSING HOME LTD.,"2,716.68",14/11/2023
Delivery Units,Adults and Health,Other Agencies - Third Party P,0090655222,ABBEY RAVENSCROFT PARK NURSING HOME,"4,200.00",14/11/2023
Delivery Units,Adults and Health,Other Agencies - Third Party P,0090655225,FOUR SEASONS HEALTH CARE,"2,944.96",14/11/2023
Delivery Units,Adults and Health,Other Agencies - Third Party P,0090655226,ABBEY RAVENSCROFT PARK NURSING HOME,"4,800.00",14/11/2023
Delivery Units,Adults and Health,Other Agencies - Third Party P,0090655227,ELEANOR PALMER TRUST NO 2 A/C.,"4,400.00",14/11/2023
Delivery Units,Adults and Health,Other Agencies - Third Party P,0090655232,New Century Care (Finchley),"5,425.00",14/11/2023
Delivery Units,Adults and Health,Other Agencies - Third Party P,0090655240,CARE UK COMMUNITY PARTNERSHIPS,"4,363.24",14/11/2023
Delivery Units,Adults and Health,Other Agencies - Third Party P,0090655244,BUPA NURSING HOMES LTD - ARKLEY,"4,116.00",14/11/2023
Delivery Units,Adults and Health,Other Agencies - Third Party P,0090655245,New Century Care (Finchley),"10,528.84",14/11/2023
Delivery Units,Adults and Health,Other Agencies - Third Party P,0090655246,JEWISH CARE,"3,140.00",14/11/2023
Delivery Units,Adults and Health,Other Agencies - Third Party P,0090655247,JEWISH CARE,"3,212.00",14/11/2023
Delivery Units,Adults and Health,Other Agencies - Third Party P,0090655248,SONESTA NURSING HOME LTD.,"3,216.00",14/11/2023
Delivery Units,Adults and Health,Other Agencies - Third Party P,0090655249,FOUR SEASONS HEALTH CARE,"4,400.00",14/11/2023
Delivery Units,Adults and Health,Other Agencies - Third Party P,0090655252,LIFESTYLE CARE PLC,"5,521.16",14/11/2023
Delivery Units,Adults and Health,Other Agencies - Third Party P,0090655254,ABBEY RAVENSCROFT PARK NURSING HOME,"4,400.00",14/11/2023
Delivery Units,Adults and Health,Other Agencies - Third Party P,0090655265,FOUR SEASONS HEALTH CARE,"3,800.00",14/11/2023
Delivery Units,Adults and Health,Other Agencies - Third Party P,0090655269,BUPA CARE HOMES,"3,098.28",14/11/2023
Delivery Units,Adults and Health,Other Agencies - Third Party P,0090655272,HENRY NIHILL HOUSE,"3,900.00",14/11/2023
Delivery Units,Adults and Health,Other Agencies - Third Party P,0090655275,SONESTA NURSING HOME LTD.,"3,400.00",14/11/2023
Delivery Units,Adults and Health,Other Agencies - Third Party P,0090655276,JEWISH CARE,"3,140.00",14/11/2023
Delivery Units,Adults and Health,Other Agencies - Third Party P,0090655277,ELEANOR PALMER TRUST NO 2 A/C.,"4,400.00",14/11/2023
Delivery Units,Adults and Health,Other Agencies - Third Party P,0090655278,CARE UK COMMUNITY PARTNERSHIPS,"4,321.16",14/11/2023
Delivery Units,Adults and Health,Other Agencies - Third Party P,0090655280,SONESTA NURSING HOME LTD.,"19,195.02",14/11/2023
Delivery Units,Adults and Health,Other Agencies - Third Party P,0090655281,ABBEY RAVENSCROFT PARK NURSING HOME,"6,128.57",14/11/2023
Delivery Units,Adults and Health,Other Agencies - Third Party P,0090655282,BUPA CARE HOMES,"4,536.77",14/11/2023
Delivery Units,Adults and Health,Other Agencies - Third Party P,0090655286,New Century Care (Finchley),"17,764.86",14/11/2023
Delivery Units,Adults and Health,Other Agencies - Third Party P,0090655295,JEWISH CARE,"3,140.00",14/11/2023
Delivery Units,Adults and Health,Other Agencies - Third Party P,0090655296,CEDARS NURSING HOME,"4,000.00",14/11/2023
Delivery Units,Adults and Health,Other Agencies - Third Party P,0090655304,SONESTA NURSING HOME LTD.,"-15,579.24",14/11/2023
Delivery Units,Adults and Health,Other Agencies - Third Party P,0090655307,JEWISH CARE,"3,140.00",14/11/2023
Delivery Units,Adults and Health,Other Agencies - Third Party P,0090655308,SONESTA NURSING HOME LTD.,"2,716.68",14/11/2023
Delivery Units,Adults and Health,Other Agencies - Third Party P,0090655311,APPLE TREE COURT CARE HOME,"3,588.12",14/11/2023
Delivery Units,Adults and Health,Other Agencies - Third Party P,0090655314,CEDARS NURSING HOME,"4,800.00",14/11/2023
Delivery Units,Adults and Health,Other Agencies - Third Party P,0090655322,BUPA NURSING HOMES LTD - ARKLEY,"-2,451.10",14/11/2023
Delivery Units,Adults and Health,Other Agencies - Third Party P,0090655325,JEWISH CARE,"3,140.00",14/11/2023
Delivery Units,Adults and Health,Other Agencies - Third Party P,0090655326,JEWISH CARE,"3,212.00",14/11/2023
Delivery Units,Adults and Health,Other Agencies - Third Party P,0090655331,FOUR SEASONS HEALTH CARE,"2,944.96",14/11/2023
Delivery Units,Adults and Health,Other Agencies - Third Party P,0090655333,Aarandale Manor Care Home,"6,400.00",14/11/2023
Delivery Units,Adults and Health,Other Agencies - Third Party P,0090655334,APPLE TREE COURT CARE HOME,"-8,970.30",14/11/2023
Delivery Units,Adults and Health,Other Agencies - Third Party P,0090655339,LIFESTYLE CARE PLC,"3,055.32",14/11/2023
Delivery Units,Adults and Health,Other Agencies - Third Party P,0090655340,ABBEY RAVENSCROFT PARK NURSING HOME,"3,968.00",14/11/2023
Delivery Units,Adults and Health,Other Agencies - Third Party P,0090655344,ELEANOR PALMER TRUST NO 2 A/C.,"4,400.00",14/11/2023
Delivery Units,Adults and Health,Other Agencies - Third Party P,0090655345,LIFESTYLE CARE PLC,"3,055.32",14/11/2023
Delivery Units,Adults and Health,Other Agencies - Third Party P,0090655348,Aarandale Manor Care Home,"4,200.00",14/11/2023
Delivery Units,Adults and Health,Other Agencies - Third Party P,0090655353,SAGE NURSING HOME,"4,400.00",14/11/2023
Delivery Units,Adults and Health,Other Agencies - Third Party P,0090655361,New Century Care (Finchley),"5,208.00",14/11/2023
Delivery Units,Adults and Health,Other Agencies - Third Party P,0090655362,LIFESTYLE CARE PLC,"3,055.32",14/11/2023
Delivery Units,Adults and Health,Other Agencies - Third Party P,0090655366,ABBEY RAVENSCROFT PARK NURSING HOME,"4,800.00",14/11/2023
Delivery Units,Adults and Health,Other Agencies - Third Party P,0090655368,JEWISH CARE,"3,212.00",14/11/2023
Delivery Units,Adults and Health,Other Agencies - Third Party P,0090655370,ELEANOR PALMER TRUST NO 2 A/C.,"4,400.00",14/11/2023
Delivery Units,Adults and Health,Other Agencies - Third Party P,0090655372,HENRY NIHILL HOUSE,"3,816.00",14/11/2023
Delivery Units,Adults and Health,Other Agencies - Third Party P,0090655373,SONESTA NURSING HOME LTD.,"3,216.00",14/11/2023
Delivery Units,Adults and Health,Other Agencies - Third Party P,0090655374,HENRY NIHILL HOUSE,"3,816.00",14/11/2023
Delivery Units,Adults and Health,Other Agencies - Third Party P,0090655375,HENRY NIHILL HOUSE,"3,816.00",14/11/2023
Delivery Units,Adults and Health,Other Agencies - Third Party P,0090655376,APPLE TREE COURT CARE HOME,604.46,14/11/2023
Delivery Units,Adults and Health,Other Agencies - Third Party P,0090655381,Aarandale Manor Care Home,"5,200.00",14/11/2023
Delivery Units,Adults and Health,Other Agencies - Third Party P,0090655382,BUPA NURSING HOMES LTD - ARKLEY,"3,800.00",14/11/2023
Delivery Units,Adults and Health,Other Agencies - Third Party P,0090655383,ABBEY RAVENSCROFT PARK NURSING HOME,"4,800.00",14/11/2023
Delivery Units,Adults and Health,Other Agencies - Third Party P,0090655387,New Century Care (Finchley),"5,200.00",14/11/2023
Delivery Units,Adults and Health,Other Agencies - Third Party P,0090655391,APPLE TREE COURT CARE HOME,"3,588.12",14/11/2023
Delivery Units,Adults and Health,Other Agencies - Third Party P,0090655392,BUPA CARE HOMES,"3,098.28",14/11/2023
Delivery Units,Adults and Health,Other Agencies - Third Party P,0090655393,BUPA NURSING HOMES LTD - ARKLEY,"3,098.28",14/11/2023
Delivery Units,Adults and Health,Other Agencies - Third Party P,0090655394,SONESTA NURSING HOME LTD.,-485.12,14/11/2023
Delivery Units,Adults and Health,Other Agencies - Third Party P,0090655395,LIFESTYLE CARE PLC,"3,055.32",14/11/2023
Delivery Units,Adults and Health,Other Agencies - Third Party P,0090655396,ABBEY RAVENSCROFT PARK NURSING HOME,"4,800.00",14/11/2023
Delivery Units,Adults and Health,Other Agencies - Third Party P,0090655398,ABBEY RAVENSCROFT PARK NURSING HOME,"2,400.00",14/11/2023
Delivery Units,Adults and Health,Other Agencies - Third Party P,0090655401,ABBEY RAVENSCROFT PARK NURSING HOME,"5,310.23",14/11/2023
Delivery Units,Adults and Health,Other Agencies - Third Party P,0090655402,LIFESTYLE CARE PLC,"3,055.32",14/11/2023
Delivery Units,Adults and Health,Other Agencies - Third Party P,0090655403,BUPA NURSING HOMES LTD - ARKLEY,"3,214.28",14/11/2023
Delivery Units,Adults and Health,Other Agencies - Third Party P,0090655414,APPLE TREE COURT CARE HOME,"2,709.08",14/11/2023
Delivery Units,Adults and Health,Other Agencies - Third Party P,0090655419,ELEANOR PALMER TRUST NO 2 A/C.,"4,400.00",14/11/2023
Delivery Units,Adults and Health,Other Agencies - Third Party P,0090655425,ELEANOR PALMER TRUST NO 2 A/C.,"4,400.00",14/11/2023
Delivery Units,Adults and Health,Other Agencies - Third Party P,0090655430,APPLE TREE COURT CARE HOME,"3,980.00",14/11/2023
Delivery Units,Adults and Health,Other Agencies - Third Party P,0090655433,APPLE TREE COURT CARE HOME,"3,588.12",14/11/2023
Delivery Units,Adults and Health,Other Agencies - Third Party P,0090655434,APPLE TREE COURT CARE HOME,"3,588.12",14/11/2023
Delivery Units,Adults and Health,Other Agencies - Third Party P,0090655443,LIFESTYLE CARE PLC,"3,055.32",14/11/2023
Delivery Units,Adults and Health,Other Agencies - Third Party P,0090655445,FOUR SEASONS HEALTH CARE,"2,944.96",14/11/2023
Delivery Units,Adults and Health,Other Agencies - Third Party P,0090655453,APPLE TREE COURT CARE HOME,"3,588.12",14/11/2023
Delivery Units,Adults and Health,Other Agencies - Third Party P,0090655454,ABBEY RAVENSCROFT PARK NURSING HOME,"3,968.00",14/11/2023
Delivery Units,Adults and Health,Other Agencies - Third Party P,0090655455,JEWISH CARE,"3,212.00",14/11/2023
Delivery Units,Adults and Health,Other Agencies - Third Party P,0090655459,ABBEY RAVENSCROFT PARK NURSING HOME,"3,968.00",14/11/2023
Delivery Units,Adults and Health,Other Agencies - Third Party P,0090655462,BUPA NURSING HOMES LTD - ARKLEY,"3,098.28",14/11/2023
Delivery Units,Adults and Health,Other Agencies - Third Party P,0090655464,ELEANOR PALMER TRUST NO 2 A/C.,"4,400.00",14/11/2023
Delivery Units,Adults and Health,Other Agencies - Third Party P,0090655469,Aarandale Manor Care Home,"4,200.00",14/11/2023
Delivery Units,Adults and Health,Other Agencies - Third Party P,0090655470,LIFESTYLE CARE PLC,"3,055.32",14/11/2023
Delivery Units,Adults and Health,Other Agencies - Third Party P,0090655472,JEWISH CARE,"3,212.00",14/11/2023
Delivery Units,Adults and Health,Other Agencies - Third Party P,0090655473,ELEANOR PALMER TRUST NO 2 A/C.,"4,400.00",14/11/2023
Delivery Units,Adults and Health,Other Agencies - Third Party P,0090655474,Lancam Care Services Limited,"3,916.00",14/11/2023
Delivery Units,Adults and Health,Other Agencies - Third Party P,0090655477,LIFESTYLE CARE PLC,"3,055.32",14/11/2023
Delivery Units,Adults and Health,Other Agencies - Third Party P,0090655480,SAGE NURSING HOME,"3,256.00",14/11/2023
Delivery Units,Adults and Health,Other Agencies - Third Party P,0090655481,JEWISH CARE,"8,479.92",14/11/2023
Delivery Units,Adults and Health,Other Agencies - Third Party P,0090655482,Lancam Care Services Limited,"4,196.00",14/11/2023
Delivery Units,Adults and Health,Other Agencies - Third Party P,0090655484,FOUR SEASONS HEALTH CARE,"2,944.96",14/11/2023
Delivery Units,Adults and Health,Other Agencies - Third Party P,0090655485,Lancam Care Services Limited,"4,196.00",14/11/2023
Delivery Units,Adults and Health,Other Agencies - Third Party P,0090655488,JEWISH CARE,"4,892.00",14/11/2023
Delivery Units,Adults and Health,Other Agencies - Third Party P,0090655489,JEWISH CARE,"3,140.00",14/11/2023
Delivery Units,Adults and Health,Other Agencies - Third Party P,0090655491,APPLE TREE COURT CARE HOME,"4,763.24",14/11/2023
Delivery Units,Adults and Health,Other Agencies - Third Party P,0090655493,New Century Care (Finchley),"4,774.00",14/11/2023
Delivery Units,Adults and Health,Other Agencies - Third Party P,0090655494,ABBEY RAVENSCROFT PARK NURSING HOME,"4,400.00",14/11/2023
Delivery Units,Adults and Health,Other Agencies - Third Party P,0090655495,FOUR SEASONS HEALTH CARE,"2,944.96",14/11/2023
Delivery Units,Adults and Health,Other Agencies - Third Party P,0090655496,LIFESTYLE CARE PLC,"3,055.32",14/11/2023
Delivery Units,Adults and Health,Other Agencies - Third Party P,0090655497,ABBEY RAVENSCROFT PARK NURSING HOME,"4,800.00",14/11/2023
Delivery Units,Adults and Health,Other Agencies - Third Party P,0090655498,BUPA NURSING HOMES LTD - ARKLEY,"3,616.00",14/11/2023
Delivery Units,Adults and Health,Other Agencies - Third Party P,0090655502,APPLE TREE COURT CARE HOME,"4,763.24",14/11/2023
Delivery Units,Adults and Health,Other Agencies - Third Party P,0090655504,BUPA NURSING HOMES LTD - ARKLEY,"4,116.00",14/11/2023
Delivery Units,Adults and Health,Other Agencies - Third Party P,0090655505,SAGE NURSING HOME,"4,400.00",14/11/2023
Delivery Units,Adults and Health,Other Agencies - Third Party P,0090655508,ABBEY RAVENSCROFT PARK NURSING HOME,"4,800.00",14/11/2023
Delivery Units,Adults and Health,Other Agencies - Third Party P,0090655509,FOUR SEASONS HEALTH CARE,"2,944.96",14/11/2023
Delivery Units,Adults and Health,Other Agencies - Third Party P,0090655510,CEDARS NURSING HOME,"5,600.00",14/11/2023
Delivery Units,Adults and Health,Other Agencies - Third Party P,0090655512,APPLE TREE COURT CARE HOME,"4,097.76",14/11/2023
Delivery Units,Adults and Health,Other Agencies - Third Party P,0090655516,BUPA CARE HOMES,"-2,876.97",14/11/2023
Delivery Units,Adults and Health,Other Agencies - Third Party P,0090655518,BUPA NURSING HOMES LTD - ARKLEY,"3,098.28",14/11/2023
Delivery Units,Adults and Health,Other Agencies - Third Party P,0090655519,CEDARS NURSING HOME,"5,600.00",14/11/2023
Delivery Units,Adults and Health,Other Agencies - Third Party P,0090655520,ABBEY RAVENSCROFT PARK NURSING HOME,"5,200.00",14/11/2023
Delivery Units,Adults and Health,Other Agencies - Third Party P,0090655523,BUPA NURSING HOMES LTD - ARKLEY,"1,182.85",14/11/2023
Delivery Units,Adults and Health,Other Agencies - Third Party P,0090655527,ABBEY RAVENSCROFT PARK NURSING HOME,"1,071.43",14/11/2023
Delivery Units,Adults and Health,Other Agencies - Third Party P,0090655528,Aarandale Manor Care Home,"30,214.29",14/11/2023
Delivery Units,Adults and Health,Other Agencies - Third Party P,0090655529,JEWISH CARE,"4,261.43",14/11/2023
Delivery Units,Adults and Health,Other Agencies - Third Party P,0090655530,LIFESTYLE CARE PLC,"3,965.55",14/11/2023
Delivery Units,Adults and Health,Other Agencies - Third Party P,0090655532,BUPA CARE HOMES,"2,428.57",14/11/2023
Delivery Units,Adults and Health,Other Agencies - Third Party P,0090655533,ABBEY RAVENSCROFT PARK NURSING HOME,"5,938.80",14/11/2023
Delivery Units,Adults and Health,Other Agencies - Third Party P,0090655537,ABBEY RAVENSCROFT PARK NURSING HOME,"7,542.86",14/11/2023
Delivery Units,Adults and Health,Other Agencies - Third Party P,0090655538,BUPA NURSING HOMES LTD - ARKLEY,"22,842.86",14/11/2023
Delivery Units,Adults and Health,Other Agencies - Third Party P,0090655539,BUPA NURSING HOMES LTD - ARKLEY,"18,942.86",14/11/2023
Delivery Units,Adults and Health,Other Agencies - Third Party P,0090655540,ABBEY RAVENSCROFT PARK NURSING HOME,"10,114.29",14/11/2023
Delivery Units,Adults and Health,Other Agencies - Third Party P,0090655542,ABBEY RAVENSCROFT PARK NURSING HOME,"10,010.23",14/11/2023
Delivery Units,Adults and Health,Other Agencies - Third Party P,0090655549,LIFESTYLE CARE PLC,"49,706.72",14/11/2023
Delivery Units,Adults and Health,Other Agencies - Third Party P,0090655550,ABBEY RAVENSCROFT PARK NURSING HOME,"5,971.43",14/11/2023
Delivery Units,Adults and Health,Other Agencies - Third Party P,0090655551,CARE UK COMMUNITY PARTNERSHIPS,"52,203.05",14/11/2023
Delivery Units,Adults and Health,Other Agencies - Third Party P,0090656399,Candlewood House Care Home,"8,595.02",20/11/2023
Delivery Units,Adults and Health,Other Agencies - Third Party P,0090656400,GCH (HATFIELD) Limited,"2,324.76",20/11/2023
Delivery Units,Adults and Health,Other Agencies - Third Party P,0090657344,Candlewood House Care Home,"8,317.76",22/11/2023
Delivery Units,Adults and Health,Other Agencies - Third Party P,0090657346,COOPERSCROFT CARE HOME,"6,428.57",22/11/2023
Delivery Units,Adults and Health,Other Agencies - Third Party P,0090657363,Oakland Primecare Ltd t/a Elsyng House,"7,611.43",22/11/2023
Delivery Units,Adults and Health,Other Agencies - Third Party P,0090657372,Karuna Manor,"2,528.53",22/11/2023
Delivery Units,Adults and Health,Other Agencies - Third Party P,0090657387,TORRINGTON HOMES,"4,071.43",22/11/2023
Delivery Units,Adults and Health,Other Agencies - Third Party P,0090657783,GCH (HATFIELD) Limited,"2,324.76",24/11/2023
Delivery Units,Adults and Health,Other Agencies - Third Party P,0090657784,HUSKARDS NEW CARE LTD,"2,366.70",24/11/2023
Delivery Units,Adults and Health,Other Agencies - Third Party P,0090657788,FERNBANK NURSING HOME.,"5,142.60",24/11/2023
Delivery Units,Adults and Health,Other Agencies - Third Party P,0090657789,FERNBANK NURSING HOME.,"16,501.50",24/11/2023
Delivery Units,Adults and Health,Other Agencies - Third Party P,0090657792,FERNBANK NURSING HOME.,"5,785.50",24/11/2023
Delivery Units,Adults and Health,Other Agencies - Third Party P,0090657793,FERNBANK NURSING HOME.,"4,928.40",24/11/2023
Delivery Units,Adults and Health,Other Agencies - Third Party P,0090657805,WESTMINSTER HEALTH CARE LTD,"4,707.17",24/11/2023
Delivery Units,Adults and Health,Other Agencies - Third Party P,0090658539,DMP Healthcare (Ogilvy) Ltd,"4,302.86",24/11/2023
Delivery Units,Adults and Health,Other Agencies - Third Party P,0090658555,WESTMINSTER HEALTH CARE LTD,"2,785.71",24/11/2023
Delivery Units,Adults and Health,Other Agencies - Third Party P,0090658556,WESTMINSTER HEALTH CARE LTD,"5,103.47",24/11/2023
Delivery Units,Adults and Health,Other Agencies - Third Party P,0090658557,WESTMINSTER HEALTH CARE LTD,"8,571.43",24/11/2023
Delivery Units,Adults and Health,Other Agencies - Third Party P,0090658558,WESTMINSTER HEALTH CARE LTD,"4,708.50",24/11/2023
Delivery Units,Adults and Health,Other Agencies - Third Party P,0090658559,WESTMINSTER HEALTH CARE LTD,"7,153.76",24/11/2023
Delivery Units,Adults and Health,Other Agencies - Third Party P,0090658560,WESTMINSTER HEALTH CARE LTD,"2,798.00",24/11/2023
Delivery Units,Adults and Health,Other Agencies - Third Party P,0090658566,MEERA NURSING HOME LIMITED,"4,088.57",24/11/2023
Delivery Units,Adults and Health,Other Agencies - Third Party P,0090658570,Aspray House Ltd,"2,657.14",24/11/2023
Delivery Units,Adults and Health,Other Agencies - Third Party P,0090658571,Aspray House Ltd,"5,092.86",24/11/2023
Delivery Units,Adults and Health,Other Agencies - Third Party P,0090658572,Victoria Care Centre,"2,940.64",24/11/2023
Delivery Units,Adults and Health,Other Agencies - Third Party P,0090658573,Victoria Care Centre,"3,038.66",24/11/2023
Delivery Units,Adults and Health,Other Agencies - Third Party P,0090659189,Barchester Healthcare,"6,857.14",28/11/2023
Delivery Units,Adults and Health,Other Agencies - Third Party P,0090659190,Barchester Healthcare,"6,000.00",28/11/2023
Delivery Units,Adults and Health,Other Agencies - Third Party P,0090659191,Barchester Healthcare,"4,629.82",28/11/2023
Delivery Units,Adults and Health,Other Agencies - Third Party P,0090659193,Barchester Healthcare,"6,000.00",28/11/2023
Delivery Units,Adults and Health,Other Agencies - Third Party P,0090659195,WILSMERE HOUSE CARE CENTRE,"4,818.73",28/11/2023
Delivery Units,Adults and Health,Other Agencies - Third Party P,0090659206,Westbourne Care Home,"9,155.71",28/11/2023
Delivery Units,Adults and Health,Other Agencies - Third Party P,0090659541,St Matthews Limited,"3,719.70",29/11/2023
Delivery Units,Adults and Health,Other Agencies - Third Party P,0090659542,St Matthews Limited,"15,708.00",29/11/2023
Delivery Units,Adults and Health,Other Agencies - Third Party P,0090659545,St Matthews Limited,"3,719.70",29/11/2023
Delivery Units,Adults and Health,Other Agencies - Third Party P,0090659546,St Matthews Limited,"2,349.93",29/11/2023
Delivery Units,Adults and Health,Other Agencies - Third Party P,0090659547,St Matthews Limited,"7,140.00",29/11/2023
Delivery Units,Adults and Health,Other Agencies - Third Party P,0090660740,NIGHTINGALE HOUSE,"4,084.29",30/11/2023
Delivery Units,Adults and Health,Other Agencies - Third Party P,0090650746,Optimum Support Ltd,"5,314.00",02/11/2023
Delivery Units,Adults and Health,Other Agencies - Third Party P,0090650915,FINBOND LIMITED,"3,782.00",03/11/2023
Delivery Units,Adults and Health,Other Agencies - Third Party P,0090650916,FINBOND LIMITED,"3,764.29",03/11/2023
Delivery Units,Adults and Health,Other Agencies - Third Party P,0090650924,Shenleybury House Ltd,"3,985.71",06/11/2023
Delivery Units,Adults and Health,Other Agencies - Third Party P,0090651501,TBG Mosaic,"2,540.00",08/11/2023
Delivery Units,Adults and Health,Other Agencies - Third Party P,0090651502,TBG Mosaic,"2,540.00",08/11/2023
Delivery Units,Adults and Health,Other Agencies - Third Party P,0090651503,TBG Mosaic,"2,540.00",08/11/2023
Delivery Units,Adults and Health,Other Agencies - Third Party P,0090651505,TBG Mosaic,"2,676.00",08/11/2023
Delivery Units,Adults and Health,Other Agencies - Third Party P,0090651506,TBG Mosaic,"19,476.75",08/11/2023
Delivery Units,Adults and Health,Other Agencies - Third Party P,0090651507,TBG Mosaic,"2,676.00",08/11/2023
Delivery Units,Adults and Health,Other Agencies - Third Party P,0090651508,TBG Mosaic,"2,540.00",08/11/2023
Delivery Units,Adults and Health,Other Agencies - Third Party P,0090651509,TBG Mosaic,"2,540.00",08/11/2023
Delivery Units,Adults and Health,Other Agencies - Third Party P,0090651510,TBG Mosaic,"2,540.00",08/11/2023
Delivery Units,Adults and Health,Other Agencies - Third Party P,0090651512,TBG Mosaic,"2,540.00",08/11/2023
Delivery Units,Adults and Health,Other Agencies - Third Party P,0090651513,TBG Mosaic,"13,863.20",08/11/2023
Delivery Units,Adults and Health,Other Agencies - Third Party P,0090651514,TBG Mosaic,"4,612.00",08/11/2023
Delivery Units,Adults and Health,Other Agencies - Third Party P,0090651515,TBG Mosaic,"12,578.08",08/11/2023
Delivery Units,Adults and Health,Other Agencies - Third Party P,0090651516,TBG Mosaic,"9,673.20",08/11/2023
Delivery Units,Adults and Health,Other Agencies - Third Party P,0090651517,TBG Mosaic,"2,676.00",08/11/2023
Delivery Units,Adults and Health,Other Agencies - Third Party P,0090651518,TBG Mosaic,"2,540.00",08/11/2023
Delivery Units,Adults and Health,Other Agencies - Third Party P,0090651519,TBG Mosaic,"2,540.00",08/11/2023
Delivery Units,Adults and Health,Other Agencies - Third Party P,0090651520,TBG Mosaic,"2,540.00",08/11/2023
Delivery Units,Adults and Health,Other Agencies - Third Party P,0090651521,TBG Mosaic,"2,676.00",08/11/2023
Delivery Units,Adults and Health,Other Agencies - Third Party P,0090651522,TBG Mosaic,"2,676.00",08/11/2023
Delivery Units,Adults and Health,Other Agencies - Third Party P,0090651523,TBG Mosaic,"2,540.00",08/11/2023
Delivery Units,Adults and Health,Other Agencies - Third Party P,0090651524,TBG Mosaic,"2,676.00",08/11/2023
Delivery Units,Adults and Health,Other Agencies - Third Party P,0090651525,TBG Mosaic,"2,676.00",08/11/2023
Delivery Units,Adults and Health,Other Agencies - Third Party P,0090651526,TBG Mosaic,"2,540.00",08/11/2023
Delivery Units,Adults and Health,Other Agencies - Third Party P,0090651527,TBG Mosaic,"2,676.00",08/11/2023
Delivery Units,Adults and Health,Other Agencies - Third Party P,0090651528,TBG Mosaic,"2,540.00",08/11/2023
Delivery Units,Adults and Health,Other Agencies - Third Party P,0090651529,TBG Mosaic,"2,540.00",08/11/2023
Delivery Units,Adults and Health,Other Agencies - Third Party P,0090651530,TBG Mosaic,"2,676.00",08/11/2023
Delivery Units,Adults and Health,Other Agencies - Third Party P,0090651531,TBG Mosaic,"2,540.00",08/11/2023
Delivery Units,Adults and Health,Other Agencies - Third Party P,0090651532,TBG Mosaic,"2,676.00",08/11/2023
Delivery Units,Adults and Health,Other Agencies - Third Party P,0090651533,TBG Mosaic,"2,540.00",08/11/2023
Delivery Units,Adults and Health,Other Agencies - Third Party P,0090651534,TBG Mosaic,"2,676.00",08/11/2023
Delivery Units,Adults and Health,Other Agencies - Third Party P,0090651535,TBG Mosaic,"2,857.92",08/11/2023
Delivery Units,Adults and Health,Other Agencies - Third Party P,0090651536,TBG Mosaic,"2,540.00",08/11/2023
Delivery Units,Adults and Health,Other Agencies - Third Party P,0090651537,TBG Mosaic,"2,676.00",08/11/2023
Delivery Units,Adults and Health,Other Agencies - Third Party P,0090651538,TBG Mosaic,"2,540.00",08/11/2023
Delivery Units,Adults and Health,Other Agencies - Third Party P,0090651539,TBG Mosaic,"2,676.00",08/11/2023
Delivery Units,Adults and Health,Other Agencies - Third Party P,0090651540,TBG Mosaic,"2,676.00",08/11/2023
Delivery Units,Adults and Health,Other Agencies - Third Party P,0090651541,TBG Mosaic,"2,676.00",08/11/2023
Delivery Units,Adults and Health,Other Agencies - Third Party P,0090651542,TBG Mosaic,"2,676.00",08/11/2023
Delivery Units,Adults and Health,Other Agencies - Third Party P,0090651543,TBG Mosaic,"2,676.00",08/11/2023
Delivery Units,Adults and Health,Other Agencies - Third Party P,0090651545,TBG Mosaic,"2,540.00",08/11/2023
Delivery Units,Adults and Health,Other Agencies - Third Party P,0090651547,TBG Mosaic,"2,540.00",08/11/2023
Delivery Units,Adults and Health,Other Agencies - Third Party P,0090651548,TBG Mosaic,"2,540.00",08/11/2023
Delivery Units,Adults and Health,Other Agencies - Third Party P,0090651549,TBG Mosaic,"2,540.00",08/11/2023
Delivery Units,Adults and Health,Other Agencies - Third Party P,0090651550,TBG Mosaic,"2,676.00",08/11/2023
Delivery Units,Adults and Health,Other Agencies - Third Party P,0090651551,TBG Mosaic,"2,540.00",08/11/2023
Delivery Units,Adults and Health,Other Agencies - Third Party P,0090653691,Achieve Together Limited,"11,881.44",10/11/2023
Delivery Units,Adults and Health,Other Agencies - Third Party P,0090653692,Achieve Together Limited,"3,419.96",10/11/2023
Delivery Units,Adults and Health,Other Agencies - Third Party P,0090653707,FINBOND LIMITED,607.14,10/11/2023
Delivery Units,Adults and Health,Other Agencies - Third Party P,0090654730,GCH (North London) t/a The Tudors,"2,346.00",13/11/2023
Delivery Units,Adults and Health,Other Agencies - Third Party P,0090655067,CATHERINE LODGE,"3,200.00",14/11/2023
Delivery Units,Adults and Health,Other Agencies - Third Party P,0090655078,ROSEACRES CARE HOME LIMITED,"1,704.00",14/11/2023
Delivery Units,Adults and Health,Other Agencies - Third Party P,0090655087,CATHERINE LODGE,"3,800.00",14/11/2023
Delivery Units,Adults and Health,Other Agencies - Third Party P,0090655102,CARLTON COURT (TLC GROUP),"5,200.00",14/11/2023
Delivery Units,Adults and Health,Other Agencies - Third Party P,0090655126,ROSEACRES CARE HOME LIMITED,"3,800.00",14/11/2023
Delivery Units,Adults and Health,Other Agencies - Third Party P,0090655127,ROSEACRES CARE HOME LIMITED,"4,400.00",14/11/2023
Delivery Units,Adults and Health,Other Agencies - Third Party P,0090655129,CATHERINE LODGE,"2,171.43",14/11/2023
Delivery Units,Adults and Health,Other Agencies - Third Party P,0090655148,ROSEACRES CARE HOME LIMITED,"3,336.00",14/11/2023
Delivery Units,Adults and Health,Other Agencies - Third Party P,0090655167,CATHERINE LODGE,"3,580.00",14/11/2023
Delivery Units,Adults and Health,Other Agencies - Third Party P,0090655169,CARLTON COURT (TLC GROUP),"5,800.00",14/11/2023
Delivery Units,Adults and Health,Other Agencies - Third Party P,0090655175,CARLTON COURT (TLC GROUP),"5,400.00",14/11/2023
Delivery Units,Adults and Health,Other Agencies - Third Party P,0090655180,ROSEACRES CARE HOME LIMITED,"3,416.00",14/11/2023
Delivery Units,Adults and Health,Other Agencies - Third Party P,0090655192,CATHERINE LODGE,"3,800.00",14/11/2023
Delivery Units,Adults and Health,Other Agencies - Third Party P,0090655198,ROSEACRES CARE HOME LIMITED,"3,074.00",14/11/2023
Delivery Units,Adults and Health,Other Agencies - Third Party P,0090655215,ROSEACRES CARE HOME LIMITED,"3,616.00",14/11/2023
Delivery Units,Adults and Health,Other Agencies - Third Party P,0090655223,CATHERINE LODGE,"3,800.00",14/11/2023
Delivery Units,Adults and Health,Other Agencies - Third Party P,0090655257,CATHERINE LODGE,"3,800.00",14/11/2023
Delivery Units,Adults and Health,Other Agencies - Third Party P,0090655266,CATHERINE LODGE,"3,800.00",14/11/2023
Delivery Units,Adults and Health,Other Agencies - Third Party P,0090655273,ROSEACRES CARE HOME LIMITED,"3,800.00",14/11/2023
Delivery Units,Adults and Health,Other Agencies - Third Party P,0090655293,CATHERINE LODGE,"3,000.00",14/11/2023
Delivery Units,Adults and Health,Other Agencies - Third Party P,0090655297,CARLTON COURT (TLC GROUP),"6,376.16",14/11/2023
Delivery Units,Adults and Health,Other Agencies - Third Party P,0090655301,ROSEACRES CARE HOME LIMITED,"3,336.00",14/11/2023
Delivery Units,Adults and Health,Other Agencies - Third Party P,0090655328,ROSEACRES CARE HOME LIMITED,"3,616.00",14/11/2023
Delivery Units,Adults and Health,Other Agencies - Third Party P,0090655335,CATHERINE LODGE,"3,200.00",14/11/2023
Delivery Units,Adults and Health,Other Agencies - Third Party P,0090655343,ROSEACRES CARE HOME LIMITED,"3,074.00",14/11/2023
Delivery Units,Adults and Health,Other Agencies - Third Party P,0090655352,ROSEACRES CARE HOME LIMITED,"3,574.00",14/11/2023
Delivery Units,Adults and Health,Other Agencies - Third Party P,0090655360,ROSEACRES CARE HOME LIMITED,"3,620.00",14/11/2023
Delivery Units,Adults and Health,Other Agencies - Third Party P,0090655363,ROSEACRES CARE HOME LIMITED,"3,974.00",14/11/2023
Delivery Units,Adults and Health,Other Agencies - Third Party P,0090655364,ROSEACRES CARE HOME LIMITED,"3,800.00",14/11/2023
Delivery Units,Adults and Health,Other Agencies - Third Party P,0090655390,CATHERINE LODGE,"3,800.00",14/11/2023
Delivery Units,Adults and Health,Other Agencies - Third Party P,0090655432,ROSEACRES CARE HOME LIMITED,"3,616.00",14/11/2023
Delivery Units,Adults and Health,Other Agencies - Third Party P,0090655465,ROSEACRES CARE HOME LIMITED,"3,416.00",14/11/2023
Delivery Units,Adults and Health,Other Agencies - Third Party P,0090655531,ROSEACRES CARE HOME LIMITED,"4,478.57",14/11/2023
Delivery Units,Adults and Health,Other Agencies - Third Party P,0090655553,ROSEACRES CARE HOME LIMITED,"30,642.86",14/11/2023
Delivery Units,Adults and Health,Other Agencies - Third Party P,0090655565,Achieve Together Limited,"3,166.64",14/11/2023
Delivery Units,Adults and Health,Other Agencies - Third Party P,0090656179,TBG Mosaic,"2,540.00",20/11/2023
Delivery Units,Adults and Health,Other Agencies - Third Party P,0090656180,TBG Mosaic,"2,540.00",20/11/2023
Delivery Units,Adults and Health,Other Agencies - Third Party P,0090656181,TBG Mosaic,"2,540.00",20/11/2023
Delivery Units,Adults and Health,Other Agencies - Third Party P,0090656183,TBG Mosaic,"2,676.00",20/11/2023
Delivery Units,Adults and Health,Other Agencies - Third Party P,0090656184,TBG Mosaic,"8,507.40",20/11/2023
Delivery Units,Adults and Health,Other Agencies - Third Party P,0090656185,TBG Mosaic,"2,676.00",20/11/2023
Delivery Units,Adults and Health,Other Agencies - Third Party P,0090656186,TBG Mosaic,"2,540.00",20/11/2023
Delivery Units,Adults and Health,Other Agencies - Third Party P,0090656187,TBG Mosaic,"2,540.00",20/11/2023
Delivery Units,Adults and Health,Other Agencies - Third Party P,0090656188,TBG Mosaic,"2,540.00",20/11/2023
Delivery Units,Adults and Health,Other Agencies - Third Party P,0090656190,TBG Mosaic,"2,540.00",20/11/2023
Delivery Units,Adults and Health,Other Agencies - Third Party P,0090656191,TBG Mosaic,"2,676.00",20/11/2023
Delivery Units,Adults and Health,Other Agencies - Third Party P,0090656192,TBG Mosaic,"2,540.00",20/11/2023
Delivery Units,Adults and Health,Other Agencies - Third Party P,0090656193,TBG Mosaic,"2,676.00",20/11/2023
Delivery Units,Adults and Health,Other Agencies - Third Party P,0090656194,TBG Mosaic,"2,540.00",20/11/2023
Delivery Units,Adults and Health,Other Agencies - Third Party P,0090656195,TBG Mosaic,"2,676.00",20/11/2023
Delivery Units,Adults and Health,Other Agencies - Third Party P,0090656196,TBG Mosaic,"2,857.92",20/11/2023
Delivery Units,Adults and Health,Other Agencies - Third Party P,0090656197,TBG Mosaic,"2,540.00",20/11/2023
Delivery Units,Adults and Health,Other Agencies - Third Party P,0090656198,TBG Mosaic,"2,676.00",20/11/2023
Delivery Units,Adults and Health,Other Agencies - Third Party P,0090656199,TBG Mosaic,"2,540.00",20/11/2023
Delivery Units,Adults and Health,Other Agencies - Third Party P,0090656200,TBG Mosaic,"2,676.00",20/11/2023
Delivery Units,Adults and Health,Other Agencies - Third Party P,0090656201,TBG Mosaic,"2,676.00",20/11/2023
Delivery Units,Adults and Health,Other Agencies - Third Party P,0090656202,TBG Mosaic,"2,676.00",20/11/2023
Delivery Units,Adults and Health,Other Agencies - Third Party P,0090656203,TBG Mosaic,"2,540.00",20/11/2023
Delivery Units,Adults and Health,Other Agencies - Third Party P,0090656204,TBG Mosaic,"13,863.20",20/11/2023
Delivery Units,Adults and Health,Other Agencies - Third Party P,0090656205,TBG Mosaic,"4,612.00",20/11/2023
Delivery Units,Adults and Health,Other Agencies - Third Party P,0090656206,TBG Mosaic,"17,633.08",20/11/2023
Delivery Units,Adults and Health,Other Agencies - Third Party P,0090656207,TBG Mosaic,"9,673.20",20/11/2023
Delivery Units,Adults and Health,Other Agencies - Third Party P,0090656208,TBG Mosaic,"2,676.00",20/11/2023
Delivery Units,Adults and Health,Other Agencies - Third Party P,0090656209,TBG Mosaic,"2,540.00",20/11/2023
Delivery Units,Adults and Health,Other Agencies - Third Party P,0090656210,TBG Mosaic,"2,540.00",20/11/2023
Delivery Units,Adults and Health,Other Agencies - Third Party P,0090656211,TBG Mosaic,"2,540.00",20/11/2023
Delivery Units,Adults and Health,Other Agencies - Third Party P,0090656212,TBG Mosaic,"2,676.00",20/11/2023
Delivery Units,Adults and Health,Other Agencies - Third Party P,0090656213,TBG Mosaic,"2,676.00",20/11/2023
Delivery Units,Adults and Health,Other Agencies - Third Party P,0090656214,TBG Mosaic,"2,540.00",20/11/2023
Delivery Units,Adults and Health,Other Agencies - Third Party P,0090656215,TBG Mosaic,"2,676.00",20/11/2023
Delivery Units,Adults and Health,Other Agencies - Third Party P,0090656216,TBG Mosaic,"2,676.00",20/11/2023
Delivery Units,Adults and Health,Other Agencies - Third Party P,0090656217,TBG Mosaic,"2,540.00",20/11/2023
Delivery Units,Adults and Health,Other Agencies - Third Party P,0090656218,TBG Mosaic,"2,676.00",20/11/2023
Delivery Units,Adults and Health,Other Agencies - Third Party P,0090656219,TBG Mosaic,"2,540.00",20/11/2023
Delivery Units,Adults and Health,Other Agencies - Third Party P,0090656220,TBG Mosaic,"2,676.00",20/11/2023
Delivery Units,Adults and Health,Other Agencies - Third Party P,0090656221,TBG Mosaic,"2,676.00",20/11/2023
Delivery Units,Adults and Health,Other Agencies - Third Party P,0090656223,TBG Mosaic,"2,540.00",20/11/2023
Delivery Units,Adults and Health,Other Agencies - Third Party P,0090656225,TBG Mosaic,"2,540.00",20/11/2023
Delivery Units,Adults and Health,Other Agencies - Third Party P,0090656226,TBG Mosaic,"2,540.00",20/11/2023
Delivery Units,Adults and Health,Other Agencies - Third Party P,0090656227,TBG Mosaic,"2,540.00",20/11/2023
Delivery Units,Adults and Health,Other Agencies - Third Party P,0090656228,TBG Mosaic,"2,676.00",20/11/2023
Delivery Units,Adults and Health,Other Agencies - Third Party P,0090656229,TBG Mosaic,"2,540.00",20/11/2023
Delivery Units,Adults and Health,Other Agencies - Third Party P,0090657342,TENTERDEN HOUSE,"4,142.19",22/11/2023
Delivery Units,Adults and Health,Other Agencies - Third Party P,0090657391,Achieve Together Limited,"3,030.04",22/11/2023
Delivery Units,Adults and Health,Other Agencies - Third Party P,0090657395,Achieve Together Limited,"3,419.96",22/11/2023
Delivery Units,Adults and Health,Other Agencies - Third Party P,0090658545,Shenleybury House Ltd,"3,857.14",24/11/2023
Delivery Units,Adults and Health,Other Agencies - Third Party P,0090658564,Achieve Together Limited,"11,881.44",24/11/2023
Delivery Units,Adults and Health,Other Agencies - Third Party P,0090660724,Optimum Support Ltd,"6,642.50",30/11/2023
Delivery Units,Adults and Health,Fees and Charges,0080071563,LB Barnet - Cop Deputy,"1,587.81",15/11/2023
Delivery Units,Adults and Health,Other Agencies - Third Party P,0090654711,LIVABILITY,"3,528.28",13/11/2023
Delivery Units,Adults and Health,Other Agencies - Third Party P,0090654713,LIVABILITY,"3,740.44",13/11/2023
Delivery Units,Adults and Health,Other Agencies - Third Party P,0090654716,LIVABILITY,"4,720.12",13/11/2023
Delivery Units,Adults and Health,Other Agencies - Third Party P,0090655486,WOODFIELD HOUSE,"14,081.60",14/11/2023
Delivery Units,Adults and Health,Other Agencies - Third Party P,0090650762,AGUDAS ISRAEL HOUSING ASSCTN LTD,"4,428.57",03/11/2023
Delivery Units,Adults and Health,Other Agencies - Third Party P,0090650763,AGUDAS ISRAEL HOUSING ASSCTN LTD,"12,493.00",03/11/2023
Delivery Units,Adults and Health,Other Agencies - Third Party P,0090650914,Friends of The Elderly (Retired Nurses,"5,358.35",03/11/2023
Delivery Units,Adults and Health,Other Agencies - Third Party P,0090650919,QUANTUM CARE LIMITED,"4,207.14",03/11/2023
Delivery Units,Adults and Health,Other Agencies - Third Party P,0090650921,Allied Care (MH) Ltd,"5,168.00",06/11/2023
Delivery Units,Adults and Health,Other Agencies - Third Party P,0090650926,Avon Lodge UK Ltd,"3,985.71",06/11/2023
Delivery Units,Adults and Health,Other Agencies - Third Party P,0090651120,NIGHTINGALE HOUSE,"3,826.29",07/11/2023
Delivery Units,Adults and Health,Other Agencies - Third Party P,0090651123,NIGHTINGALE HOUSE,"3,702.86",07/11/2023
Delivery Units,Adults and Health,Other Agencies - Third Party P,0090651124,NIGHTINGALE HOUSE,"3,660.00",07/11/2023
Delivery Units,Adults and Health,Other Agencies - Third Party P,0090651125,NIGHTINGALE HOUSE,"3,702.86",07/11/2023
Delivery Units,Adults and Health,Other Agencies - Third Party P,0090651127,NIGHTINGALE HOUSE,"3,814.29",07/11/2023
Delivery Units,Adults and Health,Other Agencies - Third Party P,0090651128,NIGHTINGALE HOUSE,"3,826.29",07/11/2023
Delivery Units,Adults and Health,Other Agencies - Third Party P,0090651130,NIGHTINGALE HOUSE,"3,782.00",07/11/2023
Delivery Units,Adults and Health,Other Agencies - Third Party P,0090651131,NIGHTINGALE HOUSE,"3,941.43",07/11/2023
Delivery Units,Adults and Health,Other Agencies - Third Party P,0090653694,Brownlow Enterprises Ltd,"3,578.33",10/11/2023
Delivery Units,Adults and Health,Other Agencies - Third Party P,0090653695,Brownlow Enterprises Ltd,"3,985.67",10/11/2023
Delivery Units,Adults and Health,Other Agencies - Third Party P,0090653696,Brownlow Enterprises Ltd,"3,830.67",10/11/2023
Delivery Units,Adults and Health,Other Agencies - Third Party P,0090653697,Brownlow Enterprises Ltd,"3,556.01",10/11/2023
Delivery Units,Adults and Health,Other Agencies - Third Party P,0090653700,Brownlow Enterprises Ltd,"3,334.67",10/11/2023
Delivery Units,Adults and Health,Other Agencies - Third Party P,0090653701,Brownlow Enterprises Ltd,"4,207.14",10/11/2023
Delivery Units,Adults and Health,Other Agencies - Third Party P,0090653702,Brownlow Enterprises Ltd,"3,830.71",10/11/2023
Delivery Units,Adults and Health,Other Agencies - Third Party P,0090653703,Brownlow Enterprises Ltd,"4,207.14",10/11/2023
Delivery Units,Adults and Health,Other Agencies - Third Party P,0090653704,Brownlow Enterprises Ltd,"1,628.57",10/11/2023
Delivery Units,Adults and Health,Other Agencies - Third Party P,0090654707,ANASTASIA LODGE,"3,620.00",13/11/2023
Delivery Units,Adults and Health,Other Agencies - Third Party P,0090654719,THE WOODSIDE HOME,"3,200.00",13/11/2023
Delivery Units,Adults and Health,Other Agencies - Third Party P,0090654720,THE WOODSIDE HOME,"3,200.00",13/11/2023
Delivery Units,Adults and Health,Other Agencies - Third Party P,0090654721,THE WOODSIDE HOME,"2,676.00",13/11/2023
Delivery Units,Adults and Health,Other Agencies - Third Party P,0090654722,THE WOODSIDE HOME,"2,540.00",13/11/2023
Delivery Units,Adults and Health,Other Agencies - Third Party P,0090654723,THE WOODSIDE HOME,"2,800.00",13/11/2023
Delivery Units,Adults and Health,Other Agencies - Third Party P,0090654725,EASTSIDE HOUSE CARE HOME,"3,800.00",13/11/2023
Delivery Units,Adults and Health,Other Agencies - Third Party P,0090654727,EASTSIDE HOUSE CARE HOME,"3,720.00",13/11/2023
Delivery Units,Adults and Health,Other Agencies - Third Party P,0090654731,Allied Care (MH) Ltd,"5,168.00",13/11/2023
Delivery Units,Adults and Health,Other Agencies - Third Party P,0090654747,NIGHTINGALE HOUSE,"4,071.43",13/11/2023
Delivery Units,Adults and Health,Other Agencies - Third Party P,0090654748,NIGHTINGALE HOUSE,"4,207.14",13/11/2023
Delivery Units,Adults and Health,Other Agencies - Third Party P,0090654749,NIGHTINGALE HOUSE,135.71,13/11/2023
Delivery Units,Adults and Health,Other Agencies - Third Party P,0090655019,NAZARETH HOUSE,"2,740.00",14/11/2023
Delivery Units,Adults and Health,Other Agencies - Third Party P,0090655021,ELM PARK LODGE,"3,384.92",14/11/2023
Delivery Units,Adults and Health,Other Agencies - Third Party P,0090655023,JEWISH CARE,"3,056.00",14/11/2023
Delivery Units,Adults and Health,Other Agencies - Third Party P,0090655034,THE LIMES RESIDENTIAL HOME,"3,376.00",14/11/2023
Delivery Units,Adults and Health,Other Agencies - Third Party P,0090655041,JEWISH CARE,"3,056.00",14/11/2023
Delivery Units,Adults and Health,Other Agencies - Third Party P,0090655042,JEWISH CARE,"3,056.00",14/11/2023
Delivery Units,Adults and Health,Other Agencies - Third Party P,0090655043,JEWISH CARE,"3,056.00",14/11/2023
Delivery Units,Adults and Health,Other Agencies - Third Party P,0090655046,THE LIMES RESIDENTIAL HOME,"3,336.00",14/11/2023
Delivery Units,Adults and Health,Other Agencies - Third Party P,0090655047,JEWISH CARE,"2,896.00",14/11/2023
Delivery Units,Adults and Health,Other Agencies - Third Party P,0090655051,JEWISH CARE,"2,896.00",14/11/2023
Delivery Units,Adults and Health,Other Agencies - Third Party P,0090655052,ELEANOR PALMER TRUST NO 2 A/C.,"4,400.00",14/11/2023
Delivery Units,Adults and Health,Other Agencies - Third Party P,0090655053,ELEANOR PALMER TRUST NO 2 A/C.,"4,400.00",14/11/2023
Delivery Units,Adults and Health,Other Agencies - Third Party P,0090655061,Aarandale Manor Care Home,"5,000.00",14/11/2023
Delivery Units,Adults and Health,Other Agencies - Third Party P,0090655063,JEWISH CARE,"3,720.36",14/11/2023
Delivery Units,Adults and Health,Other Agencies - Third Party P,0090655064,JEWISH CARE,"3,056.00",14/11/2023
Delivery Units,Adults and Health,Other Agencies - Third Party P,0090655065,NAZARETH HOUSE,"2,890.08",14/11/2023
Delivery Units,Adults and Health,Other Agencies - Third Party P,0090655069,BUPA NURSING HOMES LTD - ARKLEY,"3,166.36",14/11/2023
Delivery Units,Adults and Health,Other Agencies - Third Party P,0090655076,NAZARETH HOUSE,"2,740.00",14/11/2023
Delivery Units,Adults and Health,Other Agencies - Third Party P,0090655077,JEWISH CARE,"7,874.40",14/11/2023
Delivery Units,Adults and Health,Other Agencies - Third Party P,0090655079,ELMHURST RESIDENTIAL HOME,"4,000.00",14/11/2023
Delivery Units,Adults and Health,Other Agencies - Third Party P,0090655080,APPLE TREE COURT CARE HOME,"3,604.00",14/11/2023
Delivery Units,Adults and Health,Other Agencies - Third Party P,0090655090,NAZARETH HOUSE,"4,828.88",14/11/2023
Delivery Units,Adults and Health,Other Agencies - Third Party P,0090655097,JEWISH CARE,"3,056.00",14/11/2023
Delivery Units,Adults and Health,Other Agencies - Third Party P,0090655104,CEDARS NURSING HOME,"5,200.00",14/11/2023
Delivery Units,Adults and Health,Other Agencies - Third Party P,0090655106,CARE UK COMMUNITY PARTNERSHIPS,"3,852.00",14/11/2023
Delivery Units,Adults and Health,Other Agencies - Third Party P,0090655116,CARE UK COMMUNITY PARTNERSHIPS,"7,704.00",14/11/2023
Delivery Units,Adults and Health,Other Agencies - Third Party P,0090655117,SAGE NURSING HOME,"3,256.00",14/11/2023
Delivery Units,Adults and Health,Other Agencies - Third Party P,0090655120,JEWISH CARE,"3,052.00",14/11/2023
Delivery Units,Adults and Health,Other Agencies - Third Party P,0090655124,NAZARETH HOUSE,"4,400.00",14/11/2023
Delivery Units,Adults and Health,Other Agencies - Third Party P,0090655133,BUPA CARE HOMES,"2,732.00",14/11/2023
Delivery Units,Adults and Health,Other Agencies - Third Party P,0090655139,ELEANOR PALMER TRUST NO 2 A/C.,"4,000.00",14/11/2023
Delivery Units,Adults and Health,Other Agencies - Third Party P,0090655142,JEWISH CARE,"4,481.48",14/11/2023
Delivery Units,Adults and Health,Other Agencies - Third Party P,0090655145,JEWISH CARE,"3,056.00",14/11/2023
Delivery Units,Adults and Health,Other Agencies - Third Party P,0090655147,JEWISH CARE,"3,056.00",14/11/2023
Delivery Units,Adults and Health,Other Agencies - Third Party P,0090655159,JEWISH CARE,"3,056.00",14/11/2023
Delivery Units,Adults and Health,Other Agencies - Third Party P,0090655170,JEWISH CARE,"3,056.00",14/11/2023
Delivery Units,Adults and Health,Other Agencies - Third Party P,0090655174,JEWISH CARE,"5,286.40",14/11/2023
Delivery Units,Adults and Health,Other Agencies - Third Party P,0090655177,LIFESTYLE CARE PLC,"3,200.00",14/11/2023
Delivery Units,Adults and Health,Other Agencies - Third Party P,0090655178,ELMHURST RESIDENTIAL HOME,"3,800.00",14/11/2023
Delivery Units,Adults and Health,Other Agencies - Third Party P,0090655179,JEWISH CARE,"3,056.00",14/11/2023
Delivery Units,Adults and Health,Other Agencies - Third Party P,0090655184,NAZARETH HOUSE,"2,890.08",14/11/2023
Delivery Units,Adults and Health,Other Agencies - Third Party P,0090655185,JEWISH CARE,"2,896.00",14/11/2023
Delivery Units,Adults and Health,Other Agencies - Third Party P,0090655191,CEDARS NURSING HOME,"4,800.00",14/11/2023
Delivery Units,Adults and Health,Other Agencies - Third Party P,0090655193,JEWISH CARE,"3,056.00",14/11/2023
Delivery Units,Adults and Health,Other Agencies - Third Party P,0090655197,BUPA CARE HOMES,"3,577.92",14/11/2023
Delivery Units,Adults and Health,Other Agencies - Third Party P,0090655199,SAGE NURSING HOME,"3,620.00",14/11/2023
Delivery Units,Adults and Health,Other Agencies - Third Party P,0090655201,ELEANOR PALMER TRUST NO 2 A/C.,"4,400.00",14/11/2023
Delivery Units,Adults and Health,Other Agencies - Third Party P,0090655202,JEWISH CARE,"3,056.00",14/11/2023
Delivery Units,Adults and Health,Other Agencies - Third Party P,0090655204,NAZARETH HOUSE,"2,890.08",14/11/2023
Delivery Units,Adults and Health,Other Agencies - Third Party P,0090655209,ELMHURST RESIDENTIAL HOME,"3,600.00",14/11/2023
Delivery Units,Adults and Health,Other Agencies - Third Party P,0090655211,NAZARETH HOUSE,"2,740.00",14/11/2023
Delivery Units,Adults and Health,Other Agencies - Third Party P,0090655217,APPLE TREE COURT CARE HOME,"3,604.00",14/11/2023
Delivery Units,Adults and Health,Other Agencies - Third Party P,0090655218,APPLE TREE COURT CARE HOME,"3,604.00",14/11/2023
Delivery Units,Adults and Health,Other Agencies - Third Party P,0090655229,THE LIMES RESIDENTIAL HOME,"3,620.00",14/11/2023
Delivery Units,Adults and Health,Other Agencies - Third Party P,0090655233,JEWISH CARE,"2,896.00",14/11/2023
Delivery Units,Adults and Health,Other Agencies - Third Party P,0090655235,APPLE TREE COURT CARE HOME,"4,556.00",14/11/2023
Delivery Units,Adults and Health,Other Agencies - Third Party P,0090655239,LIFESTYLE CARE PLC,"3,604.00",14/11/2023
Delivery Units,Adults and Health,Other Agencies - Third Party P,0090655241,Aarandale Manor Care Home,"5,200.00",14/11/2023
Delivery Units,Adults and Health,Other Agencies - Third Party P,0090655253,NAZARETH HOUSE,"3,019.68",14/11/2023
Delivery Units,Adults and Health,Other Agencies - Third Party P,0090655255,CARE UK COMMUNITY PARTNERSHIPS,"3,852.00",14/11/2023
Delivery Units,Adults and Health,Other Agencies - Third Party P,0090655256,APPLE TREE COURT CARE HOME,"5,124.00",14/11/2023
Delivery Units,Adults and Health,Other Agencies - Third Party P,0090655258,NAZARETH HOUSE,"3,019.68",14/11/2023
Delivery Units,Adults and Health,Other Agencies - Third Party P,0090655259,NAZARETH HOUSE,"3,019.68",14/11/2023
Delivery Units,Adults and Health,Other Agencies - Third Party P,0090655260,Aarandale Manor Care Home,"5,000.00",14/11/2023
Delivery Units,Adults and Health,Other Agencies - Third Party P,0090655262,THE LIMES RESIDENTIAL HOME,"3,400.00",14/11/2023
Delivery Units,Adults and Health,Other Agencies - Third Party P,0090655264,NAZARETH HOUSE,"2,890.08",14/11/2023
Delivery Units,Adults and Health,Other Agencies - Third Party P,0090655267,BUPA CARE HOMES,"3,166.36",14/11/2023
Delivery Units,Adults and Health,Other Agencies - Third Party P,0090655268,CEDARS NURSING HOME,"5,200.00",14/11/2023
Delivery Units,Adults and Health,Other Agencies - Third Party P,0090655285,NAZARETH HOUSE,"3,700.71",14/11/2023
Delivery Units,Adults and Health,Other Agencies - Third Party P,0090655290,SAGE NURSING HOME,"2,856.00",14/11/2023
Delivery Units,Adults and Health,Other Agencies - Third Party P,0090655294,THE LIMES RESIDENTIAL HOME,"2,892.00",14/11/2023
Delivery Units,Adults and Health,Other Agencies - Third Party P,0090655298,NAZARETH HOUSE,"1,663.57",14/11/2023
Delivery Units,Adults and Health,Other Agencies - Third Party P,0090655300,THE LIMES RESIDENTIAL HOME,"2,892.00",14/11/2023
Delivery Units,Adults and Health,Other Agencies - Third Party P,0090655306,ELEANOR PALMER TRUST NO 2 A/C.,"4,400.00",14/11/2023
Delivery Units,Adults and Health,Other Agencies - Third Party P,0090655310,ELEANOR PALMER TRUST NO 2 A/C.,"4,000.00",14/11/2023
Delivery Units,Adults and Health,Other Agencies - Third Party P,0090655312,JEWISH CARE,"2,896.00",14/11/2023
Delivery Units,Adults and Health,Other Agencies - Third Party P,0090655313,JEWISH CARE,"3,056.00",14/11/2023
Delivery Units,Adults and Health,Other Agencies - Third Party P,0090655317,APPLE TREE COURT CARE HOME,"4,400.00",14/11/2023
Delivery Units,Adults and Health,Other Agencies - Third Party P,0090655318,JEWISH CARE,"3,056.00",14/11/2023
Delivery Units,Adults and Health,Other Agencies - Third Party P,0090655319,ABBEY RAVENSCROFT PARK NURSING HOME,"4,032.20",14/11/2023
Delivery Units,Adults and Health,Other Agencies - Third Party P,0090655320,JEWISH CARE,"2,896.00",14/11/2023
Delivery Units,Adults and Health,Other Agencies - Third Party P,0090655323,JEWISH CARE,"3,056.00",14/11/2023
Delivery Units,Adults and Health,Other Agencies - Third Party P,0090655324,JEWISH CARE,"3,056.00",14/11/2023
Delivery Units,Adults and Health,Other Agencies - Third Party P,0090655327,ELEANOR PALMER TRUST NO 2 A/C.,"4,400.00",14/11/2023
Delivery Units,Adults and Health,Other Agencies - Third Party P,0090655329,BUPA CARE HOMES,"2,976.00",14/11/2023
Delivery Units,Adults and Health,Other Agencies - Third Party P,0090655330,LIFESTYLE CARE PLC,"3,600.00",14/11/2023
Delivery Units,Adults and Health,Other Agencies - Third Party P,0090655332,NAZARETH HOUSE,"2,890.08",14/11/2023
Delivery Units,Adults and Health,Other Agencies - Third Party P,0090655336,BUPA CARE HOMES,"3,166.36",14/11/2023
Delivery Units,Adults and Health,Other Agencies - Third Party P,0090655337,JEWISH CARE,"2,896.00",14/11/2023
Delivery Units,Adults and Health,Other Agencies - Third Party P,0090655346,ELEANOR PALMER TRUST NO 2 A/C.,"4,000.00",14/11/2023
Delivery Units,Adults and Health,Other Agencies - Third Party P,0090655349,APPLE TREE COURT CARE HOME,"3,800.00",14/11/2023
Delivery Units,Adults and Health,Other Agencies - Third Party P,0090655350,LIFESTYLE CARE PLC,"-2,445.57",14/11/2023
Delivery Units,Adults and Health,Other Agencies - Third Party P,0090655351,THE LIMES RESIDENTIAL HOME,"3,416.00",14/11/2023
Delivery Units,Adults and Health,Other Agencies - Third Party P,0090655357,ELEANOR PALMER TRUST NO 2 A/C.,"4,000.00",14/11/2023
Delivery Units,Adults and Health,Other Agencies - Third Party P,0090655365,JEWISH CARE,"3,056.00",14/11/2023
Delivery Units,Adults and Health,Other Agencies - Third Party P,0090655369,BUPA CARE HOMES,"4,000.00",14/11/2023
Delivery Units,Adults and Health,Other Agencies - Third Party P,0090655379,JEWISH CARE,"3,056.00",14/11/2023
Delivery Units,Adults and Health,Other Agencies - Third Party P,0090655380,BUPA NURSING HOMES LTD - ARKLEY,"1,392.85",14/11/2023
Delivery Units,Adults and Health,Other Agencies - Third Party P,0090655384,JEWISH CARE,"3,212.00",14/11/2023
Delivery Units,Adults and Health,Other Agencies - Third Party P,0090655385,JEWISH CARE,"3,056.00",14/11/2023
Delivery Units,Adults and Health,Other Agencies - Third Party P,0090655397,JEWISH CARE,"3,056.00",14/11/2023
Delivery Units,Adults and Health,Other Agencies - Third Party P,0090655399,NAZARETH HOUSE,336.43,14/11/2023
Delivery Units,Adults and Health,Other Agencies - Third Party P,0090655400,NAZARETH HOUSE,112.14,14/11/2023
Delivery Units,Adults and Health,Other Agencies - Third Party P,0090655420,CEDARS NURSING HOME,"4,000.00",14/11/2023
Delivery Units,Adults and Health,Other Agencies - Third Party P,0090655431,JEWISH CARE,"3,056.00",14/11/2023
Delivery Units,Adults and Health,Other Agencies - Third Party P,0090655435,THE LIMES RESIDENTIAL HOME,"3,336.00",14/11/2023
Delivery Units,Adults and Health,Other Agencies - Third Party P,0090655437,NAZARETH HOUSE,"2,890.08",14/11/2023
Delivery Units,Adults and Health,Other Agencies - Third Party P,0090655440,NAZARETH HOUSE,"4,104.00",14/11/2023
Delivery Units,Adults and Health,Other Agencies - Third Party P,0090655441,JEWISH CARE,"3,056.00",14/11/2023
Delivery Units,Adults and Health,Other Agencies - Third Party P,0090655444,JEWISH CARE,"2,896.00",14/11/2023
Delivery Units,Adults and Health,Other Agencies - Third Party P,0090655446,NAZARETH HOUSE,"2,740.00",14/11/2023
Delivery Units,Adults and Health,Other Agencies - Third Party P,0090655448,THE LIMES RESIDENTIAL HOME,"3,336.00",14/11/2023
Delivery Units,Adults and Health,Other Agencies - Third Party P,0090655449,NAZARETH HOUSE,"2,890.08",14/11/2023
Delivery Units,Adults and Health,Other Agencies - Third Party P,0090655451,JEWISH CARE,"3,056.00",14/11/2023
Delivery Units,Adults and Health,Other Agencies - Third Party P,0090655456,NAZARETH HOUSE,"2,740.00",14/11/2023
Delivery Units,Adults and Health,Other Agencies - Third Party P,0090655457,NAZARETH HOUSE,"2,890.08",14/11/2023
Delivery Units,Adults and Health,Other Agencies - Third Party P,0090655461,THE LIMES RESIDENTIAL HOME,"3,436.00",14/11/2023
Delivery Units,Adults and Health,Other Agencies - Third Party P,0090655467,NAZARETH HOUSE,"2,890.08",14/11/2023
Delivery Units,Adults and Health,Other Agencies - Third Party P,0090655468,JEWISH CARE,"3,056.00",14/11/2023
Delivery Units,Adults and Health,Other Agencies - Third Party P,0090655471,NAZARETH HOUSE,"2,890.08",14/11/2023
Delivery Units,Adults and Health,Other Agencies - Third Party P,0090655475,ELEANOR PALMER TRUST NO 2 A/C.,"4,400.00",14/11/2023
Delivery Units,Adults and Health,Other Agencies - Third Party P,0090655487,JEWISH CARE,"3,212.00",14/11/2023
Delivery Units,Adults and Health,Other Agencies - Third Party P,0090655492,APPLE TREE COURT CARE HOME,"5,124.00",14/11/2023
Delivery Units,Adults and Health,Other Agencies - Third Party P,0090655506,THE LIMES RESIDENTIAL HOME,"3,620.00",14/11/2023
Delivery Units,Adults and Health,Other Agencies - Third Party P,0090655513,CARE UK COMMUNITY PARTNERSHIPS,"3,852.00",14/11/2023
Delivery Units,Adults and Health,Other Agencies - Third Party P,0090655515,JEWISH CARE,"3,017.80",14/11/2023
Delivery Units,Adults and Health,Other Agencies - Third Party P,0090655521,NAZARETH HOUSE,"3,140.00",14/11/2023
Delivery Units,Adults and Health,Other Agencies - Third Party P,0090655522,NAZARETH HOUSE,"3,140.00",14/11/2023
Delivery Units,Adults and Health,Other Agencies - Third Party P,0090655525,JEWISH CARE,"3,052.00",14/11/2023
Delivery Units,Adults and Health,Other Agencies - Third Party P,0090655526,ELM PARK LODGE,"3,400.00",14/11/2023
Delivery Units,Adults and Health,Other Agencies - Third Party P,0090655535,NAZARETH HOUSE,"9,980.71",14/11/2023
Delivery Units,Adults and Health,Other Agencies - Third Party P,0090655543,NAZARETH HOUSE,"3,476.43",14/11/2023
Delivery Units,Adults and Health,Other Agencies - Third Party P,0090655544,NAZARETH HOUSE,"3,140.00",14/11/2023
Delivery Units,Adults and Health,Other Agencies - Third Party P,0090655546,NAZARETH HOUSE,"13,681.43",14/11/2023
Delivery Units,Adults and Health,Other Agencies - Third Party P,0090655547,NAZARETH HOUSE,"18,391.43",14/11/2023
Delivery Units,Adults and Health,Other Agencies - Third Party P,0090655548,NAZARETH HOUSE,"3,476.43",14/11/2023
Delivery Units,Adults and Health,Other Agencies - Third Party P,0090655552,NAZARETH HOUSE,"30,281.86",14/11/2023
Delivery Units,Adults and Health,Other Agencies - Third Party P,0090655558,B & M CARE,"1,100.00",14/11/2023
Delivery Units,Adults and Health,Other Agencies - Third Party P,0090655559,B & M CARE,785.71,14/11/2023
Delivery Units,Adults and Health,Other Agencies - Third Party P,0090655564,THE CHRISTIAN CARE TRUST,"13,860.00",14/11/2023
Delivery Units,Adults and Health,Other Agencies - Third Party P,0090656177,Enviro Medical Limited - Coniston House,"4,125.00",20/11/2023
Delivery Units,Adults and Health,Other Agencies - Third Party P,0090656390,EASTSIDE HOUSE CARE HOME,"3,800.00",20/11/2023
Delivery Units,Adults and Health,Other Agencies - Third Party P,0090656391,EASTSIDE HOUSE CARE HOME,"3,800.00",20/11/2023
Delivery Units,Adults and Health,Other Agencies - Third Party P,0090656392,METHODIST HOMES FOR THE AGED,"4,208.88",20/11/2023
Delivery Units,Adults and Health,Other Agencies - Third Party P,0090656393,Acacia Lodge Care Home Ltd,"2,794.29",20/11/2023
Delivery Units,Adults and Health,Other Agencies - Third Party P,0090656394,Acacia Lodge Care Home Ltd,"3,609.29",20/11/2023
Delivery Units,Adults and Health,Other Agencies - Third Party P,0090656395,Acacia Lodge Care Home Ltd,"3,260.00",20/11/2023
Delivery Units,Adults and Health,Other Agencies - Third Party P,0090656396,Acacia Lodge Care Home Ltd,"3,609.29",20/11/2023
Delivery Units,Adults and Health,Other Agencies - Third Party P,0090656397,Acacia Lodge Care Home Ltd,"5,122.86",20/11/2023
Delivery Units,Adults and Health,Other Agencies - Third Party P,0090656398,Acacia Lodge Care Home Ltd,"3,609.29",20/11/2023
Delivery Units,Adults and Health,Other Agencies - Third Party P,0090656972,Brownlow Enterprises Ltd,"2,171.43",20/11/2023
Delivery Units,Adults and Health,Other Agencies - Third Party P,0090656973,Brownlow Enterprises Ltd,"4,071.43",20/11/2023
Delivery Units,Adults and Health,Other Agencies - Third Party P,0090656974,Brownlow Enterprises Ltd,"3,556.01",20/11/2023
Delivery Units,Adults and Health,Other Agencies - Third Party P,0090656975,Brownlow Enterprises Ltd,"3,578.33",20/11/2023
Delivery Units,Adults and Health,Other Agencies - Third Party P,0090656976,Brownlow Enterprises Ltd,"3,830.67",20/11/2023
Delivery Units,Adults and Health,Other Agencies - Third Party P,0090657281,Brownlow Enterprises Ltd,"3,556.01",22/11/2023
Delivery Units,Adults and Health,Other Agencies - Third Party P,0090657282,Brownlow Enterprises Ltd,"3,556.01",22/11/2023
Delivery Units,Adults and Health,Other Agencies - Third Party P,0090657283,Brownlow Enterprises Ltd,"3,556.01",22/11/2023
Delivery Units,Adults and Health,Other Agencies - Third Party P,0090657284,Brownlow Enterprises Ltd,"4,207.14",22/11/2023
Delivery Units,Adults and Health,Other Agencies - Third Party P,0090657285,Brownlow Enterprises Ltd,"4,071.43",22/11/2023
Delivery Units,Adults and Health,Other Agencies - Third Party P,0090657349,EASTSIDE HOUSE CARE HOME,"3,800.00",22/11/2023
Delivery Units,Adults and Health,Other Agencies - Third Party P,0090657351,Hillyfield Rest Home Limited,"4,714.20",22/11/2023
Delivery Units,Adults and Health,Other Agencies - Third Party P,0090657352,Hillyfield Rest Home Limited,"4,714.20",22/11/2023
Delivery Units,Adults and Health,Other Agencies - Third Party P,0090657371,Karuna Manor,"6,428.57",22/11/2023
Delivery Units,Adults and Health,Other Agencies - Third Party P,0090657373,Karuna Manor,"4,071.43",22/11/2023
Delivery Units,Adults and Health,Other Agencies - Third Party P,0090657382,TORRINGTON HOMES,"4,071.43",22/11/2023
Delivery Units,Adults and Health,Other Agencies - Third Party P,0090657384,TORRINGTON HOMES,"4,071.43",22/11/2023
Delivery Units,Adults and Health,Other Agencies - Third Party P,0090657386,TORRINGTON HOMES,"4,071.43",22/11/2023
Delivery Units,Adults and Health,Other Agencies - Third Party P,0090657388,TORRINGTON HOMES,"2,369.79",22/11/2023
Delivery Units,Adults and Health,Other Agencies - Third Party P,0090657779,THE CHRISTIAN CARE TRUST,"4,178.40",24/11/2023
Delivery Units,Adults and Health,Other Agencies - Third Party P,0090657782,Green Trees Care Home,"4,242.90",24/11/2023
Delivery Units,Adults and Health,Other Agencies - Third Party P,0090658542,Newgrange of Cheshunt Ltd,"3,634.29",24/11/2023
Delivery Units,Adults and Health,Other Agencies - Third Party P,0090658567,MEERA NURSING HOME LIMITED,"3,874.28",24/11/2023
Delivery Units,Adults and Health,Other Agencies - Third Party P,0090658568,MEERA NURSING HOME LIMITED,"3,874.29",24/11/2023
Delivery Units,Adults and Health,Other Agencies - Third Party P,0090658569,MEERA NURSING HOME LIMITED,"3,634.28",24/11/2023
Delivery Units,Adults and Health,Other Agencies - Third Party P,0090659171,Westbourne Care Home,"7,662.86",28/11/2023
Delivery Units,Adults and Health,Other Agencies - Third Party P,0090659192,Barchester Healthcare,"5,280.00",28/11/2023
Delivery Units,Adults and Health,Other Agencies - Third Party P,0090659204,Westbourne Care Home,"2,550.00",28/11/2023
Delivery Units,Adults and Health,Other Agencies - Third Party P,0090659214,B & M CARE,"4,071.43",28/11/2023
Delivery Units,Adults and Health,Other Agencies - Third Party P,0090659215,B & M CARE,"4,157.14",28/11/2023
Delivery Units,Adults and Health,Other Agencies - Third Party P,0090659217,B & M CARE,"5,142.86",28/11/2023
Delivery Units,Adults and Health,Other Agencies - Third Party P,0090659218,B & M CARE,"3,642.86",28/11/2023
Delivery Units,Adults and Health,Other Agencies - Third Party P,0090659220,Alexandra House (Runwood Homes),"2,680.71",28/11/2023
Delivery Units,Adults and Health,Other Agencies - Third Party P,0090659543,Brownlow Enterprises Ltd,"3,460.00",29/11/2023
Delivery Units,Adults and Health,Other Agencies - Third Party P,0090659544,Brownlow Enterprises Ltd,"1,606.43",29/11/2023
Delivery Units,Adults and Health,Other Agencies - Third Party P,0090659549,Karuna Manor,"6,642.86",29/11/2023
Delivery Units,Adults and Health,Other Agencies - Third Party P,0090660723,Green Trees Care Home,"4,003.43",30/11/2023
Delivery Units,Adults and Health,Other Agencies - Third Party P,0090660725,Ferrolake Ltd,271.43,30/11/2023
Delivery Units,Adults and Health,Other Agencies - Third Party P,0090660726,Ferrolake Ltd,"4,071.43",30/11/2023
Delivery Units,Adults and Health,Other Agencies - Third Party P,0090660735,NIGHTINGALE HOUSE,"3,702.86",30/11/2023
Delivery Units,Adults and Health,Other Agencies - Third Party P,0090660736,NIGHTINGALE HOUSE,"3,814.29",30/11/2023
Delivery Units,Adults and Health,Other Agencies - Third Party P,0090660737,NIGHTINGALE HOUSE,"3,702.86",30/11/2023
Delivery Units,Adults and Health,Other Agencies - Third Party P,0090660738,NIGHTINGALE HOUSE,"3,660.00",30/11/2023
Delivery Units,Adults and Health,Other Agencies - Third Party P,0090660739,NIGHTINGALE HOUSE,"4,071.43",30/11/2023
Delivery Units,Adults and Health,Other Agencies - Third Party P,0090660741,NIGHTINGALE HOUSE,"3,814.29",30/11/2023
Delivery Units,Adults and Health,Other Agencies - Third Party P,0090649170,Bliss Care and Training Ltd,630.00,01/11/2023
Delivery Units,Adults and Health,Other Agencies - Third Party P,0090649171,Bliss Care and Training Ltd,351.00,01/11/2023
Delivery Units,Adults and Health,Other Agencies - Third Party P,0090649172,Bliss Care and Training Ltd,256.50,01/11/2023
Delivery Units,Adults and Health,Other Agencies - Third Party P,0090649173,Bliss Care and Training Ltd,36.00,01/11/2023
Delivery Units,Adults and Health,Other Agencies - Third Party P,0090649176,Bliss Care and Training Ltd,81.00,01/11/2023
Delivery Units,Adults and Health,Other Agencies - Third Party P,0090649179,Bliss Care and Training Ltd,63.00,01/11/2023
Delivery Units,Adults and Health,Other Agencies - Third Party P,0090649187,Bliss Care and Training Ltd,157.50,01/11/2023
Delivery Units,Adults and Health,Other Agencies - Third Party P,0090649188,Bliss Care and Training Ltd,495.00,01/11/2023
Delivery Units,Adults and Health,Other Agencies - Third Party P,0090649189,Bliss Care and Training Ltd,162.00,01/11/2023
Delivery Units,Adults and Health,Other Agencies - Third Party P,0090649190,Bliss Care and Training Ltd,220.50,01/11/2023
Delivery Units,Adults and Health,Other Agencies - Third Party P,0090649191,Bliss Care and Training Ltd,18.00,01/11/2023
Delivery Units,Adults and Health,Other Agencies - Third Party P,0090649193,Bliss Care and Training Ltd,238.50,01/11/2023
Delivery Units,Adults and Health,Other Agencies - Third Party P,0090649195,Bliss Care and Training Ltd,252.00,01/11/2023
Delivery Units,Adults and Health,Other Agencies - Third Party P,0090649196,Bliss Care and Training Ltd,94.50,01/11/2023
Delivery Units,Adults and Health,Other Agencies - Third Party P,0090649197,Bliss Care and Training Ltd,229.50,01/11/2023
Delivery Units,Adults and Health,Other Agencies - Third Party P,0090649199,Bliss Care and Training Ltd,126.00,01/11/2023
Delivery Units,Adults and Health,Other Agencies - Third Party P,0090649201,Bliss Care and Training Ltd,63.00,01/11/2023
Delivery Units,Adults and Health,Other Agencies - Third Party P,0090649202,Bliss Care and Training Ltd,126.00,01/11/2023
Delivery Units,Adults and Health,Other Agencies - Third Party P,0090649203,Bliss Care and Training Ltd,504.00,01/11/2023
Delivery Units,Adults and Health,Other Agencies - Third Party P,0090649204,Bliss Care and Training Ltd,63.00,01/11/2023
Delivery Units,Adults and Health,Other Agencies - Third Party P,0090649205,Bliss Care and Training Ltd,157.50,01/11/2023
Delivery Units,Adults and Health,Other Agencies - Third Party P,0090649206,Bliss Care and Training Ltd,94.50,01/11/2023
Delivery Units,Adults and Health,Other Agencies - Third Party P,0090649207,Bliss Care and Training Ltd,139.50,01/11/2023
Delivery Units,Adults and Health,Other Agencies - Third Party P,0090649208,Bliss Care and Training Ltd,283.50,01/11/2023
Delivery Units,Adults and Health,Other Agencies - Third Party P,0090649209,Bliss Care and Training Ltd,684.00,01/11/2023
Delivery Units,Adults and Health,Other Agencies - Third Party P,0090649210,Bliss Care and Training Ltd,220.50,01/11/2023
Delivery Units,Adults and Health,Other Agencies - Third Party P,0090649211,Bliss Care and Training Ltd,207.00,01/11/2023
Delivery Units,Adults and Health,Other Agencies - Third Party P,0090649212,Bliss Care and Training Ltd,441.00,01/11/2023
Delivery Units,Adults and Health,Other Agencies - Third Party P,0090649213,Bliss Care and Training Ltd,283.50,01/11/2023
Delivery Units,Adults and Health,Other Agencies - Third Party P,0090649214,Bliss Care and Training Ltd,378.00,01/11/2023
Delivery Units,Adults and Health,Other Agencies - Third Party P,0090649217,Bliss Care and Training Ltd,279.00,01/11/2023
Delivery Units,Adults and Health,Other Agencies - Third Party P,0090649220,Bliss Care and Training Ltd,252.00,01/11/2023
Delivery Units,Adults and Health,Other Agencies - Third Party P,0090649221,Bliss Care and Training Ltd,157.50,01/11/2023
Delivery Units,Adults and Health,Other Agencies - Third Party P,0090649222,Bliss Care and Training Ltd,189.00,01/11/2023
Delivery Units,Adults and Health,Other Agencies - Third Party P,0090649223,Bliss Care and Training Ltd,346.50,01/11/2023
Delivery Units,Adults and Health,Other Agencies - Third Party P,0090649224,Bliss Care and Training Ltd,315.00,01/11/2023
Delivery Units,Adults and Health,Other Agencies - Third Party P,0090649225,Bliss Care and Training Ltd,157.50,01/11/2023
Delivery Units,Adults and Health,Other Agencies - Third Party P,0090649226,Bliss Care and Training Ltd,724.50,01/11/2023
Delivery Units,Adults and Health,Other Agencies - Third Party P,0090649228,Bliss Care and Training Ltd,306.00,01/11/2023
Delivery Units,Adults and Health,Other Agencies - Third Party P,0090649229,Bliss Care and Training Ltd,67.50,01/11/2023
Delivery Units,Adults and Health,Other Agencies - Third Party P,0090649231,Bliss Care and Training Ltd,90.00,01/11/2023
Delivery Units,Adults and Health,Other Agencies - Third Party P,0090649232,Bliss Care and Training Ltd,162.00,01/11/2023
Delivery Units,Adults and Health,Other Agencies - Third Party P,0090649233,Bliss Care and Training Ltd,238.50,01/11/2023
Delivery Units,Adults and Health,Other Agencies - Third Party P,0090649234,Bliss Care and Training Ltd,486.00,01/11/2023
Delivery Units,Adults and Health,Other Agencies - Third Party P,0090649235,Bliss Care and Training Ltd,283.50,01/11/2023
Delivery Units,Adults and Health,Other Agencies - Third Party P,0090649236,Bliss Care and Training Ltd,157.50,01/11/2023
Delivery Units,Adults and Health,Other Agencies - Third Party P,0090649237,Bliss Care and Training Ltd,378.00,01/11/2023
Delivery Units,Adults and Health,Other Agencies - Third Party P,0090649238,Bliss Care and Training Ltd,126.00,01/11/2023
Delivery Units,Adults and Health,Other Agencies - Third Party P,0090649240,Bliss Care and Training Ltd,441.00,01/11/2023
Delivery Units,Adults and Health,Other Agencies - Third Party P,0090649241,Bliss Care and Training Ltd,220.50,01/11/2023
Delivery Units,Adults and Health,Other Agencies - Third Party P,0090649243,Bliss Care and Training Ltd,315.00,01/11/2023
Delivery Units,Adults and Health,Other Agencies - Third Party P,0090649249,Bliss Care and Training Ltd,22.50,01/11/2023
Delivery Units,Adults and Health,Other Agencies - Third Party P,0090649252,Bliss Care and Training Ltd,306.00,01/11/2023
Delivery Units,Adults and Health,Other Agencies - Third Party P,0090649255,Bliss Care and Training Ltd,94.50,01/11/2023
Delivery Units,Adults and Health,Other Agencies - Third Party P,0090649261,Bliss Care and Training Ltd,63.00,01/11/2023
Delivery Units,Adults and Health,Other Agencies - Third Party P,0090649265,Bliss Care and Training Ltd,256.50,01/11/2023
Delivery Units,Adults and Health,Other Agencies - Third Party P,0090649266,Bliss Care and Training Ltd,310.50,01/11/2023
Delivery Units,Adults and Health,Other Agencies - Third Party P,0090649267,Bliss Care and Training Ltd,252.00,01/11/2023
Delivery Units,Adults and Health,Other Agencies - Third Party P,0090649268,Bliss Care and Training Ltd,378.00,01/11/2023
Delivery Units,Adults and Health,Other Agencies - Third Party P,0090649276,Bliss Care and Training Ltd,220.50,01/11/2023
Delivery Units,Adults and Health,Other Agencies - Third Party P,0090649283,Bliss Care and Training Ltd,90.00,01/11/2023
Delivery Units,Adults and Health,Other Agencies - Third Party P,0090649290,Bliss Care and Training Ltd,693.00,01/11/2023
Delivery Units,Adults and Health,Other Agencies - Third Party P,0090649293,Bliss Care and Training Ltd,31.50,01/11/2023
Delivery Units,Adults and Health,Other Agencies - Third Party P,0090649296,Bliss Care and Training Ltd,54.00,01/11/2023
Delivery Units,Adults and Health,Other Agencies - Third Party P,0090649304,Bliss Care and Training Ltd,234.00,01/11/2023
Delivery Units,Adults and Health,Other Agencies - Third Party P,0090649305,Bliss Care and Training Ltd,49.50,01/11/2023
Delivery Units,Adults and Health,Other Agencies - Third Party P,0090649309,Bliss Care and Training Ltd,693.00,01/11/2023
Delivery Units,Adults and Health,Other Agencies - Third Party P,0090649313,Bliss Care and Training Ltd,135.00,01/11/2023
Delivery Units,Adults and Health,Other Agencies - Third Party P,0090649314,Bliss Care and Training Ltd,346.50,01/11/2023
Delivery Units,Adults and Health,Other Agencies - Third Party P,0090649316,Bliss Care and Training Ltd,54.00,01/11/2023
Delivery Units,Adults and Health,Other Agencies - Third Party P,0090649317,Bliss Care and Training Ltd,94.50,01/11/2023
Delivery Units,Adults and Health,Other Agencies - Third Party P,0090649318,Bliss Care and Training Ltd,126.00,01/11/2023
Delivery Units,Adults and Health,Other Agencies - Third Party P,0090649319,Bliss Care and Training Ltd,315.00,01/11/2023
Delivery Units,Adults and Health,Other Agencies - Third Party P,0090649320,Bliss Care and Training Ltd,18.00,01/11/2023
Delivery Units,Adults and Health,Other Agencies - Third Party P,0090649321,Bliss Care and Training Ltd,184.50,01/11/2023
Delivery Units,Adults and Health,Other Agencies - Third Party P,0090649322,Bliss Care and Training Ltd,94.50,01/11/2023
Delivery Units,Adults and Health,Other Agencies - Third Party P,0090649324,Bliss Care and Training Ltd,630.00,01/11/2023
Delivery Units,Adults and Health,Other Agencies - Third Party P,0090649325,Bliss Care and Training Ltd,351.00,01/11/2023
Delivery Units,Adults and Health,Other Agencies - Third Party P,0090649326,Bliss Care and Training Ltd,256.50,01/11/2023
Delivery Units,Adults and Health,Other Agencies - Third Party P,0090649327,Bliss Care and Training Ltd,36.00,01/11/2023
Delivery Units,Adults and Health,Other Agencies - Third Party P,0090649330,Bliss Care and Training Ltd,81.00,01/11/2023
Delivery Units,Adults and Health,Other Agencies - Third Party P,0090649333,Bliss Care and Training Ltd,63.00,01/11/2023
Delivery Units,Adults and Health,Other Agencies - Third Party P,0090649341,Bliss Care and Training Ltd,157.50,01/11/2023
Delivery Units,Adults and Health,Other Agencies - Third Party P,0090649342,Bliss Care and Training Ltd,495.00,01/11/2023
Delivery Units,Adults and Health,Other Agencies - Third Party P,0090649343,Bliss Care and Training Ltd,162.00,01/11/2023
Delivery Units,Adults and Health,Other Agencies - Third Party P,0090649344,Bliss Care and Training Ltd,220.50,01/11/2023
Delivery Units,Adults and Health,Other Agencies - Third Party P,0090649345,Bliss Care and Training Ltd,18.00,01/11/2023
Delivery Units,Adults and Health,Other Agencies - Third Party P,0090649347,Bliss Care and Training Ltd,256.50,01/11/2023
Delivery Units,Adults and Health,Other Agencies - Third Party P,0090649349,Bliss Care and Training Ltd,252.00,01/11/2023
Delivery Units,Adults and Health,Other Agencies - Third Party P,0090649350,Bliss Care and Training Ltd,94.50,01/11/2023
Delivery Units,Adults and Health,Other Agencies - Third Party P,0090649352,Bliss Care and Training Ltd,126.00,01/11/2023
Delivery Units,Adults and Health,Other Agencies - Third Party P,0090649354,Bliss Care and Training Ltd,63.00,01/11/2023
Delivery Units,Adults and Health,Other Agencies - Third Party P,0090649355,Bliss Care and Training Ltd,126.00,01/11/2023
Delivery Units,Adults and Health,Other Agencies - Third Party P,0090649356,Bliss Care and Training Ltd,504.00,01/11/2023
Delivery Units,Adults and Health,Other Agencies - Third Party P,0090649357,Bliss Care and Training Ltd,63.00,01/11/2023
Delivery Units,Adults and Health,Other Agencies - Third Party P,0090649358,Bliss Care and Training Ltd,157.50,01/11/2023
Delivery Units,Adults and Health,Other Agencies - Third Party P,0090649359,Bliss Care and Training Ltd,126.00,01/11/2023
Delivery Units,Adults and Health,Other Agencies - Third Party P,0090649360,Bliss Care and Training Ltd,94.50,01/11/2023
Delivery Units,Adults and Health,Other Agencies - Third Party P,0090649361,Bliss Care and Training Ltd,139.50,01/11/2023
Delivery Units,Adults and Health,Other Agencies - Third Party P,0090649362,Bliss Care and Training Ltd,283.50,01/11/2023
Delivery Units,Adults and Health,Other Agencies - Third Party P,0090649363,Bliss Care and Training Ltd,684.00,01/11/2023
Delivery Units,Adults and Health,Other Agencies - Third Party P,0090649364,Bliss Care and Training Ltd,220.50,01/11/2023
Delivery Units,Adults and Health,Other Agencies - Third Party P,0090649365,Bliss Care and Training Ltd,441.00,01/11/2023
Delivery Units,Adults and Health,Other Agencies - Third Party P,0090649366,Bliss Care and Training Ltd,283.50,01/11/2023
Delivery Units,Adults and Health,Other Agencies - Third Party P,0090649367,Bliss Care and Training Ltd,378.00,01/11/2023
Delivery Units,Adults and Health,Other Agencies - Third Party P,0090649370,Bliss Care and Training Ltd,630.00,01/11/2023
Delivery Units,Adults and Health,Other Agencies - Third Party P,0090649373,Bliss Care and Training Ltd,252.00,01/11/2023
Delivery Units,Adults and Health,Other Agencies - Third Party P,0090649374,Bliss Care and Training Ltd,157.50,01/11/2023
Delivery Units,Adults and Health,Other Agencies - Third Party P,0090649375,Bliss Care and Training Ltd,189.00,01/11/2023
Delivery Units,Adults and Health,Other Agencies - Third Party P,0090649376,Bliss Care and Training Ltd,346.50,01/11/2023
Delivery Units,Adults and Health,Other Agencies - Third Party P,0090649377,Bliss Care and Training Ltd,315.00,01/11/2023
Delivery Units,Adults and Health,Other Agencies - Third Party P,0090649378,Bliss Care and Training Ltd,157.50,01/11/2023
Delivery Units,Adults and Health,Other Agencies - Third Party P,0090649379,Bliss Care and Training Ltd,400.50,01/11/2023
Delivery Units,Adults and Health,Other Agencies - Third Party P,0090649380,Bliss Care and Training Ltd,724.50,01/11/2023
Delivery Units,Adults and Health,Other Agencies - Third Party P,0090649382,Bliss Care and Training Ltd,306.00,01/11/2023
Delivery Units,Adults and Health,Other Agencies - Third Party P,0090649383,Bliss Care and Training Ltd,67.50,01/11/2023
Delivery Units,Adults and Health,Other Agencies - Third Party P,0090649385,Bliss Care and Training Ltd,90.00,01/11/2023
Delivery Units,Adults and Health,Other Agencies - Third Party P,0090649386,Bliss Care and Training Ltd,162.00,01/11/2023
Delivery Units,Adults and Health,Other Agencies - Third Party P,0090649387,Bliss Care and Training Ltd,148.50,01/11/2023
Delivery Units,Adults and Health,Other Agencies - Third Party P,0090649388,Bliss Care and Training Ltd,283.50,01/11/2023
Delivery Units,Adults and Health,Other Agencies - Third Party P,0090649389,Bliss Care and Training Ltd,157.50,01/11/2023
Delivery Units,Adults and Health,Other Agencies - Third Party P,0090649390,Bliss Care and Training Ltd,378.00,01/11/2023
Delivery Units,Adults and Health,Other Agencies - Third Party P,0090649391,Bliss Care and Training Ltd,126.00,01/11/2023
Delivery Units,Adults and Health,Other Agencies - Third Party P,0090649392,Bliss Care and Training Ltd,148.50,01/11/2023
Delivery Units,Adults and Health,Other Agencies - Third Party P,0090649393,Bliss Care and Training Ltd,441.00,01/11/2023
Delivery Units,Adults and Health,Other Agencies - Third Party P,0090649394,Bliss Care and Training Ltd,220.50,01/11/2023
Delivery Units,Adults and Health,Other Agencies - Third Party P,0090649395,Bliss Care and Training Ltd,315.00,01/11/2023
Delivery Units,Adults and Health,Other Agencies - Third Party P,0090649399,Bliss Care and Training Ltd,22.50,01/11/2023
Delivery Units,Adults and Health,Other Agencies - Third Party P,0090649402,Bliss Care and Training Ltd,333.00,01/11/2023
Delivery Units,Adults and Health,Other Agencies - Third Party P,0090649405,Bliss Care and Training Ltd,94.50,01/11/2023
Delivery Units,Adults and Health,Other Agencies - Third Party P,0090649411,Bliss Care and Training Ltd,63.00,01/11/2023
Delivery Units,Adults and Health,Other Agencies - Third Party P,0090649414,Bliss Care and Training Ltd,256.50,01/11/2023
Delivery Units,Adults and Health,Other Agencies - Third Party P,0090649415,Bliss Care and Training Ltd,180.00,01/11/2023
Delivery Units,Adults and Health,Other Agencies - Third Party P,0090649416,Bliss Care and Training Ltd,252.00,01/11/2023
Delivery Units,Adults and Health,Other Agencies - Third Party P,0090649417,Bliss Care and Training Ltd,378.00,01/11/2023
Delivery Units,Adults and Health,Other Agencies - Third Party P,0090649422,Bliss Care and Training Ltd,220.50,01/11/2023
Delivery Units,Adults and Health,Other Agencies - Third Party P,0090649428,Bliss Care and Training Ltd,220.50,01/11/2023
Delivery Units,Adults and Health,Other Agencies - Third Party P,0090649430,Bliss Care and Training Ltd,90.00,01/11/2023
Delivery Units,Adults and Health,Other Agencies - Third Party P,0090649440,Bliss Care and Training Ltd,54.00,01/11/2023
Delivery Units,Adults and Health,Other Agencies - Third Party P,0090649449,Bliss Care and Training Ltd,126.00,01/11/2023
Delivery Units,Adults and Health,Other Agencies - Third Party P,0090649450,Bliss Care and Training Ltd,504.00,01/11/2023
Delivery Units,Adults and Health,Other Agencies - Third Party P,0090649451,Bliss Care and Training Ltd,252.00,01/11/2023
Delivery Units,Adults and Health,Other Agencies - Third Party P,0090649455,Bliss Care and Training Ltd,297.00,01/11/2023
Delivery Units,Adults and Health,Other Agencies - Third Party P,0090649466,Bliss Care and Training Ltd,94.50,01/11/2023
Delivery Units,Adults and Health,Other Agencies - Third Party P,0090649467,Bliss Care and Training Ltd,126.00,01/11/2023
Delivery Units,Adults and Health,Other Agencies - Third Party P,0090649468,Bliss Care and Training Ltd,288.00,01/11/2023
Delivery Units,Adults and Health,Other Agencies - Third Party P,0090649469,Bliss Care and Training Ltd,18.00,01/11/2023
Delivery Units,Adults and Health,Other Agencies - Third Party P,0090649470,Bliss Care and Training Ltd,184.50,01/11/2023
Delivery Units,Adults and Health,Other Agencies - Third Party P,0090649471,Bliss Care and Training Ltd,94.50,01/11/2023
Delivery Units,Adults and Health,Other Agencies - Third Party P,0090649474,Bliss Care and Training Ltd,283.50,01/11/2023
Delivery Units,Adults and Health,Other Agencies - Third Party P,0090649479,MI HOMECARE LIMITED,"8,389.26",01/11/2023
Delivery Units,Adults and Health,Other Agencies - Third Party P,0090649481,Thames Homecare Services Ltd,91.25,01/11/2023
Delivery Units,Adults and Health,Other Agencies - Third Party P,0090649483,Thames Homecare Services Ltd,41.06,01/11/2023
Delivery Units,Adults and Health,Other Agencies - Third Party P,0090649485,Swifthand Care Services Ltd,39.44,01/11/2023
Delivery Units,Adults and Health,Other Agencies - Third Party P,0090649487,Swifthand Care Services Ltd,374.68,01/11/2023
Delivery Units,Adults and Health,Other Agencies - Third Party P,0090649488,Swifthand Care Services Ltd,9.86,01/11/2023
Delivery Units,Adults and Health,Other Agencies - Third Party P,0090649489,Swifthand Care Services Ltd,103.53,01/11/2023
Delivery Units,Adults and Health,Other Agencies - Third Party P,0090649490,Swifthand Care Services Ltd,379.61,01/11/2023
Delivery Units,Adults and Health,Other Agencies - Third Party P,0090649491,Swifthand Care Services Ltd,241.57,01/11/2023
Delivery Units,Adults and Health,Other Agencies - Third Party P,0090649492,Swifthand Care Services Ltd,207.06,01/11/2023
Delivery Units,Adults and Health,Other Agencies - Third Party P,0090649493,Swifthand Care Services Ltd,"1,064.88",01/11/2023
Delivery Units,Adults and Health,Other Agencies - Third Party P,0090649494,Swifthand Care Services Ltd,138.04,01/11/2023
Delivery Units,Adults and Health,Other Agencies - Third Party P,0090649495,Swifthand Care Services Ltd,241.57,01/11/2023
Delivery Units,Adults and Health,Other Agencies - Third Party P,0090649496,Swifthand Care Services Ltd,"2,839.68",01/11/2023
Delivery Units,Adults and Health,Other Agencies - Third Party P,0090649498,Swifthand Care Services Ltd,172.55,01/11/2023
Delivery Units,Adults and Health,Other Agencies - Third Party P,0090649499,Swifthand Care Services Ltd,690.20,01/11/2023
Delivery Units,Adults and Health,Other Agencies - Third Party P,0090649500,Swifthand Care Services Ltd,9.86,01/11/2023
Delivery Units,Adults and Health,Other Agencies - Third Party P,0090649501,Swifthand Care Services Ltd,759.22,01/11/2023
Delivery Units,Adults and Health,Other Agencies - Third Party P,0090649502,Swifthand Care Services Ltd,172.55,01/11/2023
Delivery Units,Adults and Health,Other Agencies - Third Party P,0090649504,Swifthand Care Services Ltd,315.52,01/11/2023
Delivery Units,Adults and Health,Other Agencies - Third Party P,0090649505,Swifthand Care Services Ltd,276.08,01/11/2023
Delivery Units,Adults and Health,Other Agencies - Third Party P,0090649508,Swifthand Care Services Ltd,631.04,01/11/2023
Delivery Units,Adults and Health,Other Agencies - Third Party P,0090649509,Swifthand Care Services Ltd,276.08,01/11/2023
Delivery Units,Adults and Health,Other Agencies - Third Party P,0090649510,Swifthand Care Services Ltd,621.18,01/11/2023
Delivery Units,Adults and Health,Other Agencies - Third Party P,0090649511,Swifthand Care Services Ltd,276.08,01/11/2023
Delivery Units,Adults and Health,Other Agencies - Third Party P,0090649512,Swifthand Care Services Ltd,261.29,01/11/2023
Delivery Units,Adults and Health,Other Agencies - Third Party P,0090649513,Swifthand Care Services Ltd,207.06,01/11/2023
Delivery Units,Adults and Health,Other Agencies - Third Party P,0090649517,Swifthand Care Services Ltd,39.44,01/11/2023
Delivery Units,Adults and Health,Other Agencies - Third Party P,0090649519,Swifthand Care Services Ltd,374.68,01/11/2023
Delivery Units,Adults and Health,Other Agencies - Third Party P,0090649520,Swifthand Care Services Ltd,103.53,01/11/2023
Delivery Units,Adults and Health,Other Agencies - Third Party P,0090649521,Swifthand Care Services Ltd,379.61,01/11/2023
Delivery Units,Adults and Health,Other Agencies - Third Party P,0090649522,Swifthand Care Services Ltd,241.57,01/11/2023
Delivery Units,Adults and Health,Other Agencies - Third Party P,0090649523,Swifthand Care Services Ltd,207.06,01/11/2023
Delivery Units,Adults and Health,Other Agencies - Third Party P,0090649524,Swifthand Care Services Ltd,"1,064.88",01/11/2023
Delivery Units,Adults and Health,Other Agencies - Third Party P,0090649525,Swifthand Care Services Ltd,138.04,01/11/2023
Delivery Units,Adults and Health,Other Agencies - Third Party P,0090649526,Swifthand Care Services Ltd,241.57,01/11/2023
Delivery Units,Adults and Health,Other Agencies - Third Party P,0090649527,Swifthand Care Services Ltd,473.28,01/11/2023
Delivery Units,Adults and Health,Other Agencies - Third Party P,0090649529,Swifthand Care Services Ltd,172.55,01/11/2023
Delivery Units,Adults and Health,Other Agencies - Third Party P,0090649530,Swifthand Care Services Ltd,690.20,01/11/2023
Delivery Units,Adults and Health,Other Agencies - Third Party P,0090649531,Swifthand Care Services Ltd,19.72,01/11/2023
Delivery Units,Adults and Health,Other Agencies - Third Party P,0090649532,Swifthand Care Services Ltd,759.22,01/11/2023
Delivery Units,Adults and Health,Other Agencies - Third Party P,0090649533,Swifthand Care Services Ltd,172.55,01/11/2023
Delivery Units,Adults and Health,Other Agencies - Third Party P,0090649535,Swifthand Care Services Ltd,315.52,01/11/2023
Delivery Units,Adults and Health,Other Agencies - Third Party P,0090649536,Swifthand Care Services Ltd,276.08,01/11/2023
Delivery Units,Adults and Health,Other Agencies - Third Party P,0090649538,Swifthand Care Services Ltd,631.04,01/11/2023
Delivery Units,Adults and Health,Other Agencies - Third Party P,0090649539,Swifthand Care Services Ltd,276.08,01/11/2023
Delivery Units,Adults and Health,Other Agencies - Third Party P,0090649540,Swifthand Care Services Ltd,621.18,01/11/2023
Delivery Units,Adults and Health,Other Agencies - Third Party P,0090649541,Swifthand Care Services Ltd,276.08,01/11/2023
Delivery Units,Adults and Health,Other Agencies - Third Party P,0090649542,Swifthand Care Services Ltd,261.29,01/11/2023
Delivery Units,Adults and Health,Other Agencies - Third Party P,0090649543,Swifthand Care Services Ltd,207.06,01/11/2023
Delivery Units,Adults and Health,Other Agencies - Third Party P,0090649546,Swifthand Care Services Ltd,39.44,01/11/2023
Delivery Units,Adults and Health,Other Agencies - Third Party P,0090649548,Swifthand Care Services Ltd,374.68,01/11/2023
Delivery Units,Adults and Health,Other Agencies - Third Party P,0090649549,Swifthand Care Services Ltd,9.86,01/11/2023
Delivery Units,Adults and Health,Other Agencies - Third Party P,0090649550,Swifthand Care Services Ltd,103.53,01/11/2023
Delivery Units,Adults and Health,Other Agencies - Third Party P,0090649551,Swifthand Care Services Ltd,379.61,01/11/2023
Delivery Units,Adults and Health,Other Agencies - Third Party P,0090649552,Swifthand Care Services Ltd,241.57,01/11/2023
Delivery Units,Adults and Health,Other Agencies - Third Party P,0090649553,Swifthand Care Services Ltd,207.06,01/11/2023
Delivery Units,Adults and Health,Other Agencies - Third Party P,0090649554,Swifthand Care Services Ltd,"1,064.88",01/11/2023
Delivery Units,Adults and Health,Other Agencies - Third Party P,0090649555,Swifthand Care Services Ltd,138.04,01/11/2023
Delivery Units,Adults and Health,Other Agencies - Third Party P,0090649556,Swifthand Care Services Ltd,241.57,01/11/2023
Delivery Units,Adults and Health,Other Agencies - Third Party P,0090649557,Swifthand Care Services Ltd,"1,419.84",01/11/2023
Delivery Units,Adults and Health,Other Agencies - Third Party P,0090649559,Swifthand Care Services Ltd,172.55,01/11/2023
Delivery Units,Adults and Health,Other Agencies - Third Party P,0090649560,Swifthand Care Services Ltd,394.40,01/11/2023
Delivery Units,Adults and Health,Other Agencies - Third Party P,0090649561,Swifthand Care Services Ltd,19.72,01/11/2023
Delivery Units,Adults and Health,Other Agencies - Third Party P,0090649562,Swifthand Care Services Ltd,759.22,01/11/2023
Delivery Units,Adults and Health,Other Agencies - Third Party P,0090649563,Swifthand Care Services Ltd,172.55,01/11/2023
Delivery Units,Adults and Health,Other Agencies - Third Party P,0090649565,Swifthand Care Services Ltd,315.52,01/11/2023
Delivery Units,Adults and Health,Other Agencies - Third Party P,0090649566,Swifthand Care Services Ltd,276.08,01/11/2023
Delivery Units,Adults and Health,Other Agencies - Third Party P,0090649569,Swifthand Care Services Ltd,621.18,01/11/2023
Delivery Units,Adults and Health,Other Agencies - Third Party P,0090649570,Swifthand Care Services Ltd,276.08,01/11/2023
Delivery Units,Adults and Health,Other Agencies - Third Party P,0090649571,Swifthand Care Services Ltd,261.29,01/11/2023
Delivery Units,Adults and Health,Other Agencies - Third Party P,0090649572,Swifthand Care Services Ltd,207.06,01/11/2023
Delivery Units,Adults and Health,Other Agencies - Third Party P,0090649574,Swifthand Care Services Ltd,39.44,01/11/2023
Delivery Units,Adults and Health,Other Agencies - Third Party P,0090649576,Swifthand Care Services Ltd,374.68,01/11/2023
Delivery Units,Adults and Health,Other Agencies - Third Party P,0090649577,Swifthand Care Services Ltd,9.86,01/11/2023
Delivery Units,Adults and Health,Other Agencies - Third Party P,0090649578,Swifthand Care Services Ltd,103.53,01/11/2023
Delivery Units,Adults and Health,Other Agencies - Third Party P,0090649579,Swifthand Care Services Ltd,379.61,01/11/2023
Delivery Units,Adults and Health,Other Agencies - Third Party P,0090649580,Swifthand Care Services Ltd,241.57,01/11/2023
Delivery Units,Adults and Health,Other Agencies - Third Party P,0090649581,Swifthand Care Services Ltd,207.06,01/11/2023
Delivery Units,Adults and Health,Other Agencies - Third Party P,0090649582,Swifthand Care Services Ltd,"1,064.88",01/11/2023
Delivery Units,Adults and Health,Other Agencies - Third Party P,0090649583,Swifthand Care Services Ltd,138.04,01/11/2023
Delivery Units,Adults and Health,Other Agencies - Third Party P,0090649584,Swifthand Care Services Ltd,241.57,01/11/2023
Delivery Units,Adults and Health,Other Agencies - Third Party P,0090649585,Swifthand Care Services Ltd,"2,839.68",01/11/2023
Delivery Units,Adults and Health,Other Agencies - Third Party P,0090649587,Swifthand Care Services Ltd,172.55,01/11/2023
Delivery Units,Adults and Health,Other Agencies - Third Party P,0090649588,Swifthand Care Services Ltd,19.72,01/11/2023
Delivery Units,Adults and Health,Other Agencies - Third Party P,0090649589,Swifthand Care Services Ltd,19.72,01/11/2023
Delivery Units,Adults and Health,Other Agencies - Third Party P,0090649590,Swifthand Care Services Ltd,759.22,01/11/2023
Delivery Units,Adults and Health,Other Agencies - Third Party P,0090649591,Swifthand Care Services Ltd,172.55,01/11/2023
Delivery Units,Adults and Health,Other Agencies - Third Party P,0090649593,Swifthand Care Services Ltd,315.52,01/11/2023
Delivery Units,Adults and Health,Other Agencies - Third Party P,0090649594,Swifthand Care Services Ltd,276.08,01/11/2023
Delivery Units,Adults and Health,Other Agencies - Third Party P,0090649597,Swifthand Care Services Ltd,631.04,01/11/2023
Delivery Units,Adults and Health,Other Agencies - Third Party P,0090649598,Swifthand Care Services Ltd,276.08,01/11/2023
Delivery Units,Adults and Health,Other Agencies - Third Party P,0090649599,Swifthand Care Services Ltd,621.18,01/11/2023
Delivery Units,Adults and Health,Other Agencies - Third Party P,0090649600,Swifthand Care Services Ltd,276.08,01/11/2023
Delivery Units,Adults and Health,Other Agencies - Third Party P,0090649601,Swifthand Care Services Ltd,261.29,01/11/2023
Delivery Units,Adults and Health,Other Agencies - Third Party P,0090649602,Swifthand Care Services Ltd,207.06,01/11/2023
Delivery Units,Adults and Health,Other Agencies - Third Party P,0090649611,Navarros Care Ltd,899.64,02/11/2023
Delivery Units,Adults and Health,Other Agencies - Third Party P,0090649612,Navarros Care Ltd,"1,549.88",02/11/2023
Delivery Units,Adults and Health,Other Agencies - Third Party P,0090649618,Kosh Care Ltd,377.49,02/11/2023
Delivery Units,Adults and Health,Other Agencies - Third Party P,0090649619,Kosh Care Ltd,377.49,02/11/2023
Delivery Units,Adults and Health,Other Agencies - Third Party P,0090649620,Kosh Care Ltd,377.49,02/11/2023
Delivery Units,Adults and Health,Other Agencies - Third Party P,0090649621,Kosh Care Ltd,377.49,02/11/2023
Delivery Units,Adults and Health,Other Agencies - Third Party P,0090649622,Kosh Care Ltd,377.49,02/11/2023
Delivery Units,Adults and Health,Other Agencies - Third Party P,0090649623,Kosh Care Ltd,377.49,02/11/2023
Delivery Units,Adults and Health,Other Agencies - Third Party P,0090649624,Kosh Care Ltd,377.49,02/11/2023
Delivery Units,Adults and Health,Other Agencies - Third Party P,0090649625,Kosh Care Ltd,377.49,02/11/2023
Delivery Units,Adults and Health,Other Agencies - Third Party P,0090649626,Kosh Care Ltd,377.49,02/11/2023
Delivery Units,Adults and Health,Other Agencies - Third Party P,0090649627,Kosh Care Ltd,377.49,02/11/2023
Delivery Units,Adults and Health,Other Agencies - Third Party P,0090649628,Kosh Care Ltd,377.49,02/11/2023
Delivery Units,Adults and Health,Other Agencies - Third Party P,0090649629,Kosh Care Ltd,377.49,02/11/2023
Delivery Units,Adults and Health,Other Agencies - Third Party P,0090649630,Kosh Care Ltd,377.49,02/11/2023
Delivery Units,Adults and Health,Other Agencies - Third Party P,0090649631,Kosh Care Ltd,377.49,02/11/2023
Delivery Units,Adults and Health,Other Agencies - Third Party P,0090649632,Kosh Care Ltd,377.49,02/11/2023
Delivery Units,Adults and Health,Other Agencies - Third Party P,0090649633,Kosh Care Ltd,377.49,02/11/2023
Delivery Units,Adults and Health,Other Agencies - Third Party P,0090649634,Kosh Care Ltd,377.49,02/11/2023
Delivery Units,Adults and Health,Other Agencies - Third Party P,0090649635,Kosh Care Ltd,377.49,02/11/2023
Delivery Units,Adults and Health,Other Agencies - Third Party P,0090649636,Kosh Care Ltd,377.49,02/11/2023
Delivery Units,Adults and Health,Other Agencies - Third Party P,0090649637,Kosh Care Ltd,210.81,02/11/2023
Delivery Units,Adults and Health,Other Agencies - Third Party P,0090649638,Kosh Care Ltd,210.81,02/11/2023
Delivery Units,Adults and Health,Other Agencies - Third Party P,0090649639,Kosh Care Ltd,210.81,02/11/2023
Delivery Units,Adults and Health,Other Agencies - Third Party P,0090649640,Kosh Care Ltd,210.81,02/11/2023
Delivery Units,Adults and Health,Other Agencies - Third Party P,0090649641,Kosh Care Ltd,210.81,02/11/2023
Delivery Units,Adults and Health,Other Agencies - Third Party P,0090649642,Kosh Care Ltd,210.81,02/11/2023
Delivery Units,Adults and Health,Other Agencies - Third Party P,0090649643,Kosh Care Ltd,210.81,02/11/2023
Delivery Units,Adults and Health,Other Agencies - Third Party P,0090649644,Kosh Care Ltd,210.81,02/11/2023
Delivery Units,Adults and Health,Other Agencies - Third Party P,0090649645,Kosh Care Ltd,210.81,02/11/2023
Delivery Units,Adults and Health,Other Agencies - Third Party P,0090649646,Kosh Care Ltd,210.81,02/11/2023
Delivery Units,Adults and Health,Other Agencies - Third Party P,0090649647,Kosh Care Ltd,210.81,02/11/2023
Delivery Units,Adults and Health,Other Agencies - Third Party P,0090649648,Kosh Care Ltd,210.81,02/11/2023
Delivery Units,Adults and Health,Other Agencies - Third Party P,0090649649,Kosh Care Ltd,210.81,02/11/2023
Delivery Units,Adults and Health,Other Agencies - Third Party P,0090649650,Kosh Care Ltd,210.81,02/11/2023
Delivery Units,Adults and Health,Other Agencies - Third Party P,0090649651,Kosh Care Ltd,210.81,02/11/2023
Delivery Units,Adults and Health,Other Agencies - Third Party P,0090649652,Kosh Care Ltd,210.81,02/11/2023
Delivery Units,Adults and Health,Other Agencies - Third Party P,0090649653,Kosh Care Ltd,210.81,02/11/2023
Delivery Units,Adults and Health,Other Agencies - Third Party P,0090649654,Kosh Care Ltd,210.81,02/11/2023
Delivery Units,Adults and Health,Other Agencies - Third Party P,0090649655,Kosh Care Ltd,210.81,02/11/2023
Delivery Units,Adults and Health,Other Agencies - Third Party P,0090649656,Kosh Care Ltd,387.30,02/11/2023
Delivery Units,Adults and Health,Other Agencies - Third Party P,0090649657,Kosh Care Ltd,387.30,02/11/2023
Delivery Units,Adults and Health,Other Agencies - Third Party P,0090649658,Kosh Care Ltd,387.30,02/11/2023
Delivery Units,Adults and Health,Other Agencies - Third Party P,0090649659,Kosh Care Ltd,387.30,02/11/2023
Delivery Units,Adults and Health,Other Agencies - Third Party P,0090649660,Kosh Care Ltd,387.30,02/11/2023
Delivery Units,Adults and Health,Other Agencies - Third Party P,0090649661,Kosh Care Ltd,387.30,02/11/2023
Delivery Units,Adults and Health,Other Agencies - Third Party P,0090649662,Kosh Care Ltd,387.30,02/11/2023
Delivery Units,Adults and Health,Other Agencies - Third Party P,0090649663,Kosh Care Ltd,387.30,02/11/2023
Delivery Units,Adults and Health,Other Agencies - Third Party P,0090649664,Kosh Care Ltd,387.30,02/11/2023
Delivery Units,Adults and Health,Other Agencies - Third Party P,0090649665,Kosh Care Ltd,387.30,02/11/2023
Delivery Units,Adults and Health,Other Agencies - Third Party P,0090649666,Kosh Care Ltd,387.30,02/11/2023
Delivery Units,Adults and Health,Other Agencies - Third Party P,0090649667,Kosh Care Ltd,387.30,02/11/2023
Delivery Units,Adults and Health,Other Agencies - Third Party P,0090649668,Kosh Care Ltd,387.30,02/11/2023
Delivery Units,Adults and Health,Other Agencies - Third Party P,0090649669,Kosh Care Ltd,387.30,02/11/2023
Delivery Units,Adults and Health,Other Agencies - Third Party P,0090649670,Kosh Care Ltd,387.30,02/11/2023
Delivery Units,Adults and Health,Other Agencies - Third Party P,0090649671,Kosh Care Ltd,387.30,02/11/2023
Delivery Units,Adults and Health,Other Agencies - Third Party P,0090649672,Kosh Care Ltd,387.30,02/11/2023
Delivery Units,Adults and Health,Other Agencies - Third Party P,0090649673,Kosh Care Ltd,387.30,02/11/2023
Delivery Units,Adults and Health,Other Agencies - Third Party P,0090649674,Kosh Care Ltd,387.30,02/11/2023
Delivery Units,Adults and Health,Other Agencies - Third Party P,0090649675,Kosh Care Ltd,274.54,02/11/2023
Delivery Units,Adults and Health,Other Agencies - Third Party P,0090649676,Kosh Care Ltd,274.54,02/11/2023
Delivery Units,Adults and Health,Other Agencies - Third Party P,0090649677,Kosh Care Ltd,411.81,02/11/2023
Delivery Units,Adults and Health,Other Agencies - Third Party P,0090649678,Kosh Care Ltd,274.54,02/11/2023
Delivery Units,Adults and Health,Other Agencies - Third Party P,0090649679,Kosh Care Ltd,411.81,02/11/2023
Delivery Units,Adults and Health,Other Agencies - Third Party P,0090649680,Kosh Care Ltd,274.54,02/11/2023
Delivery Units,Adults and Health,Other Agencies - Third Party P,0090649681,Kosh Care Ltd,274.54,02/11/2023
Delivery Units,Adults and Health,Other Agencies - Third Party P,0090649682,Kosh Care Ltd,411.81,02/11/2023
Delivery Units,Adults and Health,Other Agencies - Third Party P,0090649683,Kosh Care Ltd,274.54,02/11/2023
Delivery Units,Adults and Health,Other Agencies - Third Party P,0090649684,Kosh Care Ltd,411.81,02/11/2023
Delivery Units,Adults and Health,Other Agencies - Third Party P,0090649685,Kosh Care Ltd,274.54,02/11/2023
Delivery Units,Adults and Health,Other Agencies - Third Party P,0090649686,Kosh Care Ltd,274.54,02/11/2023
Delivery Units,Adults and Health,Other Agencies - Third Party P,0090649687,Kosh Care Ltd,274.54,02/11/2023
Delivery Units,Adults and Health,Other Agencies - Third Party P,0090649688,Kosh Care Ltd,411.81,02/11/2023
Delivery Units,Adults and Health,Other Agencies - Third Party P,0090649689,Kosh Care Ltd,274.54,02/11/2023
Delivery Units,Adults and Health,Other Agencies - Third Party P,0090649690,Kosh Care Ltd,274.54,02/11/2023
Delivery Units,Adults and Health,Other Agencies - Third Party P,0090649691,Kosh Care Ltd,274.54,02/11/2023
Delivery Units,Adults and Health,Other Agencies - Third Party P,0090649692,Kosh Care Ltd,411.81,02/11/2023
Delivery Units,Adults and Health,Other Agencies - Third Party P,0090649693,Kosh Care Ltd,274.54,02/11/2023
Delivery Units,Adults and Health,Other Agencies - Third Party P,0090649694,Kosh Care Ltd,843.23,02/11/2023
Delivery Units,Adults and Health,Other Agencies - Third Party P,0090649695,Kosh Care Ltd,843.23,02/11/2023
Delivery Units,Adults and Health,Other Agencies - Third Party P,0090649696,Kosh Care Ltd,843.23,02/11/2023
Delivery Units,Adults and Health,Other Agencies - Third Party P,0090649697,Kosh Care Ltd,843.23,02/11/2023
Delivery Units,Adults and Health,Other Agencies - Third Party P,0090649698,Kosh Care Ltd,843.23,02/11/2023
Delivery Units,Adults and Health,Other Agencies - Third Party P,0090649699,Kosh Care Ltd,843.23,02/11/2023
Delivery Units,Adults and Health,Other Agencies - Third Party P,0090649700,Kosh Care Ltd,843.23,02/11/2023
Delivery Units,Adults and Health,Other Agencies - Third Party P,0090649701,Kosh Care Ltd,843.23,02/11/2023
Delivery Units,Adults and Health,Other Agencies - Third Party P,0090649702,Kosh Care Ltd,843.23,02/11/2023
Delivery Units,Adults and Health,Other Agencies - Third Party P,0090649703,Kosh Care Ltd,843.23,02/11/2023
Delivery Units,Adults and Health,Other Agencies - Third Party P,0090649704,Kosh Care Ltd,843.23,02/11/2023
Delivery Units,Adults and Health,Other Agencies - Third Party P,0090649705,Kosh Care Ltd,843.23,02/11/2023
Delivery Units,Adults and Health,Other Agencies - Third Party P,0090649706,Kosh Care Ltd,843.23,02/11/2023
Delivery Units,Adults and Health,Other Agencies - Third Party P,0090649707,Kosh Care Ltd,843.23,02/11/2023
Delivery Units,Adults and Health,Other Agencies - Third Party P,0090649708,Kosh Care Ltd,843.23,02/11/2023
Delivery Units,Adults and Health,Other Agencies - Third Party P,0090649709,Kosh Care Ltd,843.23,02/11/2023
Delivery Units,Adults and Health,Other Agencies - Third Party P,0090649710,Kosh Care Ltd,843.23,02/11/2023
Delivery Units,Adults and Health,Other Agencies - Third Party P,0090649711,Kosh Care Ltd,843.23,02/11/2023
Delivery Units,Adults and Health,Other Agencies - Third Party P,0090649712,Kosh Care Ltd,843.23,02/11/2023
Delivery Units,Adults and Health,Other Agencies - Third Party P,0090649713,Kosh Care Ltd,98.05,02/11/2023
Delivery Units,Adults and Health,Other Agencies - Third Party P,0090649714,Kosh Care Ltd,98.05,02/11/2023
Delivery Units,Adults and Health,Other Agencies - Third Party P,0090649715,Kosh Care Ltd,98.05,02/11/2023
Delivery Units,Adults and Health,Other Agencies - Third Party P,0090649716,Kosh Care Ltd,98.05,02/11/2023
Delivery Units,Adults and Health,Other Agencies - Third Party P,0090649717,Kosh Care Ltd,98.05,02/11/2023
Delivery Units,Adults and Health,Other Agencies - Third Party P,0090649718,Kosh Care Ltd,98.05,02/11/2023
Delivery Units,Adults and Health,Other Agencies - Third Party P,0090649719,Kosh Care Ltd,98.05,02/11/2023
Delivery Units,Adults and Health,Other Agencies - Third Party P,0090649720,Kosh Care Ltd,98.05,02/11/2023
Delivery Units,Adults and Health,Other Agencies - Third Party P,0090649721,Kosh Care Ltd,98.05,02/11/2023
Delivery Units,Adults and Health,Other Agencies - Third Party P,0090649722,Kosh Care Ltd,98.05,02/11/2023
Delivery Units,Adults and Health,Other Agencies - Third Party P,0090649723,Kosh Care Ltd,98.05,02/11/2023
Delivery Units,Adults and Health,Other Agencies - Third Party P,0090649724,Kosh Care Ltd,98.05,02/11/2023
Delivery Units,Adults and Health,Other Agencies - Third Party P,0090649725,Kosh Care Ltd,98.05,02/11/2023
Delivery Units,Adults and Health,Other Agencies - Third Party P,0090649726,Kosh Care Ltd,98.05,02/11/2023
Delivery Units,Adults and Health,Other Agencies - Third Party P,0090649727,Kosh Care Ltd,98.05,02/11/2023
Delivery Units,Adults and Health,Other Agencies - Third Party P,0090649728,Kosh Care Ltd,98.05,02/11/2023
Delivery Units,Adults and Health,Other Agencies - Third Party P,0090649729,Kosh Care Ltd,98.05,02/11/2023
Delivery Units,Adults and Health,Other Agencies - Third Party P,0090649730,Kosh Care Ltd,98.05,02/11/2023
Delivery Units,Adults and Health,Other Agencies - Third Party P,0090649731,Kosh Care Ltd,98.05,02/11/2023
Delivery Units,Adults and Health,Other Agencies - Third Party P,0090649796,Kosh Care Ltd,240.22,02/11/2023
Delivery Units,Adults and Health,Other Agencies - Third Party P,0090649797,Kosh Care Ltd,240.22,02/11/2023
Delivery Units,Adults and Health,Other Agencies - Third Party P,0090649798,Kosh Care Ltd,240.22,02/11/2023
Delivery Units,Adults and Health,Other Agencies - Third Party P,0090649799,Kosh Care Ltd,240.22,02/11/2023
Delivery Units,Adults and Health,Other Agencies - Third Party P,0090649800,Kosh Care Ltd,240.22,02/11/2023
Delivery Units,Adults and Health,Other Agencies - Third Party P,0090649801,Kosh Care Ltd,240.22,02/11/2023
Delivery Units,Adults and Health,Other Agencies - Third Party P,0090649802,Kosh Care Ltd,240.22,02/11/2023
Delivery Units,Adults and Health,Other Agencies - Third Party P,0090649803,Kosh Care Ltd,240.22,02/11/2023
Delivery Units,Adults and Health,Other Agencies - Third Party P,0090649804,Kosh Care Ltd,240.22,02/11/2023
Delivery Units,Adults and Health,Other Agencies - Third Party P,0090649805,Kosh Care Ltd,240.22,02/11/2023
Delivery Units,Adults and Health,Other Agencies - Third Party P,0090649806,Kosh Care Ltd,240.22,02/11/2023
Delivery Units,Adults and Health,Other Agencies - Third Party P,0090649807,Kosh Care Ltd,240.22,02/11/2023
Delivery Units,Adults and Health,Other Agencies - Third Party P,0090649808,Kosh Care Ltd,240.22,02/11/2023
Delivery Units,Adults and Health,Other Agencies - Third Party P,0090649809,Kosh Care Ltd,240.22,02/11/2023
Delivery Units,Adults and Health,Other Agencies - Third Party P,0090649810,Kosh Care Ltd,240.22,02/11/2023
Delivery Units,Adults and Health,Other Agencies - Third Party P,0090649811,Kosh Care Ltd,240.22,02/11/2023
Delivery Units,Adults and Health,Other Agencies - Third Party P,0090649812,Kosh Care Ltd,240.22,02/11/2023
Delivery Units,Adults and Health,Other Agencies - Third Party P,0090649813,Kosh Care Ltd,240.22,02/11/2023
Delivery Units,Adults and Health,Other Agencies - Third Party P,0090649814,Kosh Care Ltd,240.22,02/11/2023
Delivery Units,Adults and Health,Other Agencies - Third Party P,0090649818,Kosh Care Ltd,377.49,02/11/2023
Delivery Units,Adults and Health,Other Agencies - Third Party P,0090649819,Kosh Care Ltd,377.49,02/11/2023
Delivery Units,Adults and Health,Other Agencies - Third Party P,0090649820,Kosh Care Ltd,377.49,02/11/2023
Delivery Units,Adults and Health,Other Agencies - Third Party P,0090649821,Kosh Care Ltd,377.49,02/11/2023
Delivery Units,Adults and Health,Other Agencies - Third Party P,0090649822,Kosh Care Ltd,377.49,02/11/2023
Delivery Units,Adults and Health,Other Agencies - Third Party P,0090649823,Kosh Care Ltd,377.49,02/11/2023
Delivery Units,Adults and Health,Other Agencies - Third Party P,0090649824,Kosh Care Ltd,210.81,02/11/2023
Delivery Units,Adults and Health,Other Agencies - Third Party P,0090649825,Kosh Care Ltd,210.81,02/11/2023
Delivery Units,Adults and Health,Other Agencies - Third Party P,0090649826,Kosh Care Ltd,210.81,02/11/2023
Delivery Units,Adults and Health,Other Agencies - Third Party P,0090649827,Kosh Care Ltd,210.81,02/11/2023
Delivery Units,Adults and Health,Other Agencies - Third Party P,0090649828,Kosh Care Ltd,210.81,02/11/2023
Delivery Units,Adults and Health,Other Agencies - Third Party P,0090649829,Kosh Care Ltd,210.81,02/11/2023
Delivery Units,Adults and Health,Other Agencies - Third Party P,0090649830,Kosh Care Ltd,387.30,02/11/2023
Delivery Units,Adults and Health,Other Agencies - Third Party P,0090649831,Kosh Care Ltd,387.30,02/11/2023
Delivery Units,Adults and Health,Other Agencies - Third Party P,0090649832,Kosh Care Ltd,387.30,02/11/2023
Delivery Units,Adults and Health,Other Agencies - Third Party P,0090649833,Kosh Care Ltd,387.30,02/11/2023
Delivery Units,Adults and Health,Other Agencies - Third Party P,0090649834,Kosh Care Ltd,387.30,02/11/2023
Delivery Units,Adults and Health,Other Agencies - Third Party P,0090649835,Kosh Care Ltd,387.30,02/11/2023
Delivery Units,Adults and Health,Other Agencies - Third Party P,0090649836,Kosh Care Ltd,274.54,02/11/2023
Delivery Units,Adults and Health,Other Agencies - Third Party P,0090649837,Kosh Care Ltd,274.54,02/11/2023
Delivery Units,Adults and Health,Other Agencies - Third Party P,0090649838,Kosh Care Ltd,274.54,02/11/2023
Delivery Units,Adults and Health,Other Agencies - Third Party P,0090649839,Kosh Care Ltd,274.54,02/11/2023
Delivery Units,Adults and Health,Other Agencies - Third Party P,0090649840,Kosh Care Ltd,274.54,02/11/2023
Delivery Units,Adults and Health,Other Agencies - Third Party P,0090649841,Kosh Care Ltd,274.54,02/11/2023
Delivery Units,Adults and Health,Other Agencies - Third Party P,0090649842,Kosh Care Ltd,843.23,02/11/2023
Delivery Units,Adults and Health,Other Agencies - Third Party P,0090649843,Kosh Care Ltd,843.23,02/11/2023
Delivery Units,Adults and Health,Other Agencies - Third Party P,0090649844,Kosh Care Ltd,843.23,02/11/2023
Delivery Units,Adults and Health,Other Agencies - Third Party P,0090649845,Kosh Care Ltd,843.23,02/11/2023
Delivery Units,Adults and Health,Other Agencies - Third Party P,0090649846,Kosh Care Ltd,843.23,02/11/2023
Delivery Units,Adults and Health,Other Agencies - Third Party P,0090649847,Kosh Care Ltd,843.23,02/11/2023
Delivery Units,Adults and Health,Other Agencies - Third Party P,0090649848,Kosh Care Ltd,98.05,02/11/2023
Delivery Units,Adults and Health,Other Agencies - Third Party P,0090649849,Kosh Care Ltd,98.05,02/11/2023
Delivery Units,Adults and Health,Other Agencies - Third Party P,0090649850,Kosh Care Ltd,98.05,02/11/2023
Delivery Units,Adults and Health,Other Agencies - Third Party P,0090649851,Kosh Care Ltd,98.05,02/11/2023
Delivery Units,Adults and Health,Other Agencies - Third Party P,0090649852,Kosh Care Ltd,98.05,02/11/2023
Delivery Units,Adults and Health,Other Agencies - Third Party P,0090649853,Kosh Care Ltd,98.05,02/11/2023
Delivery Units,Adults and Health,Other Agencies - Third Party P,0090649872,Kosh Care Ltd,240.22,02/11/2023
Delivery Units,Adults and Health,Other Agencies - Third Party P,0090649873,Kosh Care Ltd,240.22,02/11/2023
Delivery Units,Adults and Health,Other Agencies - Third Party P,0090649874,Kosh Care Ltd,240.22,02/11/2023
Delivery Units,Adults and Health,Other Agencies - Third Party P,0090649875,Kosh Care Ltd,240.22,02/11/2023
Delivery Units,Adults and Health,Other Agencies - Third Party P,0090649876,Kosh Care Ltd,240.22,02/11/2023
Delivery Units,Adults and Health,Other Agencies - Third Party P,0090649877,Kosh Care Ltd,240.22,02/11/2023
Delivery Units,Adults and Health,Other Agencies - Third Party P,0090649878,Kosh Care Ltd,68.64,02/11/2023
Delivery Units,Adults and Health,Other Agencies - Third Party P,0090649879,Kosh Care Ltd,68.64,02/11/2023
Delivery Units,Adults and Health,Other Agencies - Third Party P,0090649880,Kosh Care Ltd,68.64,02/11/2023
Delivery Units,Adults and Health,Other Agencies - Third Party P,0090649881,Kosh Care Ltd,68.64,02/11/2023
Delivery Units,Adults and Health,Other Agencies - Third Party P,0090649892,Concept Care Solutions Ltd,"3,464.16",02/11/2023
Delivery Units,Adults and Health,Other Agencies - Third Party P,0090649893,Renaissance Personnel Ltd,470.02,02/11/2023
Delivery Units,Adults and Health,Other Agencies - Third Party P,0090649923,Mayfair Homecare Ltd,42.40,02/11/2023
Delivery Units,Adults and Health,Other Agencies - Third Party P,0090649924,Mayfair Homecare Ltd,148.40,02/11/2023
Delivery Units,Adults and Health,Other Agencies - Third Party P,0090649926,Mayfair Homecare Ltd,593.60,02/11/2023
Delivery Units,Adults and Health,Other Agencies - Third Party P,0090649927,Mayfair Homecare Ltd,328.60,02/11/2023
Delivery Units,Adults and Health,Other Agencies - Third Party P,0090649929,Mayfair Homecare Ltd,"1,558.20",02/11/2023
Delivery Units,Adults and Health,Other Agencies - Third Party P,0090649930,Mayfair Homecare Ltd,280.90,02/11/2023
Delivery Units,Adults and Health,Other Agencies - Third Party P,0090649931,Mayfair Homecare Ltd,376.30,02/11/2023
Delivery Units,Adults and Health,Other Agencies - Third Party P,0090649932,Mayfair Homecare Ltd,180.20,02/11/2023
Delivery Units,Adults and Health,Other Agencies - Third Party P,0090649933,Mayfair Homecare Ltd,296.80,02/11/2023
Delivery Units,Adults and Health,Other Agencies - Third Party P,0090649934,Mayfair Homecare Ltd,339.20,02/11/2023
Delivery Units,Adults and Health,Other Agencies - Third Party P,0090649935,Mayfair Homecare Ltd,222.60,02/11/2023
Delivery Units,Adults and Health,Other Agencies - Third Party P,0090649936,Mayfair Homecare Ltd,222.60,02/11/2023
Delivery Units,Adults and Health,Other Agencies - Third Party P,0090649937,Mayfair Homecare Ltd,190.80,02/11/2023
Delivery Units,Adults and Health,Other Agencies - Third Party P,0090649938,Mayfair Homecare Ltd,445.20,02/11/2023
Delivery Units,Adults and Health,Other Agencies - Third Party P,0090649939,Mayfair Homecare Ltd,275.60,02/11/2023
Delivery Units,Adults and Health,Other Agencies - Third Party P,0090649941,Mayfair Homecare Ltd,259.70,02/11/2023
Delivery Units,Adults and Health,Other Agencies - Third Party P,0090649942,Mayfair Homecare Ltd,106.00,02/11/2023
Delivery Units,Adults and Health,Other Agencies - Third Party P,0090649943,Mayfair Homecare Ltd,551.20,02/11/2023
Delivery Units,Adults and Health,Other Agencies - Third Party P,0090649945,Mayfair Homecare Ltd,408.10,02/11/2023
Delivery Units,Adults and Health,Other Agencies - Third Party P,0090649947,Mayfair Homecare Ltd,487.60,02/11/2023
Delivery Units,Adults and Health,Other Agencies - Third Party P,0090649948,Mayfair Homecare Ltd,"1,038.80",02/11/2023
Delivery Units,Adults and Health,Other Agencies - Third Party P,0090649949,Mayfair Homecare Ltd,307.40,02/11/2023
Delivery Units,Adults and Health,Other Agencies - Third Party P,0090649950,Mayfair Homecare Ltd,79.50,02/11/2023
Delivery Units,Adults and Health,Other Agencies - Third Party P,0090649951,Mayfair Homecare Ltd,63.60,02/11/2023
Delivery Units,Adults and Health,Other Agencies - Third Party P,0090649952,Mayfair Homecare Ltd,63.60,02/11/2023
Delivery Units,Adults and Health,Other Agencies - Third Party P,0090649953,Mayfair Homecare Ltd,259.70,02/11/2023
Delivery Units,Adults and Health,Other Agencies - Third Party P,0090649954,Mayfair Homecare Ltd,259.70,02/11/2023
Delivery Units,Adults and Health,Other Agencies - Third Party P,0090649955,Mayfair Homecare Ltd,106.00,02/11/2023
Delivery Units,Adults and Health,Other Agencies - Third Party P,0090649956,Mayfair Homecare Ltd,222.60,02/11/2023
Delivery Units,Adults and Health,Other Agencies - Third Party P,0090649957,Mayfair Homecare Ltd,169.60,02/11/2023
Delivery Units,Adults and Health,Other Agencies - Third Party P,0090649958,Mayfair Homecare Ltd,254.40,02/11/2023
Delivery Units,Adults and Health,Other Agencies - Third Party P,0090649959,Mayfair Homecare Ltd,111.30,02/11/2023
Delivery Units,Adults and Health,Other Agencies - Third Party P,0090649960,Mayfair Homecare Ltd,259.70,02/11/2023
Delivery Units,Adults and Health,Other Agencies - Third Party P,0090649961,Mayfair Homecare Ltd,190.80,02/11/2023
Delivery Units,Adults and Health,Other Agencies - Third Party P,0090649962,Mayfair Homecare Ltd,31.80,02/11/2023
Delivery Units,Adults and Health,Other Agencies - Third Party P,0090649965,Mayfair Homecare Ltd,159.00,02/11/2023
Delivery Units,Adults and Health,Other Agencies - Third Party P,0090649966,Mayfair Homecare Ltd,302.10,02/11/2023
Delivery Units,Adults and Health,Other Agencies - Third Party P,0090649967,Mayfair Homecare Ltd,42.40,02/11/2023
Delivery Units,Adults and Health,Other Agencies - Third Party P,0090649969,Mayfair Homecare Ltd,296.80,02/11/2023
Delivery Units,Adults and Health,Other Agencies - Third Party P,0090649970,Mayfair Homecare Ltd,381.60,02/11/2023
Delivery Units,Adults and Health,Other Agencies - Third Party P,0090649972,Mayfair Homecare Ltd,10.60,02/11/2023
Delivery Units,Adults and Health,Other Agencies - Third Party P,0090649973,Mayfair Homecare Ltd,185.50,02/11/2023
Delivery Units,Adults and Health,Other Agencies - Third Party P,0090649976,Mayfair Homecare Ltd,519.40,02/11/2023
Delivery Units,Adults and Health,Other Agencies - Third Party P,0090649977,Mayfair Homecare Ltd,106.00,02/11/2023
Delivery Units,Adults and Health,Other Agencies - Third Party P,0090649979,Mayfair Homecare Ltd,100.70,02/11/2023
Delivery Units,Adults and Health,Other Agencies - Third Party P,0090649981,Mayfair Homecare Ltd,79.50,02/11/2023
Delivery Units,Adults and Health,Other Agencies - Third Party P,0090649982,Mayfair Homecare Ltd,63.60,02/11/2023
Delivery Units,Adults and Health,Other Agencies - Third Party P,0090649983,Mayfair Homecare Ltd,339.20,02/11/2023
Delivery Units,Adults and Health,Other Agencies - Third Party P,0090649986,Mayfair Homecare Ltd,148.40,02/11/2023
Delivery Units,Adults and Health,Other Agencies - Third Party P,0090649988,Mayfair Homecare Ltd,42.40,02/11/2023
Delivery Units,Adults and Health,Other Agencies - Third Party P,0090649989,Mayfair Homecare Ltd,148.40,02/11/2023
Delivery Units,Adults and Health,Other Agencies - Third Party P,0090649991,Mayfair Homecare Ltd,572.40,02/11/2023
Delivery Units,Adults and Health,Other Agencies - Third Party P,0090649992,Mayfair Homecare Ltd,328.60,02/11/2023
Delivery Units,Adults and Health,Other Agencies - Third Party P,0090649994,Mayfair Homecare Ltd,"1,558.20",02/11/2023
Delivery Units,Adults and Health,Other Agencies - Third Party P,0090649995,Mayfair Homecare Ltd,259.70,02/11/2023
Delivery Units,Adults and Health,Other Agencies - Third Party P,0090649996,Mayfair Homecare Ltd,280.90,02/11/2023
Delivery Units,Adults and Health,Other Agencies - Third Party P,0090649997,Mayfair Homecare Ltd,376.30,02/11/2023
Delivery Units,Adults and Health,Other Agencies - Third Party P,0090649998,Mayfair Homecare Ltd,180.20,02/11/2023
Delivery Units,Adults and Health,Other Agencies - Third Party P,0090649999,Mayfair Homecare Ltd,296.80,02/11/2023
Delivery Units,Adults and Health,Other Agencies - Third Party P,0090650000,Mayfair Homecare Ltd,339.20,02/11/2023
Delivery Units,Adults and Health,Other Agencies - Third Party P,0090650001,Mayfair Homecare Ltd,222.60,02/11/2023
Delivery Units,Adults and Health,Other Agencies - Third Party P,0090650002,Mayfair Homecare Ltd,222.60,02/11/2023
Delivery Units,Adults and Health,Other Agencies - Third Party P,0090650003,Mayfair Homecare Ltd,190.80,02/11/2023
Delivery Units,Adults and Health,Other Agencies - Third Party P,0090650004,Mayfair Homecare Ltd,445.20,02/11/2023
Delivery Units,Adults and Health,Other Agencies - Third Party P,0090650005,Mayfair Homecare Ltd,296.80,02/11/2023
Delivery Units,Adults and Health,Other Agencies - Third Party P,0090650007,Mayfair Homecare Ltd,259.70,02/11/2023
Delivery Units,Adults and Health,Other Agencies - Third Party P,0090650008,Mayfair Homecare Ltd,551.20,02/11/2023
Delivery Units,Adults and Health,Other Agencies - Third Party P,0090650010,Mayfair Homecare Ltd,164.30,02/11/2023
Delivery Units,Adults and Health,Other Agencies - Third Party P,0090650011,Mayfair Homecare Ltd,408.10,02/11/2023
Delivery Units,Adults and Health,Other Agencies - Third Party P,0090650013,Mayfair Homecare Ltd,487.60,02/11/2023
Delivery Units,Adults and Health,Other Agencies - Third Party P,0090650014,Mayfair Homecare Ltd,"1,038.80",02/11/2023
Delivery Units,Adults and Health,Other Agencies - Third Party P,0090650015,Mayfair Homecare Ltd,307.40,02/11/2023
Delivery Units,Adults and Health,Other Agencies - Third Party P,0090650016,Mayfair Homecare Ltd,79.50,02/11/2023
Delivery Units,Adults and Health,Other Agencies - Third Party P,0090650017,Mayfair Homecare Ltd,63.60,02/11/2023
Delivery Units,Adults and Health,Other Agencies - Third Party P,0090650018,Mayfair Homecare Ltd,53.00,02/11/2023
Delivery Units,Adults and Health,Other Agencies - Third Party P,0090650019,Mayfair Homecare Ltd,259.70,02/11/2023
Delivery Units,Adults and Health,Other Agencies - Third Party P,0090650020,Mayfair Homecare Ltd,259.70,02/11/2023
Delivery Units,Adults and Health,Other Agencies - Third Party P,0090650021,Mayfair Homecare Ltd,106.00,02/11/2023
Delivery Units,Adults and Health,Other Agencies - Third Party P,0090650022,Mayfair Homecare Ltd,222.60,02/11/2023
Delivery Units,Adults and Health,Other Agencies - Third Party P,0090650023,Mayfair Homecare Ltd,106.00,02/11/2023
Delivery Units,Adults and Health,Other Agencies - Third Party P,0090650024,Mayfair Homecare Ltd,111.30,02/11/2023
Delivery Units,Adults and Health,Other Agencies - Third Party P,0090650025,Mayfair Homecare Ltd,212.00,02/11/2023
Delivery Units,Adults and Health,Other Agencies - Third Party P,0090650026,Mayfair Homecare Ltd,190.80,02/11/2023
Delivery Units,Adults and Health,Other Agencies - Third Party P,0090650027,Mayfair Homecare Ltd,31.80,02/11/2023
Delivery Units,Adults and Health,Other Agencies - Third Party P,0090650029,Mayfair Homecare Ltd,159.00,02/11/2023
Delivery Units,Adults and Health,Other Agencies - Third Party P,0090650030,Mayfair Homecare Ltd,259.70,02/11/2023
Delivery Units,Adults and Health,Other Agencies - Third Party P,0090650032,Mayfair Homecare Ltd,296.80,02/11/2023
Delivery Units,Adults and Health,Other Agencies - Third Party P,0090650033,Mayfair Homecare Ltd,381.60,02/11/2023
Delivery Units,Adults and Health,Other Agencies - Third Party P,0090650034,Mayfair Homecare Ltd,185.50,02/11/2023
Delivery Units,Adults and Health,Other Agencies - Third Party P,0090650035,Mayfair Homecare Ltd,392.20,02/11/2023
Delivery Units,Adults and Health,Other Agencies - Third Party P,0090650038,Mayfair Homecare Ltd,111.30,02/11/2023
Delivery Units,Adults and Health,Other Agencies - Third Party P,0090650039,Mayfair Homecare Ltd,111.30,02/11/2023
Delivery Units,Adults and Health,Other Agencies - Third Party P,0090650040,Mayfair Homecare Ltd,318.00,02/11/2023
Delivery Units,Adults and Health,Other Agencies - Third Party P,0090650042,Mayfair Homecare Ltd,148.40,02/11/2023
Delivery Units,Adults and Health,Other Agencies - Third Party P,0090650044,Mayfair Homecare Ltd,42.40,02/11/2023
Delivery Units,Adults and Health,Other Agencies - Third Party P,0090650045,Mayfair Homecare Ltd,148.40,02/11/2023
Delivery Units,Adults and Health,Other Agencies - Third Party P,0090650047,Mayfair Homecare Ltd,583.00,02/11/2023
Delivery Units,Adults and Health,Other Agencies - Third Party P,0090650048,Mayfair Homecare Ltd,328.60,02/11/2023
Delivery Units,Adults and Health,Other Agencies - Third Party P,0090650050,Mayfair Homecare Ltd,"1,558.20",02/11/2023
Delivery Units,Adults and Health,Other Agencies - Third Party P,0090650051,Mayfair Homecare Ltd,280.90,02/11/2023
Delivery Units,Adults and Health,Other Agencies - Third Party P,0090650052,Mayfair Homecare Ltd,376.30,02/11/2023
Delivery Units,Adults and Health,Other Agencies - Third Party P,0090650053,Mayfair Homecare Ltd,180.20,02/11/2023
Delivery Units,Adults and Health,Other Agencies - Third Party P,0090650054,Mayfair Homecare Ltd,296.80,02/11/2023
Delivery Units,Adults and Health,Other Agencies - Third Party P,0090650055,Mayfair Homecare Ltd,339.20,02/11/2023
Delivery Units,Adults and Health,Other Agencies - Third Party P,0090650056,Mayfair Homecare Ltd,222.60,02/11/2023
Delivery Units,Adults and Health,Other Agencies - Third Party P,0090650057,Mayfair Homecare Ltd,222.60,02/11/2023
Delivery Units,Adults and Health,Other Agencies - Third Party P,0090650058,Mayfair Homecare Ltd,190.80,02/11/2023
Delivery Units,Adults and Health,Other Agencies - Third Party P,0090650059,Mayfair Homecare Ltd,445.20,02/11/2023
Delivery Units,Adults and Health,Other Agencies - Third Party P,0090650060,Mayfair Homecare Ltd,275.60,02/11/2023
Delivery Units,Adults and Health,Other Agencies - Third Party P,0090650062,Mayfair Homecare Ltd,249.10,02/11/2023
Delivery Units,Adults and Health,Other Agencies - Third Party P,0090650063,Mayfair Homecare Ltd,106.00,02/11/2023
Delivery Units,Adults and Health,Other Agencies - Third Party P,0090650064,Mayfair Homecare Ltd,551.20,02/11/2023
Delivery Units,Adults and Health,Other Agencies - Third Party P,0090650066,Mayfair Homecare Ltd,201.40,02/11/2023
Delivery Units,Adults and Health,Other Agencies - Third Party P,0090650067,Mayfair Homecare Ltd,408.10,02/11/2023
Delivery Units,Adults and Health,Other Agencies - Third Party P,0090650069,Mayfair Homecare Ltd,503.50,02/11/2023
Delivery Units,Adults and Health,Other Agencies - Third Party P,0090650070,Mayfair Homecare Ltd,"1,038.80",02/11/2023
Delivery Units,Adults and Health,Other Agencies - Third Party P,0090650071,Mayfair Homecare Ltd,307.40,02/11/2023
Delivery Units,Adults and Health,Other Agencies - Third Party P,0090650072,Mayfair Homecare Ltd,79.50,02/11/2023
Delivery Units,Adults and Health,Other Agencies - Third Party P,0090650073,Mayfair Homecare Ltd,63.60,02/11/2023
Delivery Units,Adults and Health,Other Agencies - Third Party P,0090650074,Mayfair Homecare Ltd,63.60,02/11/2023
Delivery Units,Adults and Health,Other Agencies - Third Party P,0090650075,Mayfair Homecare Ltd,259.70,02/11/2023
Delivery Units,Adults and Health,Other Agencies - Third Party P,0090650076,Mayfair Homecare Ltd,259.70,02/11/2023
Delivery Units,Adults and Health,Other Agencies - Third Party P,0090650077,Mayfair Homecare Ltd,106.00,02/11/2023
Delivery Units,Adults and Health,Other Agencies - Third Party P,0090650078,Mayfair Homecare Ltd,222.60,02/11/2023
Delivery Units,Adults and Health,Other Agencies - Third Party P,0090650079,Mayfair Homecare Ltd,111.30,02/11/2023
Delivery Units,Adults and Health,Other Agencies - Third Party P,0090650080,Mayfair Homecare Ltd,111.30,02/11/2023
Delivery Units,Adults and Health,Other Agencies - Third Party P,0090650081,Mayfair Homecare Ltd,190.80,02/11/2023
Delivery Units,Adults and Health,Other Agencies - Third Party P,0090650082,Mayfair Homecare Ltd,31.80,02/11/2023
Delivery Units,Adults and Health,Other Agencies - Third Party P,0090650084,Mayfair Homecare Ltd,159.00,02/11/2023
Delivery Units,Adults and Health,Other Agencies - Third Party P,0090650085,Mayfair Homecare Ltd,259.70,02/11/2023
Delivery Units,Adults and Health,Other Agencies - Third Party P,0090650086,Mayfair Homecare Ltd,53.00,02/11/2023
Delivery Units,Adults and Health,Other Agencies - Third Party P,0090650088,Mayfair Homecare Ltd,296.80,02/11/2023
Delivery Units,Adults and Health,Other Agencies - Third Party P,0090650089,Mayfair Homecare Ltd,381.60,02/11/2023
Delivery Units,Adults and Health,Other Agencies - Third Party P,0090650090,Mayfair Homecare Ltd,185.50,02/11/2023
Delivery Units,Adults and Health,Other Agencies - Third Party P,0090650091,Mayfair Homecare Ltd,466.40,02/11/2023
Delivery Units,Adults and Health,Other Agencies - Third Party P,0090650094,Mayfair Homecare Ltd,111.30,02/11/2023
Delivery Units,Adults and Health,Other Agencies - Third Party P,0090650095,Mayfair Homecare Ltd,111.30,02/11/2023
Delivery Units,Adults and Health,Other Agencies - Third Party P,0090650096,Mayfair Homecare Ltd,333.90,02/11/2023
Delivery Units,Adults and Health,Other Agencies - Third Party P,0090650099,Mayfair Homecare Ltd,148.40,02/11/2023
Delivery Units,Adults and Health,Other Agencies - Third Party P,0090650100,Mayfair Homecare Ltd,254.40,02/11/2023
Delivery Units,Adults and Health,Other Agencies - Third Party P,0090650102,Mayfair Homecare Ltd,42.40,02/11/2023
Delivery Units,Adults and Health,Other Agencies - Third Party P,0090650103,Mayfair Homecare Ltd,148.40,02/11/2023
Delivery Units,Adults and Health,Other Agencies - Third Party P,0090650105,Mayfair Homecare Ltd,328.60,02/11/2023
Delivery Units,Adults and Health,Other Agencies - Third Party P,0090650107,Mayfair Homecare Ltd,"1,579.40",02/11/2023
Delivery Units,Adults and Health,Other Agencies - Third Party P,0090650108,Mayfair Homecare Ltd,259.70,02/11/2023
Delivery Units,Adults and Health,Other Agencies - Third Party P,0090650109,Mayfair Homecare Ltd,280.90,02/11/2023
Delivery Units,Adults and Health,Other Agencies - Third Party P,0090650110,Mayfair Homecare Ltd,376.30,02/11/2023
Delivery Units,Adults and Health,Other Agencies - Third Party P,0090650111,Mayfair Homecare Ltd,180.20,02/11/2023
Delivery Units,Adults and Health,Other Agencies - Third Party P,0090650112,Mayfair Homecare Ltd,296.80,02/11/2023
Delivery Units,Adults and Health,Other Agencies - Third Party P,0090650113,Mayfair Homecare Ltd,339.20,02/11/2023
Delivery Units,Adults and Health,Other Agencies - Third Party P,0090650114,Mayfair Homecare Ltd,222.60,02/11/2023
Delivery Units,Adults and Health,Other Agencies - Third Party P,0090650115,Mayfair Homecare Ltd,222.60,02/11/2023
Delivery Units,Adults and Health,Other Agencies - Third Party P,0090650116,Mayfair Homecare Ltd,190.80,02/11/2023
Delivery Units,Adults and Health,Other Agencies - Third Party P,0090650117,Mayfair Homecare Ltd,445.20,02/11/2023
Delivery Units,Adults and Health,Other Agencies - Third Party P,0090650118,Mayfair Homecare Ltd,286.20,02/11/2023
Delivery Units,Adults and Health,Other Agencies - Third Party P,0090650120,Mayfair Homecare Ltd,249.10,02/11/2023
Delivery Units,Adults and Health,Other Agencies - Third Party P,0090650121,Mayfair Homecare Ltd,185.50,02/11/2023
Delivery Units,Adults and Health,Other Agencies - Third Party P,0090650122,Mayfair Homecare Ltd,551.20,02/11/2023
Delivery Units,Adults and Health,Other Agencies - Third Party P,0090650124,Mayfair Homecare Ltd,201.40,02/11/2023
Delivery Units,Adults and Health,Other Agencies - Third Party P,0090650125,Mayfair Homecare Ltd,408.10,02/11/2023
Delivery Units,Adults and Health,Other Agencies - Third Party P,0090650127,Mayfair Homecare Ltd,"1,038.80",02/11/2023
Delivery Units,Adults and Health,Other Agencies - Third Party P,0090650128,Mayfair Homecare Ltd,307.40,02/11/2023
Delivery Units,Adults and Health,Other Agencies - Third Party P,0090650129,Mayfair Homecare Ltd,79.50,02/11/2023
Delivery Units,Adults and Health,Other Agencies - Third Party P,0090650130,Mayfair Homecare Ltd,31.80,02/11/2023
Delivery Units,Adults and Health,Other Agencies - Third Party P,0090650131,Mayfair Homecare Ltd,21.20,02/11/2023
Delivery Units,Adults and Health,Other Agencies - Third Party P,0090650132,Mayfair Homecare Ltd,259.70,02/11/2023
Delivery Units,Adults and Health,Other Agencies - Third Party P,0090650133,Mayfair Homecare Ltd,259.70,02/11/2023
Delivery Units,Adults and Health,Other Agencies - Third Party P,0090650134,Mayfair Homecare Ltd,106.00,02/11/2023
Delivery Units,Adults and Health,Other Agencies - Third Party P,0090650135,Mayfair Homecare Ltd,222.60,02/11/2023
Delivery Units,Adults and Health,Other Agencies - Third Party P,0090650136,Mayfair Homecare Ltd,106.00,02/11/2023
Delivery Units,Adults and Health,Other Agencies - Third Party P,0090650137,Mayfair Homecare Ltd,111.30,02/11/2023
Delivery Units,Adults and Health,Other Agencies - Third Party P,0090650138,Mayfair Homecare Ltd,355.10,02/11/2023
Delivery Units,Adults and Health,Other Agencies - Third Party P,0090650139,Mayfair Homecare Ltd,190.80,02/11/2023
Delivery Units,Adults and Health,Other Agencies - Third Party P,0090650140,Mayfair Homecare Ltd,31.80,02/11/2023
Delivery Units,Adults and Health,Other Agencies - Third Party P,0090650142,Mayfair Homecare Ltd,159.00,02/11/2023
Delivery Units,Adults and Health,Other Agencies - Third Party P,0090650143,Mayfair Homecare Ltd,302.10,02/11/2023
Delivery Units,Adults and Health,Other Agencies - Third Party P,0090650144,Mayfair Homecare Ltd,95.40,02/11/2023
Delivery Units,Adults and Health,Other Agencies - Third Party P,0090650146,Mayfair Homecare Ltd,296.80,02/11/2023
Delivery Units,Adults and Health,Other Agencies - Third Party P,0090650147,Mayfair Homecare Ltd,381.60,02/11/2023
Delivery Units,Adults and Health,Other Agencies - Third Party P,0090650148,Mayfair Homecare Ltd,185.50,02/11/2023
Delivery Units,Adults and Health,Other Agencies - Third Party P,0090650149,Mayfair Homecare Ltd,519.40,02/11/2023
Delivery Units,Adults and Health,Other Agencies - Third Party P,0090650152,Mayfair Homecare Ltd,111.30,02/11/2023
Delivery Units,Adults and Health,Other Agencies - Third Party P,0090650153,Mayfair Homecare Ltd,111.30,02/11/2023
Delivery Units,Adults and Health,Other Agencies - Third Party P,0090650154,Mayfair Homecare Ltd,355.10,02/11/2023
Delivery Units,Adults and Health,Other Agencies - Third Party P,0090650157,Mayfair Homecare Ltd,148.40,02/11/2023
Delivery Units,Adults and Health,Other Agencies - Third Party P,0090650158,Mayfair Homecare Ltd,254.40,02/11/2023
Delivery Units,Adults and Health,Other Agencies - Third Party P,0090650159,Mayfair Homecare Ltd,265.00,02/11/2023
Delivery Units,Adults and Health,Other Agencies - Third Party P,0090650363,Servesoul Limited,267.26,02/11/2023
Delivery Units,Adults and Health,Other Agencies - Third Party P,0090650364,Servesoul Limited,534.52,02/11/2023
Delivery Units,Adults and Health,Other Agencies - Third Party P,0090650366,Servesoul Limited,133.63,02/11/2023
Delivery Units,Adults and Health,Other Agencies - Third Party P,0090650368,Servesoul Limited,501.11,02/11/2023
Delivery Units,Adults and Health,Other Agencies - Third Party P,0090650369,Servesoul Limited,133.63,02/11/2023
Delivery Units,Adults and Health,Other Agencies - Third Party P,0090650370,Servesoul Limited,319.76,02/11/2023
Delivery Units,Adults and Health,Other Agencies - Third Party P,0090650371,Servesoul Limited,377.03,02/11/2023
Delivery Units,Adults and Health,Other Agencies - Third Party P,0090650372,Servesoul Limited,672.92,02/11/2023
Delivery Units,Adults and Health,Other Agencies - Third Party P,0090650373,Servesoul Limited,"2,099.71",02/11/2023
Delivery Units,Adults and Health,Other Agencies - Third Party P,0090650374,Servesoul Limited,133.63,02/11/2023
Delivery Units,Adults and Health,Other Agencies - Third Party P,0090650375,Servesoul Limited,47.73,02/11/2023
Delivery Units,Adults and Health,Other Agencies - Third Party P,0090650378,Servesoul Limited,171.81,02/11/2023
Delivery Units,Adults and Health,Other Agencies - Third Party P,0090650380,Servesoul Limited,200.45,02/11/2023
Delivery Units,Adults and Health,Other Agencies - Third Party P,0090650381,Servesoul Limited,801.78,02/11/2023
Delivery Units,Adults and Health,Other Agencies - Third Party P,0090650384,Servesoul Limited,300.67,02/11/2023
Delivery Units,Adults and Health,Other Agencies - Third Party P,0090650385,Servesoul Limited,200.45,02/11/2023
Delivery Units,Adults and Health,Other Agencies - Third Party P,0090650387,Servesoul Limited,233.85,02/11/2023
Delivery Units,Adults and Health,Other Agencies - Third Party P,0090650388,Servesoul Limited,167.04,02/11/2023
Delivery Units,Adults and Health,Other Agencies - Third Party P,0090650389,Servesoul Limited,"1,135.86",02/11/2023
Delivery Units,Adults and Health,Other Agencies - Third Party P,0090650391,Servesoul Limited,252.94,02/11/2023
Delivery Units,Adults and Health,Other Agencies - Third Party P,0090650392,Servesoul Limited,233.85,02/11/2023
Delivery Units,Adults and Health,Other Agencies - Third Party P,0090650393,Servesoul Limited,57.27,02/11/2023
Delivery Units,Adults and Health,Other Agencies - Third Party P,0090650395,Servesoul Limited,601.34,02/11/2023
Delivery Units,Adults and Health,Other Agencies - Third Party P,0090650396,Servesoul Limited,601.34,02/11/2023
Delivery Units,Adults and Health,Other Agencies - Third Party P,0090650397,Servesoul Limited,606.11,02/11/2023
Delivery Units,Adults and Health,Other Agencies - Third Party P,0090650398,Servesoul Limited,233.85,02/11/2023
Delivery Units,Adults and Health,Other Agencies - Third Party P,0090650401,Servesoul Limited,66.82,02/11/2023
Delivery Units,Adults and Health,Other Agencies - Third Party P,0090650404,Servesoul Limited,286.35,02/11/2023
Delivery Units,Adults and Health,Other Agencies - Third Party P,0090650406,Servesoul Limited,601.34,02/11/2023
Delivery Units,Adults and Health,Other Agencies - Third Party P,0090650407,Servesoul Limited,262.49,02/11/2023
Delivery Units,Adults and Health,Other Agencies - Third Party P,0090650408,Servesoul Limited,300.67,02/11/2023
Delivery Units,Adults and Health,Other Agencies - Third Party P,0090650409,Servesoul Limited,100.22,02/11/2023
Delivery Units,Adults and Health,Other Agencies - Third Party P,0090650411,Servesoul Limited,601.34,02/11/2023
Delivery Units,Adults and Health,Other Agencies - Third Party P,0090650412,Servesoul Limited,534.52,02/11/2023
Delivery Units,Adults and Health,Other Agencies - Third Party P,0090650413,Servesoul Limited,85.91,02/11/2023
Delivery Units,Adults and Health,Other Agencies - Third Party P,0090650414,Servesoul Limited,152.72,02/11/2023
Delivery Units,Adults and Health,Other Agencies - Third Party P,0090650415,Servesoul Limited,209.99,02/11/2023
Delivery Units,Adults and Health,Other Agencies - Third Party P,0090650416,Servesoul Limited,458.16,02/11/2023
Delivery Units,Adults and Health,Other Agencies - Third Party P,0090650418,Servesoul Limited,334.08,02/11/2023
Delivery Units,Adults and Health,Other Agencies - Third Party P,0090650419,Servesoul Limited,601.34,02/11/2023
Delivery Units,Adults and Health,Other Agencies - Third Party P,0090650420,Servesoul Limited,95.45,02/11/2023
Delivery Units,Adults and Health,Other Agencies - Third Party P,0090650421,Servesoul Limited,267.26,02/11/2023
Delivery Units,Adults and Health,Other Agencies - Third Party P,0090650422,Servesoul Limited,534.52,02/11/2023
Delivery Units,Adults and Health,Other Agencies - Third Party P,0090650424,Servesoul Limited,133.63,02/11/2023
Delivery Units,Adults and Health,Other Agencies - Third Party P,0090650426,Servesoul Limited,501.11,02/11/2023
Delivery Units,Adults and Health,Other Agencies - Third Party P,0090650427,Servesoul Limited,133.63,02/11/2023
Delivery Units,Adults and Health,Other Agencies - Third Party P,0090650428,Servesoul Limited,319.76,02/11/2023
Delivery Units,Adults and Health,Other Agencies - Third Party P,0090650429,Servesoul Limited,105.00,02/11/2023
Delivery Units,Adults and Health,Other Agencies - Third Party P,0090650430,Servesoul Limited,672.92,02/11/2023
Delivery Units,Adults and Health,Other Agencies - Third Party P,0090650431,Servesoul Limited,"2,099.71",02/11/2023
Delivery Units,Adults and Health,Other Agencies - Third Party P,0090650432,Servesoul Limited,133.63,02/11/2023
Delivery Units,Adults and Health,Other Agencies - Third Party P,0090650433,Servesoul Limited,66.82,02/11/2023
Delivery Units,Adults and Health,Other Agencies - Third Party P,0090650436,Servesoul Limited,171.81,02/11/2023
Delivery Units,Adults and Health,Other Agencies - Third Party P,0090650438,Servesoul Limited,200.45,02/11/2023
Delivery Units,Adults and Health,Other Agencies - Third Party P,0090650439,Servesoul Limited,801.78,02/11/2023
Delivery Units,Adults and Health,Other Agencies - Third Party P,0090650442,Servesoul Limited,300.67,02/11/2023
Delivery Units,Adults and Health,Other Agencies - Third Party P,0090650443,Servesoul Limited,200.45,02/11/2023
Delivery Units,Adults and Health,Other Agencies - Third Party P,0090650445,Servesoul Limited,233.85,02/11/2023
Delivery Units,Adults and Health,Other Agencies - Third Party P,0090650446,Servesoul Limited,167.04,02/11/2023
Delivery Units,Adults and Health,Other Agencies - Third Party P,0090650447,Servesoul Limited,"1,135.86",02/11/2023
Delivery Units,Adults and Health,Other Agencies - Third Party P,0090650449,Servesoul Limited,252.94,02/11/2023
Delivery Units,Adults and Health,Other Agencies - Third Party P,0090650450,Servesoul Limited,233.85,02/11/2023
Delivery Units,Adults and Health,Other Agencies - Third Party P,0090650451,Servesoul Limited,57.27,02/11/2023
Delivery Units,Adults and Health,Other Agencies - Third Party P,0090650453,Servesoul Limited,601.34,02/11/2023
Delivery Units,Adults and Health,Other Agencies - Third Party P,0090650454,Servesoul Limited,601.34,02/11/2023
Delivery Units,Adults and Health,Other Agencies - Third Party P,0090650455,Servesoul Limited,606.11,02/11/2023
Delivery Units,Adults and Health,Other Agencies - Third Party P,0090650456,Servesoul Limited,233.85,02/11/2023
Delivery Units,Adults and Health,Other Agencies - Third Party P,0090650459,Servesoul Limited,66.82,02/11/2023
Delivery Units,Adults and Health,Other Agencies - Third Party P,0090650462,Servesoul Limited,286.35,02/11/2023
Delivery Units,Adults and Health,Other Agencies - Third Party P,0090650464,Servesoul Limited,171.81,02/11/2023
Delivery Units,Adults and Health,Other Agencies - Third Party P,0090650465,Servesoul Limited,262.49,02/11/2023
Delivery Units,Adults and Health,Other Agencies - Third Party P,0090650466,Servesoul Limited,300.67,02/11/2023
Delivery Units,Adults and Health,Other Agencies - Third Party P,0090650467,Servesoul Limited,100.22,02/11/2023
Delivery Units,Adults and Health,Other Agencies - Third Party P,0090650469,Servesoul Limited,410.44,02/11/2023
Delivery Units,Adults and Health,Other Agencies - Third Party P,0090650470,Servesoul Limited,534.52,02/11/2023
Delivery Units,Adults and Health,Other Agencies - Third Party P,0090650471,Servesoul Limited,152.72,02/11/2023
Delivery Units,Adults and Health,Other Agencies - Third Party P,0090650472,Servesoul Limited,209.99,02/11/2023
Delivery Units,Adults and Health,Other Agencies - Third Party P,0090650473,Servesoul Limited,458.16,02/11/2023
Delivery Units,Adults and Health,Other Agencies - Third Party P,0090650476,Servesoul Limited,334.08,02/11/2023
Delivery Units,Adults and Health,Other Agencies - Third Party P,0090650477,Servesoul Limited,601.34,02/11/2023
Delivery Units,Adults and Health,Other Agencies - Third Party P,0090650478,Servesoul Limited,95.45,02/11/2023
Delivery Units,Adults and Health,Other Agencies - Third Party P,0090650492,Eleanor Nursing & Social Care Ltd,200.81,02/11/2023
Delivery Units,Adults and Health,Other Agencies - Third Party P,0090650493,Eleanor Nursing & Social Care Ltd,163.45,02/11/2023
Delivery Units,Adults and Health,Other Agencies - Third Party P,0090650494,Eleanor Nursing & Social Care Ltd,163.45,02/11/2023
Delivery Units,Adults and Health,Other Agencies - Third Party P,0090650495,Eleanor Nursing & Social Care Ltd,166.74,02/11/2023
Delivery Units,Adults and Health,Other Agencies - Third Party P,0090650496,Eleanor Nursing & Social Care Ltd,166.74,02/11/2023
Delivery Units,Adults and Health,Other Agencies - Third Party P,0090650497,Eleanor Nursing & Social Care Ltd,166.74,02/11/2023
Delivery Units,Adults and Health,Other Agencies - Third Party P,0090650498,Eleanor Nursing & Social Care Ltd,166.74,02/11/2023
Delivery Units,Adults and Health,Other Agencies - Third Party P,0090650499,Eleanor Nursing & Social Care Ltd,166.74,02/11/2023
Delivery Units,Adults and Health,Other Agencies - Third Party P,0090650500,Eleanor Nursing & Social Care Ltd,166.74,02/11/2023
Delivery Units,Adults and Health,Other Agencies - Third Party P,0090650501,Eleanor Nursing & Social Care Ltd,166.74,02/11/2023
Delivery Units,Adults and Health,Other Agencies - Third Party P,0090650502,Eleanor Nursing & Social Care Ltd,166.74,02/11/2023
Delivery Units,Adults and Health,Other Agencies - Third Party P,0090650503,Eleanor Nursing & Social Care Ltd,166.74,02/11/2023
Delivery Units,Adults and Health,Other Agencies - Third Party P,0090650504,Eleanor Nursing & Social Care Ltd,166.74,02/11/2023
Delivery Units,Adults and Health,Other Agencies - Third Party P,0090650505,Eleanor Nursing & Social Care Ltd,166.74,02/11/2023
Delivery Units,Adults and Health,Other Agencies - Third Party P,0090650506,Eleanor Nursing & Social Care Ltd,166.74,02/11/2023
Delivery Units,Adults and Health,Other Agencies - Third Party P,0090650507,Eleanor Nursing & Social Care Ltd,166.74,02/11/2023
Delivery Units,Adults and Health,Other Agencies - Third Party P,0090650508,Eleanor Nursing & Social Care Ltd,166.74,02/11/2023
Delivery Units,Adults and Health,Other Agencies - Third Party P,0090650509,Eleanor Nursing & Social Care Ltd,166.74,02/11/2023
Delivery Units,Adults and Health,Other Agencies - Third Party P,0090650510,Eleanor Nursing & Social Care Ltd,166.74,02/11/2023
Delivery Units,Adults and Health,Other Agencies - Third Party P,0090650511,Eleanor Nursing & Social Care Ltd,166.74,02/11/2023
Delivery Units,Adults and Health,Other Agencies - Third Party P,0090650512,Eleanor Nursing & Social Care Ltd,166.74,02/11/2023
Delivery Units,Adults and Health,Other Agencies - Third Party P,0090650513,Eleanor Nursing & Social Care Ltd,166.74,02/11/2023
Delivery Units,Adults and Health,Other Agencies - Third Party P,0090650514,Eleanor Nursing & Social Care Ltd,166.74,02/11/2023
Delivery Units,Adults and Health,Other Agencies - Third Party P,0090650515,Eleanor Nursing & Social Care Ltd,166.74,02/11/2023
Delivery Units,Adults and Health,Other Agencies - Third Party P,0090650516,Eleanor Nursing & Social Care Ltd,166.74,02/11/2023
Delivery Units,Adults and Health,Other Agencies - Third Party P,0090650517,Eleanor Nursing & Social Care Ltd,214.35,02/11/2023
Delivery Units,Adults and Health,Other Agencies - Third Party P,0090650518,Eleanor Nursing & Social Care Ltd,300.09,02/11/2023
Delivery Units,Adults and Health,Other Agencies - Third Party P,0090650519,Eleanor Nursing & Social Care Ltd,300.09,02/11/2023
Delivery Units,Adults and Health,Other Agencies - Third Party P,0090650520,Eleanor Nursing & Social Care Ltd,300.09,02/11/2023
Delivery Units,Adults and Health,Other Agencies - Third Party P,0090650521,Eleanor Nursing & Social Care Ltd,300.09,02/11/2023
Delivery Units,Adults and Health,Other Agencies - Third Party P,0090650522,Eleanor Nursing & Social Care Ltd,300.09,02/11/2023
Delivery Units,Adults and Health,Other Agencies - Third Party P,0090650523,Eleanor Nursing & Social Care Ltd,300.09,02/11/2023
Delivery Units,Adults and Health,Other Agencies - Third Party P,0090650524,Eleanor Nursing & Social Care Ltd,300.09,02/11/2023
Delivery Units,Adults and Health,Other Agencies - Third Party P,0090650525,Eleanor Nursing & Social Care Ltd,300.09,02/11/2023
Delivery Units,Adults and Health,Other Agencies - Third Party P,0090650526,Eleanor Nursing & Social Care Ltd,300.09,02/11/2023
Delivery Units,Adults and Health,Other Agencies - Third Party P,0090650527,Eleanor Nursing & Social Care Ltd,300.09,02/11/2023
Delivery Units,Adults and Health,Other Agencies - Third Party P,0090650539,Eleanor Nursing & Social Care Ltd,"2,185.99",02/11/2023
Delivery Units,Adults and Health,Other Agencies - Third Party P,0090650540,Eleanor Nursing & Social Care Ltd,"2,124.08",02/11/2023
Delivery Units,Adults and Health,Other Agencies - Third Party P,0090650774,Pristine Recruitment Limited,516.80,03/11/2023
Delivery Units,Adults and Health,Other Agencies - Third Party P,0090650775,Pristine Recruitment Limited,190.40,03/11/2023
Delivery Units,Adults and Health,Other Agencies - Third Party P,0090650776,Pristine Recruitment Limited,304.64,03/11/2023
Delivery Units,Adults and Health,Other Agencies - Third Party P,0090650777,Pristine Recruitment Limited,266.56,03/11/2023
Delivery Units,Adults and Health,Other Agencies - Third Party P,0090650779,Pristine Recruitment Limited,"1,218.56",03/11/2023
Delivery Units,Adults and Health,Other Agencies - Third Party P,0090650780,Pristine Recruitment Limited,"1,262.08",03/11/2023
Delivery Units,Adults and Health,Other Agencies - Third Party P,0090650781,Pristine Recruitment Limited,380.80,03/11/2023
Delivery Units,Adults and Health,Other Agencies - Third Party P,0090650782,Pristine Recruitment Limited,315.52,03/11/2023
Delivery Units,Adults and Health,Other Agencies - Third Party P,0090650783,Pristine Recruitment Limited,304.64,03/11/2023
Delivery Units,Adults and Health,Other Agencies - Third Party P,0090650785,Pristine Recruitment Limited,516.80,03/11/2023
Delivery Units,Adults and Health,Other Agencies - Third Party P,0090650786,Pristine Recruitment Limited,190.40,03/11/2023
Delivery Units,Adults and Health,Other Agencies - Third Party P,0090650787,Pristine Recruitment Limited,304.64,03/11/2023
Delivery Units,Adults and Health,Other Agencies - Third Party P,0090650788,Pristine Recruitment Limited,266.56,03/11/2023
Delivery Units,Adults and Health,Other Agencies - Third Party P,0090650790,Pristine Recruitment Limited,"1,218.56",03/11/2023
Delivery Units,Adults and Health,Other Agencies - Third Party P,0090650791,Pristine Recruitment Limited,"1,262.08",03/11/2023
Delivery Units,Adults and Health,Other Agencies - Third Party P,0090650792,Pristine Recruitment Limited,380.80,03/11/2023
Delivery Units,Adults and Health,Other Agencies - Third Party P,0090650793,Pristine Recruitment Limited,315.52,03/11/2023
Delivery Units,Adults and Health,Other Agencies - Third Party P,0090650794,Pristine Recruitment Limited,304.64,03/11/2023
Delivery Units,Adults and Health,Other Agencies - Third Party P,0090650796,Pristine Recruitment Limited,516.80,03/11/2023
Delivery Units,Adults and Health,Other Agencies - Third Party P,0090650797,Pristine Recruitment Limited,190.40,03/11/2023
Delivery Units,Adults and Health,Other Agencies - Third Party P,0090650798,Pristine Recruitment Limited,304.64,03/11/2023
Delivery Units,Adults and Health,Other Agencies - Third Party P,0090650799,Pristine Recruitment Limited,266.56,03/11/2023
Delivery Units,Adults and Health,Other Agencies - Third Party P,0090650801,Pristine Recruitment Limited,"1,218.56",03/11/2023
Delivery Units,Adults and Health,Other Agencies - Third Party P,0090650802,Pristine Recruitment Limited,"1,262.08",03/11/2023
Delivery Units,Adults and Health,Other Agencies - Third Party P,0090650803,Pristine Recruitment Limited,380.80,03/11/2023
Delivery Units,Adults and Health,Other Agencies - Third Party P,0090650804,Pristine Recruitment Limited,315.52,03/11/2023
Delivery Units,Adults and Health,Other Agencies - Third Party P,0090650805,Pristine Recruitment Limited,304.64,03/11/2023
Delivery Units,Adults and Health,Other Agencies - Third Party P,0090650976,The Cedars Home Care,129.98,06/11/2023
Delivery Units,Adults and Health,Other Agencies - Third Party P,0090650977,The Cedars Home Care,368.60,06/11/2023
Delivery Units,Adults and Health,Other Agencies - Third Party P,0090650979,The Cedars Home Care,557.75,06/11/2023
Delivery Units,Adults and Health,Other Agencies - Third Party P,0090650981,The Cedars Home Care,228.53,06/11/2023
Delivery Units,Adults and Health,Other Agencies - Third Party P,0090650982,The Cedars Home Care,290.03,06/11/2023
Delivery Units,Adults and Health,Other Agencies - Third Party P,0090650983,The Cedars Home Care,67.90,06/11/2023
Delivery Units,Adults and Health,Other Agencies - Third Party P,0090650984,The Cedars Home Care,101.85,06/11/2023
Delivery Units,Adults and Health,Other Agencies - Third Party P,0090650985,The Cedars Home Care,135.80,06/11/2023
Delivery Units,Adults and Health,Other Agencies - Third Party P,0090650986,The Cedars Home Care,19.40,06/11/2023
Delivery Units,Adults and Health,Other Agencies - Third Party P,0090650987,The Cedars Home Care,197.88,06/11/2023
Delivery Units,Adults and Health,Other Agencies - Third Party P,0090650988,The Cedars Home Care,133.86,06/11/2023
Delivery Units,Adults and Health,Other Agencies - Third Party P,0090650990,The Cedars Home Care,324.95,06/11/2023
Delivery Units,Adults and Health,Other Agencies - Third Party P,0090650991,The Cedars Home Care,29.10,06/11/2023
Delivery Units,Adults and Health,Other Agencies - Third Party P,0090650993,The Cedars Home Care,13.19,06/11/2023
Delivery Units,Adults and Health,Other Agencies - Third Party P,0090650994,The Cedars Home Care,48.11,06/11/2023
Delivery Units,Adults and Health,Other Agencies - Third Party P,0090650995,The Cedars Home Care,"1,222.20",06/11/2023
Delivery Units,Adults and Health,Other Agencies - Third Party P,0090650997,The Cedars Home Care,"2,880.90",06/11/2023
Delivery Units,Adults and Health,Other Agencies - Third Party P,0090650998,The Cedars Home Care,746.90,06/11/2023
Delivery Units,Adults and Health,Other Agencies - Third Party P,0090650999,The Cedars Home Care,158.50,06/11/2023
Delivery Units,Adults and Health,Other Agencies - Third Party P,0090651000,The Cedars Home Care,179.45,06/11/2023
Delivery Units,Adults and Health,Other Agencies - Third Party P,0090651002,The Cedars Home Care,25.80,06/11/2023
Delivery Units,Adults and Health,Other Agencies - Third Party P,0090651004,The Cedars Home Care,261.90,06/11/2023
Delivery Units,Adults and Health,Other Agencies - Third Party P,0090651005,The Cedars Home Care,215.73,06/11/2023
Delivery Units,Adults and Health,Other Agencies - Third Party P,0090651006,The Cedars Home Care,101.85,06/11/2023
Delivery Units,Adults and Health,Other Agencies - Third Party P,0090651007,The Cedars Home Care,392.85,06/11/2023
Delivery Units,Adults and Health,Other Agencies - Third Party P,0090651008,The Cedars Home Care,426.80,06/11/2023
Delivery Units,Adults and Health,Other Agencies - Third Party P,0090651009,The Cedars Home Care,"1,606.90",06/11/2023
Delivery Units,Adults and Health,Other Agencies - Third Party P,0090651010,The Cedars Home Care,208.55,06/11/2023
Delivery Units,Adults and Health,Other Agencies - Third Party P,0090651012,The Cedars Home Care,85.94,06/11/2023
